NUMERO_MANDATO;RIGA_MANDATO;QUIET;IMPORTO_RIGA;IMPORTO_MANDATO;BENEFICIARIO;CIG;TITOLO_PAGAMENTO;DATA_MANDATO;CAPITOLO;ARTICOLO;NUMERO_IMPEGNO;TITOLO;DESCR_TITOLO;LIVELLO_II;DESCR_LIVELLO_II;LIVELLO_III;DESCR_LIVELLO_III;LIVELLO_IV;DESCR_LIVELLO_IV;LIVELLO_V;DESCR_LIVELLO_V;DATA_PAG_EFF;
1;1;0;"126,70";"126,70";CATTAZZO MICHELE - ECONOMO COMUNALE; ;Rimborso bollette;10-01-2018;50;0;760;1;Spese correnti;3;Acquisto di beni e servizi;2;Acquisto di servizi;2;"Organizzazione eventi, pubblicita` e servizi per trasferta";1;Rimborso per viaggio e trasloco;10-01-2018;
2;1;0;"99,50";"99,50";CATTAZZO MICHELE - ECONOMO COMUNALE; ;Rimborso bollette;10-01-2018;105;0;761;1;Spese correnti;3;Acquisto di beni e servizi;2;Acquisto di servizi;16;Servizi amministrativi;2;Spese postali;10-01-2018;
3;1;0;"74,00";"74,00";CATTAZZO MICHELE - ECONOMO COMUNALE; ;Rimborso bollette;10-01-2018;110;0;762;1;Spese correnti;3;Acquisto di beni e servizi;1;Acquisto di beni;2;Altri beni di consumo;1;"Carta, cancelleria e stampati";10-01-2018;
4;1;0;"85,00";"85,00";CATTAZZO MICHELE - ECONOMO COMUNALE; ;Rimborso bollette;10-01-2018;110;0;762;1;Spese correnti;3;Acquisto di beni e servizi;1;Acquisto di beni;2;Altri beni di consumo;999;Altri beni e materiali di consumo n.a.c.;10-01-2018;
5;1;0;"144,00";"144,00";CATTAZZO MICHELE - ECONOMO COMUNALE; ;Rimborso bollette;10-01-2018;145;0;763;1;Spese correnti;3;Acquisto di beni e servizi;1;Acquisto di beni;2;Altri beni di consumo;9;Beni per attività di rappresentanza;10-01-2018;
6;1;0;"347,50";"347,50";CATTAZZO MICHELE - ECONOMO COMUNALE; ;Rimborso bollette;10-01-2018;265;0;764;1;Spese correnti;3;Acquisto di beni e servizi;1;Acquisto di beni;2;Altri beni di consumo;999;Altri beni e materiali di consumo n.a.c.;10-01-2018;
7;1;0;"5,46";"5,46";CATTAZZO MICHELE - ECONOMO COMUNALE; ;Rimborso bollette;10-01-2018;290;0;765;1;Spese correnti;3;Acquisto di beni e servizi;1;Acquisto di beni;2;Altri beni di consumo;2;"Carburanti, combustibili e lubrificanti";10-01-2018;
8;1;0;"60,50";"60,50";CATTAZZO MICHELE - ECONOMO COMUNALE; ;Rimborso bollette;10-01-2018;686;0;766;1;Spese correnti;3;Acquisto di beni e servizi;2;Acquisto di servizi;2;"Organizzazione eventi, pubblicita` e servizi per trasferta";5;Organizzazione e partecipazione a manifestazioni e convegni;10-01-2018;
11;1;0;"625,10";"625,10";MINISTERO DELL'ECONOMIA E DELLE FINANZE; ;VERSAMENTO IVA A DEBITO RELATIVA AL MESE DI DICEMBRE 2017;10-01-2018;1070;0;773;1;Spese correnti;10;Altre spese correnti;3;Versamenti IVA a debito;1;Versamenti IVA a debito per le gestioni commerciali;1;Versamenti IVA a debito per le gestioni commerciali;10-01-2018;
12;1;0;"1.292,40";"1.292,40";MINISTERO DELL'ECONOMIA E DELLE FINANZE; ;VERSAMENTO IVA A DEBITO MESE DI DICEMBRE 2017;10-01-2018;1070;0;2;1;Spese correnti;10;Altre spese correnti;3;Versamenti IVA a debito;1;Versamenti IVA a debito per le gestioni commerciali;1;Versamenti IVA a debito per le gestioni commerciali;10-01-2018;
14;1;0;"108,31";"108,31";GP GLOBAL POWER SPA;5952652BD1;SALDO Fatt.n. V6/46882  del 20/12/2017 FORNITURA GAS;12-01-2018;582;0;783;1;Spese correnti;3;Acquisto di beni e servizi;2;Acquisto di servizi;5;Utenze e canoni;6;Gas;12-01-2018;
15;1;0;"264,58";"264,58";GP GLOBAL POWER SPA;5952652BD1;SALDO Fatt.n. V6/46883  del 20/12/2017 FORNITURA GAS;12-01-2018;353;0;789;1;Spese correnti;3;Acquisto di beni e servizi;2;Acquisto di servizi;5;Utenze e canoni;6;Gas;12-01-2018;
16;1;0;"882,61";"882,61";GP GLOBAL POWER SPA;5952652BD1;SALDO Fatt.n. V6/46884  del 20/12/2017 FORNITURA GAS;12-01-2018;353;0;789;1;Spese correnti;3;Acquisto di beni e servizi;2;Acquisto di servizi;5;Utenze e canoni;6;Gas;12-01-2018;
17;1;0;"24,95";"24,95";GP GLOBAL POWER SPA;5952652BD1;SALDO Fatt.n. V6/46892  del 20/12/2017 FORNITURA GAS;12-01-2018;353;0;789;1;Spese correnti;3;Acquisto di beni e servizi;2;Acquisto di servizi;5;Utenze e canoni;6;Gas;12-01-2018;
18;1;0;"2,59";"2,59";GP GLOBAL POWER SPA;5952652BD1;SALDO Fatt.n. V6/46891  del 20/12/2017 FORNITURA GAS;12-01-2018;353;0;789;1;Spese correnti;3;Acquisto di beni e servizi;2;Acquisto di servizi;5;Utenze e canoni;6;Gas;12-01-2018;
19;1;0;"1.469,73";"1.469,73";GP GLOBAL POWER SPA;5952652BD1;SALDO Fatt.n. V6/46885  del 20/12/2017 FORNITURA GAS;12-01-2018;542;0;784;1;Spese correnti;3;Acquisto di beni e servizi;2;Acquisto di servizi;5;Utenze e canoni;6;Gas;12-01-2018;
20;1;0;"826,50";"826,50";GP GLOBAL POWER SPA;5952652BD1;SALDO Fatt.n. V6/46886  del 20/12/2017 FORNITURA GAS;12-01-2018;542;0;784;1;Spese correnti;3;Acquisto di beni e servizi;2;Acquisto di servizi;5;Utenze e canoni;6;Gas;12-01-2018;
21;1;0;"1.090,97";"1.090,97";GP GLOBAL POWER SPA;5952652BD1;SALDO Fatt.n. V6/46889  del 20/12/2017 FORNITURA GAS;12-01-2018;884;0;787;1;Spese correnti;3;Acquisto di beni e servizi;2;Acquisto di servizi;5;Utenze e canoni;6;Gas;12-01-2018;
22;1;0;"2.000,93";"2.000,93";GP GLOBAL POWER SPA;5952652BD1;SALDO Fatt.n. V6/46890  del 20/12/2017 FORNITURA GAS;12-01-2018;888;0;788;1;Spese correnti;3;Acquisto di beni e servizi;2;Acquisto di servizi;5;Utenze e canoni;6;Gas;12-01-2018;
23;1;0;"958,33";"958,33";GP GLOBAL POWER SPA;5952652BD1;SALDO Fatt.n. V6/46887  del 20/12/2017 FORNITURA GAS;12-01-2018;112;0;785;1;Spese correnti;3;Acquisto di beni e servizi;2;Acquisto di servizi;5;Utenze e canoni;6;Gas;12-01-2018;
24;1;0;"457,66";"457,66";GP GLOBAL POWER SPA;5952652BD1;SALDO Fatt.n. V6/46888  del 20/12/2017 FORNITURA GAS;12-01-2018;212;0;786;1;Spese correnti;3;Acquisto di beni e servizi;2;Acquisto di servizi;5;Utenze e canoni;6;Gas;12-01-2018;
25;1;0;"46.239,25";"46.239,25";COPROLA - CONSORZIO PRODUZIONE LAVORO ARTIGIANO;7123208133;DM 16/02/2016 INT 1.A FATT PA 1_18 09/01/2018 SR COMUNE CALDIERO P.I. 00252060231 BENEFICIARIO COPROLA P.I. 02513990420;12-01-2018;1092;0;687;2;Spese in conto capitale;2;Investimenti fissi lordi e acquisto di terreni;1;Beni materiali;9;Beni immobili;19;Fabbricati ad uso strumentale;12-01-2018;
26;1;0;"177,54";"177,54";COPROLA - CONSORZIO PRODUZIONE LAVORO ARTIGIANO;7123208133;DM 16/02/2016 INT 1.B FATT PA 2_18 09/01/2018 SR COMUNE CALDIERO P.I. 00252060231 BENEFICIARIO COPROLA P.I. 02513990420;12-01-2018;1092;0;687;2;Spese in conto capitale;2;Investimenti fissi lordi e acquisto di terreni;1;Beni materiali;9;Beni immobili;19;Fabbricati ad uso strumentale;12-01-2018;
27;1;0;"0,01";"880,16";COPROLA - CONSORZIO PRODUZIONE LAVORO ARTIGIANO;7123208133;DM 16/02/2016 INT 1.F ACCONTO FATT PA 3_18 09/01/18 SR COMUNE CALDIERO P.I. 00252060231 BENEFICIARIO COPROLA P.I. 02513990420;12-01-2018;1092;0;687;2;Spese in conto capitale;2;Investimenti fissi lordi e acquisto di terreni;1;Beni materiali;9;Beni immobili;19;Fabbricati ad uso strumentale;12-01-2018;
27;2;0;"880,15";"880,16";COPROLA - CONSORZIO PRODUZIONE LAVORO ARTIGIANO;7123208133;DM 16/02/2016 INT 1.F SALDO FATTPA 3_18 09/01/2018 SR COMUNE CALDIERO P.I. 00252060231 BENEFICIARIO COPROLA P.I. 02513990420;12-01-2018;1092;0;687;2;Spese in conto capitale;2;Investimenti fissi lordi e acquisto di terreni;1;Beni materiali;9;Beni immobili;19;Fabbricati ad uso strumentale;12-01-2018;
28;1;0;"52.858,05";"52.858,05";COPROLA - CONSORZIO PRODUZIONE LAVORO ARTIGIANO;7123208133;DM 16/02/2016 INT 2.A FATTPA 4_18 09/01/2018 SR COMUNE CALDIERO P.I. 00252060231 BENEFICIARIO COPROLA P.I. 02513990420;12-01-2018;1092;0;687;2;Spese in conto capitale;2;Investimenti fissi lordi e acquisto di terreni;1;Beni materiali;9;Beni immobili;19;Fabbricati ad uso strumentale;12-01-2018;
29;1;0;"12.421,43";"12.421,43";IDROCLIMA DI MILLI STEFANO E VANNI SNC;Z912021152;SALDO Fatt.n. 00010/02  del 18/12/2017 FATTURA;15-01-2018;1171;0;554;2;Spese in conto capitale;2;Investimenti fissi lordi e acquisto di terreni;1;Beni materiali;9;Beni immobili;16;Impianti sportivi;15-01-2018;
30;1;0;"17.221,07";"17.221,07";GES GROUP SRL;ZAD200D550;SALDO Fatt.n. 000029  del 30/11/2017 Resp. del Proc.: Pasetto Arch. Alessio;15-01-2018;1171;0;557;2;Spese in conto capitale;2;Investimenti fissi lordi e acquisto di terreni;1;Beni materiali;9;Beni immobili;16;Impianti sportivi;15-01-2018;
31;1;0;"4.842,25";"4.842,25";GES GROUP SRL;ZAD200D550;SALDO Fatt.n. 000035  del 11/12/2017 Resp. del Proc.: Pasetto Arch. Alessio;15-01-2018;1171;0;557;2;Spese in conto capitale;2;Investimenti fissi lordi e acquisto di terreni;1;Beni materiali;9;Beni immobili;16;Impianti sportivi;15-01-2018;
32;1;0;"274,50";"274,50";PIZZEGHELLA E STEVAN SRL STEVAN;ZE71936558;SALDO Fatt.n. 195  del 18/12/2017 FATTURA;15-01-2018;352;0;256;1;Spese correnti;3;Acquisto di beni e servizi;2;Acquisto di servizi;9;Manutenzione ordinaria e riparazioni;8;Manutenzione ordinaria e riparazioni di beni immobili;15-01-2018;
33;1;0;"264,74";"264,74";GUGLIELMI ADELINO ELETTRAUTO SNC;ZFA1DC6742;SALDO Fatt.n. 2240  del 19/12/2017 FATTURA;15-01-2018;292;0;160;1;Spese correnti;3;Acquisto di beni e servizi;2;Acquisto di servizi;9;Manutenzione ordinaria e riparazioni;1;"Manutenzione ordinaria e riparazioni di mezzi di trasporto ad uso civile, di sicurezza e ordine pubblico";15-01-2018;
34;1;0;"216,74";"216,74";CONSORZIO AGRARIO DEL NORDEST;Z871D73A0B;SALDO Fatt.n. 237278/V1  del 30/11/2017 FATTURA;15-01-2018;950;0;124;1;Spese correnti;3;Acquisto di beni e servizi;1;Acquisto di beni;2;Altri beni di consumo;999;Altri beni e materiali di consumo n.a.c.;15-01-2018;
35;1;0;"1.684,21";"1.684,21";MORANDO FRANCESCO;Z18201AA1D;SALDO Fatt.n. 120/PA - 2017  del 15/12/2017 FATTURA;15-01-2018;952;0;681;1;Spese correnti;3;Acquisto di beni e servizi;2;Acquisto di servizi;9;Manutenzione ordinaria e riparazioni;8;Manutenzione ordinaria e riparazioni di beni immobili;15-01-2018;
36;1;0;"120,78";"120,78";PIZZEGHELLA E STEVAN SRL STEVAN;Z711CA7713;SALDO Fatt.n. 193  del 18/12/2017 FATTURA;15-01-2018;352;0;763;1;Spese correnti;3;Acquisto di beni e servizi;2;Acquisto di servizi;9;Manutenzione ordinaria e riparazioni;8;Manutenzione ordinaria e riparazioni di beni immobili;15-01-2018;
37;1;0;"264,76";"264,76";PIZZEGHELLA E STEVAN SRL STEVAN;Z711CA7713;SALDO Fatt.n. 194  del 18/12/2017 FATTURA;15-01-2018;352;0;763;1;Spese correnti;3;Acquisto di beni e servizi;2;Acquisto di servizi;9;Manutenzione ordinaria e riparazioni;8;Manutenzione ordinaria e riparazioni di beni immobili;15-01-2018;
38;1;0;"120,78";"120,78";PIZZEGHELLA E STEVAN SRL STEVAN;Z711CA7713;SALDO Fatt.n. 210  del 18/12/2017 FATTURA;15-01-2018;352;0;763;1;Spese correnti;3;Acquisto di beni e servizi;2;Acquisto di servizi;9;Manutenzione ordinaria e riparazioni;8;Manutenzione ordinaria e riparazioni di beni immobili;15-01-2018;
39;1;0;"264,76";"264,76";PIZZEGHELLA E STEVAN SRL STEVAN;Z711CA7713;SALDO Fatt.n. 211  del 18/12/2017 FATTURA;15-01-2018;352;0;763;1;Spese correnti;3;Acquisto di beni e servizi;2;Acquisto di servizi;9;Manutenzione ordinaria e riparazioni;8;Manutenzione ordinaria e riparazioni di beni immobili;15-01-2018;
40;1;0;"109,80";"109,80";PIZZEGHELLA E STEVAN SRL STEVAN;Z711CA7713;SALDO Fatt.n. 217  del 31/12/2017 FATTURA;15-01-2018;352;0;763;1;Spese correnti;3;Acquisto di beni e servizi;2;Acquisto di servizi;9;Manutenzione ordinaria e riparazioni;8;Manutenzione ordinaria e riparazioni di beni immobili;15-01-2018;
41;1;0;"109,80";"109,80";PIZZEGHELLA E STEVAN SRL STEVAN;Z711CA7713;SALDO Fatt.n. 218  del 31/12/2017 FATTURA;15-01-2018;352;0;763;1;Spese correnti;3;Acquisto di beni e servizi;2;Acquisto di servizi;9;Manutenzione ordinaria e riparazioni;8;Manutenzione ordinaria e riparazioni di beni immobili;15-01-2018;
42;1;0;"1.825,61";"1.825,61";LERCO ANTINCENDI SRL;ZBB1FA6FC8;SALDO Fatt.n. 29/PA  del 30/11/2017 FATTURA;15-01-2018;352;0;489;1;Spese correnti;3;Acquisto di beni e servizi;2;Acquisto di servizi;9;Manutenzione ordinaria e riparazioni;8;Manutenzione ordinaria e riparazioni di beni immobili;15-01-2018;
43;1;0;"1.000,00";"1.000,00";FLOROVIVAISMO IL MANIERO DI DAL FORNO GIUSEPPE;Z951D739E5;SALDO Fatt.n. 5  del 28/12/2017 VENDITA CRISANTEMI E PIANTE DETERMINA N 6 DEL 25.01.2017 CIG Z951D739E5;15-01-2018;871;0;123;1;Spese correnti;3;Acquisto di beni e servizi;1;Acquisto di beni;3;Flora e Fauna;2;Flora selvatica e non selvatica;15-01-2018;
44;1;0;"1.207,80";"1.207,80";ELETTRO BIONDANI;ZE91F68660;SALDO Fatt.n. 6  del 28/12/2017 FATTURA;15-01-2018;352;0;425;1;Spese correnti;3;Acquisto di beni e servizi;2;Acquisto di servizi;9;Manutenzione ordinaria e riparazioni;8;Manutenzione ordinaria e riparazioni di beni immobili;15-01-2018;
45;1;0;"47,02";"361,38";KUWAIT PETROLEUM ITALIA SPA;ZA91845EEC;ACCONTO Fatt.n. PJ00109179  del 31/12/2017 FATTURA;15-01-2018;290;0;86;1;Spese correnti;3;Acquisto di beni e servizi;1;Acquisto di beni;2;Altri beni di consumo;2;"Carburanti, combustibili e lubrificanti";15-01-2018;
45;2;0;"314,36";"361,38";KUWAIT PETROLEUM ITALIA SPA;ZA91845EEC;SALDO Fatt.n. PJ00109179  del 31/12/2017 FATTURA;15-01-2018;290;0;86;1;Spese correnti;3;Acquisto di beni e servizi;1;Acquisto di beni;2;Altri beni di consumo;2;"Carburanti, combustibili e lubrificanti";15-01-2018;
46;1;0;"11.109,32";"11.109,32";NUOVA SISOV SRL;Z451FC3359;SALDO Fatt.n. 37/PA  del 19/12/2017 Esecuzione della segnaletica stradale orizzontale;15-01-2018;955;0;516;1;Spese correnti;3;Acquisto di beni e servizi;2;Acquisto di servizi;9;Manutenzione ordinaria e riparazioni;8;Manutenzione ordinaria e riparazioni di beni immobili;15-01-2018;
47;1;0;"170,80";"170,80";RATTICIDA VENETA SAS DI FERLENGA M. E G.;ZF31F0A617;SALDO Fatt.n. 178/pa  del 21/12/2017 FATTURA;15-01-2018;465;0;453;1;Spese correnti;3;Acquisto di beni e servizi;2;Acquisto di servizi;99;Altri servizi;999;Altri servizi diversi n.a.c.;15-01-2018;
48;1;0;"401,81";"401,81";EDILTOSI S.R.L.;ZC71D737AF;SALDO Fatt.n. 006806  del 30/11/2017 FATTURA;15-01-2018;350;0;116;1;Spese correnti;3;Acquisto di beni e servizi;1;Acquisto di beni;2;Altri beni di consumo;999;Altri beni e materiali di consumo n.a.c.;15-01-2018;
49;1;0;"0,01";"163,72";EDILTOSI S.R.L.;ZC71D737AF;SALDO Fatt.n. 007656  del 31/12/2017 FATTURA;15-01-2018;350;0;116;1;Spese correnti;3;Acquisto di beni e servizi;1;Acquisto di beni;2;Altri beni di consumo;999;Altri beni e materiali di consumo n.a.c.;15-01-2018;
49;2;0;"163,71";"163,72";EDILTOSI S.R.L.;ZC71D737AF;ACCONTO Fatt.n. 007656  del 31/12/2017 FATTURA;15-01-2018;350;0;116;1;Spese correnti;3;Acquisto di beni e servizi;1;Acquisto di beni;2;Altri beni di consumo;999;Altri beni e materiali di consumo n.a.c.;15-01-2018;
50;1;0;"1.263,35";"1.263,35";MATTARANETTA SOCIETA' COOPERATIVA SOCIALE;Z3C1CA95E4;SALDO Fatt.n. 37/FE  del 31/12/2017 FATTURA IMMEDIATA;15-01-2018;840;0;746;1;Spese correnti;3;Acquisto di beni e servizi;2;Acquisto di servizi;15;Contratti di servizio pubblico;4;Contratti di servizio per la raccolta rifiuti;15-01-2018;
51;1;0;"66,88";"66,88";CALDIERO GOMME DI GROBBERIO L.;Z161DC6793;SALDO Fatt.n. 207  del 28/12/2017 REVISIONI IMMEDIATE;15-01-2018;292;0;162;1;Spese correnti;3;Acquisto di beni e servizi;2;Acquisto di servizi;9;Manutenzione ordinaria e riparazioni;1;"Manutenzione ordinaria e riparazioni di mezzi di trasporto ad uso civile, di sicurezza e ordine pubblico";15-01-2018;
52;1;0;"1.065,46";"1.065,46";COOPERATIVA SOCIALE VENETA ONLUS;Z431F034F6;SALDO Fatt.n. 000323-2017-PA  del 28/12/2017 FATTURA;15-01-2018;782;0;454;1;Spese correnti;3;Acquisto di beni e servizi;2;Acquisto di servizi;9;Manutenzione ordinaria e riparazioni;8;Manutenzione ordinaria e riparazioni di beni immobili;15-01-2018;
53;1;0;"129,17";"129,17";LA RONDA - SERVIZI DI VIGILANZA;ZE618FE5E8;SALDO Fatt.n. 0015527  del 31/12/2017 FATTURA;15-01-2018;357;0;171;1;Spese correnti;3;Acquisto di beni e servizi;2;Acquisto di servizi;13;Servizi ausiliari per il funzionamento dell'ente;1;"Servizi di sorveglianza, custodia e accoglienza";15-01-2018;
54;1;0;"45,15";"45,15";FERRAMENTA BELLOMI DI FOLLETTO G. E L. SAS;Z8F1DC66DA;SALDO Fatt.n. 2017    42/P  del 31/10/2017 FATTURA;15-01-2018;350;0;158;1;Spese correnti;3;Acquisto di beni e servizi;1;Acquisto di beni;2;Altri beni di consumo;999;Altri beni e materiali di consumo n.a.c.;15-01-2018;
55;1;0;"211,65";"211,65";FERRAMENTA BELLOMI DI FOLLETTO G. E L. SAS;Z8F1DC66DA;SALDO Fatt.n. 2017    59/P  del 30/12/2017 FATTURA;15-01-2018;350;0;158;1;Spese correnti;3;Acquisto di beni e servizi;1;Acquisto di beni;2;Altri beni di consumo;999;Altri beni e materiali di consumo n.a.c.;15-01-2018;
56;1;0;"0,11";"251,25";FERRAMENTA BELLOMI DI FOLLETTO G. E L. SAS;Z8F1DC66DA;SALDO Fatt.n. 2017    48/P  del 30/11/2017 FATTURA;15-01-2018;350;0;158;1;Spese correnti;3;Acquisto di beni e servizi;1;Acquisto di beni;2;Altri beni di consumo;999;Altri beni e materiali di consumo n.a.c.;15-01-2018;
56;2;0;"251,14";"251,25";FERRAMENTA BELLOMI DI FOLLETTO G. E L. SAS;Z8F1DC66DA;ACCONTO Fatt.n. 2017    48/P  del 30/11/2017 FATTURA;15-01-2018;350;0;158;1;Spese correnti;3;Acquisto di beni e servizi;1;Acquisto di beni;2;Altri beni di consumo;999;Altri beni e materiali di consumo n.a.c.;15-01-2018;
57;1;0;"10,45";"10,45";ACQUE VERONESI SCARL; ;SALDO Fatt.n. 0350120170800689300  del 29/11/2017 B/Bollettazione;15-01-2018;879;0;140;1;Spese correnti;3;Acquisto di beni e servizi;2;Acquisto di servizi;5;Utenze e canoni;5;Acqua;15-01-2018;
58;1;0;"6,53";"6,53";ACQUE VERONESI SCARL; ;SALDO Fatt.n. 0350120170800688000  del 29/11/2017 B/Bollettazione;15-01-2018;879;0;140;1;Spese correnti;3;Acquisto di beni e servizi;2;Acquisto di servizi;5;Utenze e canoni;5;Acqua;15-01-2018;
59;1;0;"10,45";"10,45";ACQUE VERONESI SCARL; ;SALDO Fatt.n. 0350120170800690600  del 29/11/2017 B/Bollettazione;15-01-2018;879;0;140;1;Spese correnti;3;Acquisto di beni e servizi;2;Acquisto di servizi;5;Utenze e canoni;5;Acqua;15-01-2018;
60;1;0;"10,45";"10,45";ACQUE VERONESI SCARL; ;SALDO Fatt.n. 0350120170800691700  del 29/11/2017 B/Bollettazione;15-01-2018;879;0;140;1;Spese correnti;3;Acquisto di beni e servizi;2;Acquisto di servizi;5;Utenze e canoni;5;Acqua;15-01-2018;
61;1;0;"10,45";"10,45";ACQUE VERONESI SCARL; ;SALDO Fatt.n. 0350120170800692500  del 29/11/2017 B/Bollettazione;15-01-2018;879;0;140;1;Spese correnti;3;Acquisto di beni e servizi;2;Acquisto di servizi;5;Utenze e canoni;5;Acqua;15-01-2018;
62;1;0;"6,53";"6,53";ACQUE VERONESI SCARL; ;SALDO Fatt.n. 0350120170800692600  del 29/11/2017 B/Bollettazione;15-01-2018;879;0;140;1;Spese correnti;3;Acquisto di beni e servizi;2;Acquisto di servizi;5;Utenze e canoni;5;Acqua;15-01-2018;
63;1;0;"6,53";"6,53";ACQUE VERONESI SCARL; ;SALDO Fatt.n. 0350120170800692100  del 29/11/2017 B/Bollettazione;15-01-2018;879;0;140;1;Spese correnti;3;Acquisto di beni e servizi;2;Acquisto di servizi;5;Utenze e canoni;5;Acqua;15-01-2018;
64;1;0;"3,92";"3,92";ACQUE VERONESI SCARL; ;SALDO Fatt.n. 0350120170800691900  del 29/11/2017 B/Bollettazione;15-01-2018;879;0;140;1;Spese correnti;3;Acquisto di beni e servizi;2;Acquisto di servizi;5;Utenze e canoni;5;Acqua;15-01-2018;
65;1;0;"2,62";"2,62";ACQUE VERONESI SCARL; ;SALDO Fatt.n. 0350120170800692200  del 29/11/2017 B/Bollettazione;15-01-2018;879;0;140;1;Spese correnti;3;Acquisto di beni e servizi;2;Acquisto di servizi;5;Utenze e canoni;5;Acqua;15-01-2018;
66;1;0;"6,53";"6,53";ACQUE VERONESI SCARL; ;SALDO Fatt.n. 0350120170800692400  del 29/11/2017 B/Bollettazione;15-01-2018;879;0;140;1;Spese correnti;3;Acquisto di beni e servizi;2;Acquisto di servizi;5;Utenze e canoni;5;Acqua;15-01-2018;
67;1;0;"3,92";"3,92";ACQUE VERONESI SCARL; ;SALDO Fatt.n. 0350120170800692300  del 29/11/2017 B/Bollettazione;15-01-2018;879;0;140;1;Spese correnti;3;Acquisto di beni e servizi;2;Acquisto di servizi;5;Utenze e canoni;5;Acqua;15-01-2018;
68;1;0;"6,53";"6,53";ACQUE VERONESI SCARL; ;SALDO Fatt.n. 0350120170800691800  del 29/11/2017 B/Bollettazione;15-01-2018;879;0;140;1;Spese correnti;3;Acquisto di beni e servizi;2;Acquisto di servizi;5;Utenze e canoni;5;Acqua;15-01-2018;
69;1;0;"3,92";"3,92";ACQUE VERONESI SCARL; ;SALDO Fatt.n. 0350120170800690900  del 29/11/2017 B/Bollettazione;15-01-2018;879;0;140;1;Spese correnti;3;Acquisto di beni e servizi;2;Acquisto di servizi;5;Utenze e canoni;5;Acqua;15-01-2018;
70;1;0;"2,62";"2,62";ACQUE VERONESI SCARL; ;SALDO Fatt.n. 0350120170800689500  del 29/11/2017 B/Bollettazione;15-01-2018;879;0;140;1;Spese correnti;3;Acquisto di beni e servizi;2;Acquisto di servizi;5;Utenze e canoni;5;Acqua;15-01-2018;
71;1;0;"3,92";"3,92";ACQUE VERONESI SCARL; ;SALDO Fatt.n. 0350120170800689600  del 29/11/2017 B/Bollettazione;15-01-2018;879;0;140;1;Spese correnti;3;Acquisto di beni e servizi;2;Acquisto di servizi;5;Utenze e canoni;5;Acqua;15-01-2018;
72;1;0;"6,53";"6,53";ACQUE VERONESI SCARL; ;SALDO Fatt.n. 0350120170800692900  del 29/11/2017 B/Bollettazione;15-01-2018;879;0;140;1;Spese correnti;3;Acquisto di beni e servizi;2;Acquisto di servizi;5;Utenze e canoni;5;Acqua;15-01-2018;
73;1;0;"22,20";"22,20";ACQUE VERONESI SCARL; ;SALDO Fatt.n. 0350120170800689200  del 29/11/2017 B/Bollettazione;15-01-2018;879;0;140;1;Spese correnti;3;Acquisto di beni e servizi;2;Acquisto di servizi;5;Utenze e canoni;5;Acqua;15-01-2018;
74;1;0;"43,10";"43,10";ACQUE VERONESI SCARL; ;SALDO Fatt.n. 0350120170800690200  del 29/11/2017 B/Bollettazione;15-01-2018;879;0;140;1;Spese correnti;3;Acquisto di beni e servizi;2;Acquisto di servizi;5;Utenze e canoni;5;Acqua;15-01-2018;
75;1;0;"3,92";"3,92";ACQUE VERONESI SCARL; ;SALDO Fatt.n. 0350120170800687400  del 29/11/2017 B/Bollettazione;15-01-2018;879;0;140;1;Spese correnti;3;Acquisto di beni e servizi;2;Acquisto di servizi;5;Utenze e canoni;5;Acqua;15-01-2018;
76;1;0;"10,45";"10,45";ACQUE VERONESI SCARL; ;SALDO Fatt.n. 0350120170800688900  del 29/11/2017 B/Bollettazione;15-01-2018;879;0;140;1;Spese correnti;3;Acquisto di beni e servizi;2;Acquisto di servizi;5;Utenze e canoni;5;Acqua;15-01-2018;
77;1;0;"6,53";"6,53";ACQUE VERONESI SCARL; ;SALDO Fatt.n. 0350120170800690300  del 29/11/2017 B/Bollettazione;15-01-2018;879;0;140;1;Spese correnti;3;Acquisto di beni e servizi;2;Acquisto di servizi;5;Utenze e canoni;5;Acqua;15-01-2018;
78;1;0;"10,45";"10,45";ACQUE VERONESI SCARL; ;SALDO Fatt.n. 0350120170800690000  del 29/11/2017 B/Bollettazione;15-01-2018;879;0;140;1;Spese correnti;3;Acquisto di beni e servizi;2;Acquisto di servizi;5;Utenze e canoni;5;Acqua;15-01-2018;
79;1;0;"10,45";"10,45";ACQUE VERONESI SCARL; ;SALDO Fatt.n. 0350120170800689800  del 29/11/2017 B/Bollettazione;15-01-2018;879;0;140;1;Spese correnti;3;Acquisto di beni e servizi;2;Acquisto di servizi;5;Utenze e canoni;5;Acqua;15-01-2018;
80;1;0;"3,92";"3,92";ACQUE VERONESI SCARL; ;SALDO Fatt.n. 0350120170800689000  del 29/11/2017 B/Bollettazione;15-01-2018;879;0;140;1;Spese correnti;3;Acquisto di beni e servizi;2;Acquisto di servizi;5;Utenze e canoni;5;Acqua;15-01-2018;
81;1;0;"43,10";"43,10";ACQUE VERONESI SCARL; ;SALDO Fatt.n. 0350120170800689100  del 29/11/2017 B/Bollettazione;15-01-2018;879;0;140;1;Spese correnti;3;Acquisto di beni e servizi;2;Acquisto di servizi;5;Utenze e canoni;5;Acqua;15-01-2018;
82;1;0;"22,20";"22,20";ACQUE VERONESI SCARL; ;SALDO Fatt.n. 0350120170800688500  del 29/11/2017 B/Bollettazione;15-01-2018;879;0;140;1;Spese correnti;3;Acquisto di beni e servizi;2;Acquisto di servizi;5;Utenze e canoni;5;Acqua;15-01-2018;
83;1;0;"10,45";"10,45";ACQUE VERONESI SCARL; ;SALDO Fatt.n. 0350120170800688200  del 29/11/2017 B/Bollettazione;15-01-2018;879;0;140;1;Spese correnti;3;Acquisto di beni e servizi;2;Acquisto di servizi;5;Utenze e canoni;5;Acqua;15-01-2018;
84;1;0;"10,45";"10,45";ACQUE VERONESI SCARL; ;SALDO Fatt.n. 0350120170800688300  del 29/11/2017 B/Bollettazione;15-01-2018;879;0;140;1;Spese correnti;3;Acquisto di beni e servizi;2;Acquisto di servizi;5;Utenze e canoni;5;Acqua;15-01-2018;
85;1;0;"10,45";"10,45";ACQUE VERONESI SCARL; ;SALDO Fatt.n. 0350120170800688100  del 29/11/2017 B/Bollettazione;15-01-2018;879;0;140;1;Spese correnti;3;Acquisto di beni e servizi;2;Acquisto di servizi;5;Utenze e canoni;5;Acqua;15-01-2018;
86;1;0;"10,45";"10,45";ACQUE VERONESI SCARL; ;SALDO Fatt.n. 0350120170800688800  del 29/11/2017 B/Bollettazione;15-01-2018;879;0;140;1;Spese correnti;3;Acquisto di beni e servizi;2;Acquisto di servizi;5;Utenze e canoni;5;Acqua;15-01-2018;
87;1;0;"43,10";"43,10";ACQUE VERONESI SCARL; ;SALDO Fatt.n. 0350120170800687600  del 29/11/2017 B/Bollettazione;15-01-2018;879;0;140;1;Spese correnti;3;Acquisto di beni e servizi;2;Acquisto di servizi;5;Utenze e canoni;5;Acqua;15-01-2018;
88;1;0;"10,45";"10,45";ACQUE VERONESI SCARL; ;SALDO Fatt.n. 0350120170800688600  del 29/11/2017 B/Bollettazione;15-01-2018;879;0;140;1;Spese correnti;3;Acquisto di beni e servizi;2;Acquisto di servizi;5;Utenze e canoni;5;Acqua;15-01-2018;
89;1;0;"10,45";"10,45";ACQUE VERONESI SCARL; ;SALDO Fatt.n. 0350120170800687200  del 29/11/2017 B/Bollettazione;15-01-2018;879;0;140;1;Spese correnti;3;Acquisto di beni e servizi;2;Acquisto di servizi;5;Utenze e canoni;5;Acqua;15-01-2018;
90;1;0;"3,92";"3,92";ACQUE VERONESI SCARL; ;SALDO Fatt.n. 0350120170800690500  del 29/11/2017 B/Bollettazione;15-01-2018;879;0;140;1;Spese correnti;3;Acquisto di beni e servizi;2;Acquisto di servizi;5;Utenze e canoni;5;Acqua;15-01-2018;
91;1;0;"22,20";"22,20";ACQUE VERONESI SCARL; ;SALDO Fatt.n. 0350120170800687800  del 29/11/2017 B/Bollettazione;15-01-2018;879;0;140;1;Spese correnti;3;Acquisto di beni e servizi;2;Acquisto di servizi;5;Utenze e canoni;5;Acqua;15-01-2018;
92;1;0;"6,53";"6,53";ACQUE VERONESI SCARL; ;SALDO Fatt.n. 0350120170800687500  del 29/11/2017 B/Bollettazione;15-01-2018;879;0;140;1;Spese correnti;3;Acquisto di beni e servizi;2;Acquisto di servizi;5;Utenze e canoni;5;Acqua;15-01-2018;
93;1;0;"10,45";"10,45";ACQUE VERONESI SCARL; ;SALDO Fatt.n. 0350120170800689900  del 29/11/2017 B/Bollettazione;15-01-2018;879;0;140;1;Spese correnti;3;Acquisto di beni e servizi;2;Acquisto di servizi;5;Utenze e canoni;5;Acqua;15-01-2018;
94;1;0;"22,20";"22,20";ACQUE VERONESI SCARL; ;SALDO Fatt.n. 0350120170800688400  del 29/11/2017 B/Bollettazione;15-01-2018;879;0;140;1;Spese correnti;3;Acquisto di beni e servizi;2;Acquisto di servizi;5;Utenze e canoni;5;Acqua;15-01-2018;
95;1;0;"10,45";"10,45";ACQUE VERONESI SCARL; ;SALDO Fatt.n. 0350120170800688700  del 29/11/2017 B/Bollettazione;15-01-2018;879;0;140;1;Spese correnti;3;Acquisto di beni e servizi;2;Acquisto di servizi;5;Utenze e canoni;5;Acqua;15-01-2018;
96;1;0;"3,92";"3,92";ACQUE VERONESI SCARL; ;SALDO Fatt.n. 0350120170800689400  del 29/11/2017 B/Bollettazione;15-01-2018;879;0;140;1;Spese correnti;3;Acquisto di beni e servizi;2;Acquisto di servizi;5;Utenze e canoni;5;Acqua;15-01-2018;
97;1;0;"43,10";"43,10";ACQUE VERONESI SCARL; ;SALDO Fatt.n. 0350120170800687300  del 29/11/2017 B/Bollettazione;15-01-2018;359;0;328;1;Spese correnti;3;Acquisto di beni e servizi;2;Acquisto di servizi;5;Utenze e canoni;5;Acqua;15-01-2018;
98;1;0;"65,30";"65,30";ACQUE VERONESI SCARL; ;SALDO Fatt.n. 0350120170800690400  del 29/11/2017 B/Bollettazione;15-01-2018;359;0;328;1;Spese correnti;3;Acquisto di beni e servizi;2;Acquisto di servizi;5;Utenze e canoni;5;Acqua;15-01-2018;
99;1;0;"65,30";"65,30";ACQUE VERONESI SCARL; ;SALDO Fatt.n. 0350120170800689700  del 29/11/2017 B/Bollettazione;15-01-2018;359;0;328;1;Spese correnti;3;Acquisto di beni e servizi;2;Acquisto di servizi;5;Utenze e canoni;5;Acqua;15-01-2018;
100;1;0;"10,45";"10,45";ACQUE VERONESI SCARL; ;SALDO Fatt.n. 0350120170800687900  del 29/11/2017 B/Bollettazione;15-01-2018;359;0;328;1;Spese correnti;3;Acquisto di beni e servizi;2;Acquisto di servizi;5;Utenze e canoni;5;Acqua;15-01-2018;
101;1;0;"10,45";"10,45";ACQUE VERONESI SCARL; ;SALDO Fatt.n. 0350120170800687700  del 29/11/2017 B/Bollettazione;15-01-2018;359;0;328;1;Spese correnti;3;Acquisto di beni e servizi;2;Acquisto di servizi;5;Utenze e canoni;5;Acqua;15-01-2018;
102;1;0;"65,30";"65,30";ACQUE VERONESI SCARL; ;SALDO Fatt.n. 0350120170800691500  del 29/11/2017 B/Bollettazione;15-01-2018;359;0;328;1;Spese correnti;3;Acquisto di beni e servizi;2;Acquisto di servizi;5;Utenze e canoni;5;Acqua;15-01-2018;
103;1;0;"10,45";"10,45";ACQUE VERONESI SCARL; ;SALDO Fatt.n. 0350120170800690800  del 29/11/2017 B/Bollettazione;15-01-2018;359;0;328;1;Spese correnti;3;Acquisto di beni e servizi;2;Acquisto di servizi;5;Utenze e canoni;5;Acqua;15-01-2018;
104;1;0;"109,70";"109,70";ACQUE VERONESI SCARL; ;SALDO Fatt.n. 0350120170800690700  del 29/11/2017 B/Bollettazione;15-01-2018;359;0;328;1;Spese correnti;3;Acquisto di beni e servizi;2;Acquisto di servizi;5;Utenze e canoni;5;Acqua;15-01-2018;
105;1;0;"65,30";"65,30";ACQUE VERONESI SCARL; ;SALDO Fatt.n. 0350120170800691600  del 29/11/2017 B/Bollettazione;15-01-2018;359;0;328;1;Spese correnti;3;Acquisto di beni e servizi;2;Acquisto di servizi;5;Utenze e canoni;5;Acqua;15-01-2018;
106;1;0;"3,92";"3,92";ACQUE VERONESI SCARL; ;SALDO Fatt.n. 0350120170800691300  del 29/11/2017 B/Bollettazione;15-01-2018;359;0;328;1;Spese correnti;3;Acquisto di beni e servizi;2;Acquisto di servizi;5;Utenze e canoni;5;Acqua;15-01-2018;
107;1;0;"2,62";"2,62";ACQUE VERONESI SCARL; ;SALDO Fatt.n. 0350120170800691000  del 29/11/2017 B/Bollettazione;15-01-2018;359;0;328;1;Spese correnti;3;Acquisto di beni e servizi;2;Acquisto di servizi;5;Utenze e canoni;5;Acqua;15-01-2018;
108;1;0;"65,30";"65,30";ACQUE VERONESI SCARL; ;SALDO Fatt.n. 0350120170800691400  del 29/11/2017 B/Bollettazione;15-01-2018;359;0;328;1;Spese correnti;3;Acquisto di beni e servizi;2;Acquisto di servizi;5;Utenze e canoni;5;Acqua;15-01-2018;
109;1;0;"10,45";"10,45";ACQUE VERONESI SCARL; ;SALDO Fatt.n. 0350120170800691200  del 29/11/2017 B/Bollettazione;15-01-2018;359;0;328;1;Spese correnti;3;Acquisto di beni e servizi;2;Acquisto di servizi;5;Utenze e canoni;5;Acqua;15-01-2018;
110;1;0;"65,30";"65,30";ACQUE VERONESI SCARL; ;SALDO Fatt.n. 0350120170800692000  del 29/11/2017 B/Bollettazione;15-01-2018;359;0;328;1;Spese correnti;3;Acquisto di beni e servizi;2;Acquisto di servizi;5;Utenze e canoni;5;Acqua;15-01-2018;
111;1;0;"6,53";"6,53";ACQUE VERONESI SCARL; ;SALDO Fatt.n. 0350120170800692700  del 29/11/2017 B/Bollettazione;15-01-2018;359;0;328;1;Spese correnti;3;Acquisto di beni e servizi;2;Acquisto di servizi;5;Utenze e canoni;5;Acqua;15-01-2018;
112;1;0;"6,53";"6,53";ACQUE VERONESI SCARL; ;SALDO Fatt.n. 0350120170800691100  del 29/11/2017 B/Bollettazione;15-01-2018;359;0;328;1;Spese correnti;3;Acquisto di beni e servizi;2;Acquisto di servizi;5;Utenze e canoni;5;Acqua;15-01-2018;
113;1;0;"87,49";"87,49";ACQUE VERONESI SCARL; ;SALDO Fatt.n. 0350120170800690100  del 29/11/2017 B/Bollettazione;15-01-2018;359;0;328;1;Spese correnti;3;Acquisto di beni e servizi;2;Acquisto di servizi;5;Utenze e canoni;5;Acqua;15-01-2018;
114;1;0;"1.500,00";"1.500,00";DALLA VECCHIA FABRIZIO & C.  SRL;Z101DC67EB;SALDO Fatt.n. 0000008  del 30/11/2017 FATTURA;15-01-2018;292;0;164;1;Spese correnti;3;Acquisto di beni e servizi;2;Acquisto di servizi;9;Manutenzione ordinaria e riparazioni;1;"Manutenzione ordinaria e riparazioni di mezzi di trasporto ad uso civile, di sicurezza e ordine pubblico";15-01-2018;
115;1;0;"2.421,84";"2.421,84";COOPERATIVA SOCIALE MONSCLEDA LAVORO SRL;ZBB1F09313;ACCONTO Fatt.n. 164/2017  del 30/11/2017 FATTURA;15-01-2018;952;0;429;1;Spese correnti;3;Acquisto di beni e servizi;2;Acquisto di servizi;9;Manutenzione ordinaria e riparazioni;8;Manutenzione ordinaria e riparazioni di beni immobili;15-01-2018;
116;1;0;"775,08";"775,08";COOPERATIVA SOCIALE MONSCLEDA LAVORO SRL;ZBB1F09313;SALDO Fatt.n. 164/2017  del 30/11/2017 FATTURA;15-01-2018;352;0;428;1;Spese correnti;3;Acquisto di beni e servizi;2;Acquisto di servizi;9;Manutenzione ordinaria e riparazioni;8;Manutenzione ordinaria e riparazioni di beni immobili;15-01-2018;
117;1;0;"478,24";"478,24";CIDIELLE COOPERATIVA SOCIALE;Z1E1EC391B;SALDO Fatt.n. 201/02  del 30/11/2017 FATTURA;15-01-2018;840;0;326;1;Spese correnti;3;Acquisto di beni e servizi;2;Acquisto di servizi;15;Contratti di servizio pubblico;4;Contratti di servizio per la raccolta rifiuti;15-01-2018;
118;1;0;"478,24";"478,24";CIDIELLE COOPERATIVA SOCIALE;Z1E1EC391B;SALDO Fatt.n. 191/02  del 31/10/2017 fattura;15-01-2018;840;0;326;1;Spese correnti;3;Acquisto di beni e servizi;2;Acquisto di servizi;15;Contratti di servizio pubblico;4;Contratti di servizio per la raccolta rifiuti;15-01-2018;
119;1;0;"1.754,76";"1.754,76";COOPERATIVA SOCIALE VENETA ONLUS;Z431F034F6;SALDO Fatt.n. 000296-2017-PA  del 30/11/2017 fattura;15-01-2018;782;0;454;1;Spese correnti;3;Acquisto di beni e servizi;2;Acquisto di servizi;9;Manutenzione ordinaria e riparazioni;8;Manutenzione ordinaria e riparazioni di beni immobili;15-01-2018;
120;1;0;"129,17";"129,17";LA RONDA - SERVIZI DI VIGILANZA;ZE618FE5E8;SALDO Fatt.n. 0014799  del 30/11/2017 fattura;15-01-2018;357;0;171;1;Spese correnti;3;Acquisto di beni e servizi;2;Acquisto di servizi;13;Servizi ausiliari per il funzionamento dell'ente;1;"Servizi di sorveglianza, custodia e accoglienza";15-01-2018;
121;1;0;"44,03";"142,07";KUWAIT PETROLEUM ITALIA SPA;ZA91845EEC;ACCONTO Fatt.n. PJ00105072  del 30/11/2017 FATTURA;15-01-2018;290;0;238;1;Spese correnti;3;Acquisto di beni e servizi;1;Acquisto di beni;2;Altri beni di consumo;2;"Carburanti, combustibili e lubrificanti";15-01-2018;
121;2;0;"98,04";"142,07";KUWAIT PETROLEUM ITALIA SPA;ZA91845EEC;SALDO Fatt.n. PJ00105072  del 30/11/2017 FATTURA;15-01-2018;290;0;238;1;Spese correnti;3;Acquisto di beni e servizi;1;Acquisto di beni;2;Altri beni di consumo;2;"Carburanti, combustibili e lubrificanti";15-01-2018;
122;1;0;"6.148,80";"6.148,80";SIMEVIGNUDA SPA;Z76202FF29;SALDO Fatt.n. 519  del 30/11/2017 Operazione con scissione dei pagamenti;15-01-2018;970;0;602;1;Spese correnti;3;Acquisto di beni e servizi;2;Acquisto di servizi;9;Manutenzione ordinaria e riparazioni;4;Manutenzione ordinaria e riparazioni di impianti e macchinari;15-01-2018;
123;1;0;"1.318,35";"1.318,35";MATTARANETTA SOCIETA' COOPERATIVA SOCIALE;Z3C1CA95E4;SALDO Fatt.n. 34/FE  del 30/11/2017 FATTURA IMMEDIATA;15-01-2018;840;0;746;1;Spese correnti;3;Acquisto di beni e servizi;2;Acquisto di servizi;15;Contratti di servizio pubblico;4;Contratti di servizio per la raccolta rifiuti;15-01-2018;
124;1;0;"170,80";"341,60";RATTICIDA VENETA SAS DI FERLENGA M. E G.;ZF31F0A617;SALDO Fatt.n. 168/PA  del 30/11/2017 fattura;15-01-2018;465;0;453;1;Spese correnti;3;Acquisto di beni e servizi;2;Acquisto di servizi;99;Altri servizi;999;Altri servizi diversi n.a.c.;15-01-2018;
124;2;0;"170,80";"341,60";RATTICIDA VENETA SAS DI FERLENGA M. E G.;ZF31F0A617;SALDO Fatt.n. 171/PA  del 04/12/2017 FATTURA;15-01-2018;465;0;453;1;Spese correnti;3;Acquisto di beni e servizi;2;Acquisto di servizi;99;Altri servizi;999;Altri servizi diversi n.a.c.;15-01-2018;
125;1;0;"3.402,35";"3.402,35";SISE SISTEMI SEGNALETICI SRL;Z8C1FE7E2D;SALDO Fatt.n. F4-1701138  del 22/11/2017 fattura;15-01-2018;955;0;518;1;Spese correnti;3;Acquisto di beni e servizi;2;Acquisto di servizi;9;Manutenzione ordinaria e riparazioni;8;Manutenzione ordinaria e riparazioni di beni immobili;15-01-2018;
126;1;0;"2.606,04";"2.606,04";ELETTRA SERVICE SNC;Z251D7391F;SALDO Fatt.n. 77/2017  del 31/10/2017 fattura;15-01-2018;352;0;120;1;Spese correnti;3;Acquisto di beni e servizi;2;Acquisto di servizi;9;Manutenzione ordinaria e riparazioni;8;Manutenzione ordinaria e riparazioni di beni immobili;15-01-2018;
127;1;0;"98,62";"98,62";SERVIZIO ELETTRICO NAZIONALE  - Servizio Maggior Tutela;Z141E3AEE8;SALDO Fatt.n. 230621805068238  del 05/11/2017 fattura;15-01-2018;354;0;245;1;Spese correnti;3;Acquisto di beni e servizi;2;Acquisto di servizi;5;Utenze e canoni;4;Energia elettrica;15-01-2018;
128;1;0;"36,56";"36,56";SERVIZIO ELETTRICO NAZIONALE  - Servizio Maggior Tutela;Z141E3AEE8;SALDO Fatt.n. 230600455010038  del 04/11/2017 fattura;15-01-2018;354;0;245;1;Spese correnti;3;Acquisto di beni e servizi;2;Acquisto di servizi;5;Utenze e canoni;4;Energia elettrica;15-01-2018;
129;1;0;"48,10";"48,10";SERVIZIO ELETTRICO NAZIONALE  - Servizio Maggior Tutela;Z141E3AEE8;SALDO Fatt.n. 230620403066038  del 04/11/2017 fattura;15-01-2018;354;0;245;1;Spese correnti;3;Acquisto di beni e servizi;2;Acquisto di servizi;5;Utenze e canoni;4;Energia elettrica;15-01-2018;
130;1;0;"46,41";"46,41";SERVIZIO ELETTRICO NAZIONALE  - Servizio Maggior Tutela;Z141E3AEE8;SALDO Fatt.n. 230621805073038  del 04/11/2017 fattura;15-01-2018;354;0;245;1;Spese correnti;3;Acquisto di beni e servizi;2;Acquisto di servizi;5;Utenze e canoni;4;Energia elettrica;15-01-2018;
131;1;0;"3,51";"3,51";SERVIZIO ELETTRICO NAZIONALE  - Servizio Maggior Tutela;Z141E3AEE8;SALDO Fatt.n. 230604105066038  del 04/11/2017 fattura;15-01-2018;354;0;245;1;Spese correnti;3;Acquisto di beni e servizi;2;Acquisto di servizi;5;Utenze e canoni;4;Energia elettrica;15-01-2018;
132;1;0;"206,35";"206,35";SERVIZIO ELETTRICO NAZIONALE  - Servizio Maggior Tutela;Z141E3AEE8;SALDO Fatt.n. 230604105065668  del 04/11/2017 fattura;15-01-2018;354;0;245;1;Spese correnti;3;Acquisto di beni e servizi;2;Acquisto di servizi;5;Utenze e canoni;4;Energia elettrica;15-01-2018;
133;1;0;"286,04";"286,04";SERVIZIO ELETTRICO NAZIONALE  - Servizio Maggior Tutela;ZC41E38DF2;SALDO Fatt.n. 230602855044848  del 24/11/2017 FATTURA;15-01-2018;960;0;239;1;Spese correnti;3;Acquisto di beni e servizi;2;Acquisto di servizi;5;Utenze e canoni;4;Energia elettrica;15-01-2018;
134;1;0;"628,31";"628,31";SERVIZIO ELETTRICO NAZIONALE  - Servizio Maggior Tutela;ZC41E38DF2;SALDO Fatt.n. 230603905013738  del 24/11/2017 FATTURA;15-01-2018;960;0;239;1;Spese correnti;3;Acquisto di beni e servizi;2;Acquisto di servizi;5;Utenze e canoni;4;Energia elettrica;15-01-2018;
135;1;0;"300,07";"300,07";SERVIZIO ELETTRICO NAZIONALE  - Servizio Maggior Tutela;ZC41E38DF2;SALDO Fatt.n. 230604005028258  del 03/11/2017 fattura;15-01-2018;960;0;239;1;Spese correnti;3;Acquisto di beni e servizi;2;Acquisto di servizi;5;Utenze e canoni;4;Energia elettrica;15-01-2018;
136;1;0;"217,64";"217,64";SERVIZIO ELETTRICO NAZIONALE  - Servizio Maggior Tutela;Z141E3AEE8;SALDO Fatt.n. 230604105070048  del 04/11/2017 FATTURA;15-01-2018;211;0;244;1;Spese correnti;3;Acquisto di beni e servizi;2;Acquisto di servizi;5;Utenze e canoni;4;Energia elettrica;15-01-2018;
137;1;0;"-122,00";"732,00";BIESSE SRL - SISMA;Z981E4FB91;SALDO Fatt.n. 0000028  del 27/09/2017 fattura;15-01-2018;115;0;272;1;Spese correnti;3;Acquisto di beni e servizi;2;Acquisto di servizi;11;Prestazioni professionali e specialistiche;999;Altre prestazioni professionali e specialistiche n.a.c.;15-01-2018;
137;2;0;"305,00";"732,00";BIESSE SRL - SISMA;Z981E4FB91;SALDO Fatt.n. 0000038  del 30/11/2017 FATTURA;15-01-2018;115;0;272;1;Spese correnti;3;Acquisto di beni e servizi;2;Acquisto di servizi;11;Prestazioni professionali e specialistiche;999;Altre prestazioni professionali e specialistiche n.a.c.;15-01-2018;
137;3;0;"549,00";"732,00";BIESSE SRL - SISMA;Z981E4FB91;SALDO Fatt.n. 0000027  del 26/09/2017 fattura;15-01-2018;115;0;272;1;Spese correnti;3;Acquisto di beni e servizi;2;Acquisto di servizi;11;Prestazioni professionali e specialistiche;999;Altre prestazioni professionali e specialistiche n.a.c.;15-01-2018;
138;1;0;"561,20";"561,20";TIPOGRAFIA CENTRALE SAS;Z0121151F4;SALDO Fatt.n. FATTPA 32_17  del 06/12/2017 FATTURA;15-01-2018;686;0;714;1;Spese correnti;3;Acquisto di beni e servizi;2;Acquisto di servizi;2;"Organizzazione eventi, pubblicita` e servizi per trasferta";5;Organizzazione e partecipazione a manifestazioni e convegni;15-01-2018;
139;1;0;"3.507,50";"3.507,50";INNOVA PA SRL;ZB71FC3F72;SALDO Fatt.n. FATTPA 118_17  del 30/11/2017 fattura;16-01-2018;378;0;490;1;Spese correnti;3;Acquisto di beni e servizi;2;Acquisto di servizi;16;Servizi amministrativi;999;Altre spese per servizi amministrativi;16-01-2018;
140;1;0;"200,00";"200,00";ASTROFILI VAL D'ILLASI; ;"IMPEGNO ED EROGAZIONE CONTRIBUTO ECONOMICO ALL'ASSOCIAZIONE ASTROFILI VAL D'ILLASI, APPROVATO CON DELIBERA DI GIUNTA COMUNALE N.138/2017.";16-01-2018;891;2;771;1;Spese correnti;4;Trasferimenti correnti;4;Trasferimenti correnti a Istituzioni Sociali Private;1;Trasferimenti correnti a Istituzioni Sociali Private;1;Trasferimenti correnti a Istituzioni Sociali Private;16-01-2018;
141;1;0;"184,80";"184,80";PRO LOCO DI CALDIERO; ;"INIZIATIVA ""CASTAGNATA E VINO TORBOLINO - 05 NOVEMBRE 2017"" A CURA DELL'ASSOCIAZIONE PROLOCO DI CALDIERO, EROGAZIONE CONTRIBUTO A CONSUNTIVO";16-01-2018;690;0;675;1;Spese correnti;4;Trasferimenti correnti;4;Trasferimenti correnti a Istituzioni Sociali Private;1;Trasferimenti correnti a Istituzioni Sociali Private;1;Trasferimenti correnti a Istituzioni Sociali Private;16-01-2018;
142;1;0;"500,00";"500,00";ASSOCIAZ. SPORTIVA DILETTANTISTICA - U.C. VAL D'ILLASI; ;"EROGAZIONE CONTRIBUTO ECONOMICO ALL'ASSOCIAZIONE U.C. VAL D'ILLASI, APPROVATO CON DELIBERA DI GIUNTA COMUNALE N.140 DEL 20.12.2017";16-01-2018;891;2;770;1;Spese correnti;4;Trasferimenti correnti;4;Trasferimenti correnti a Istituzioni Sociali Private;1;Trasferimenti correnti a Istituzioni Sociali Private;1;Trasferimenti correnti a Istituzioni Sociali Private;16-01-2018;
143;1;0;"600,00";"600,00";ASSOCIAZIONE NOI CALDIERINO -  EX CIRC. ANSPI (ONLUS); ;"EROGAZIONE CONTRIBUTO ECONOMICO ALL'ASSOCIAZIONE NOI CALDIERINO PER LE ATTIVITA' EDUCATIVE-RICREATIVE REALIZZATE NELL'ANNO 2017, APPROVATO CON DELIBERA DI GIUNTA N.139 DEL 20.12.2017.";16-01-2018;895;0;769;1;Spese correnti;4;Trasferimenti correnti;4;Trasferimenti correnti a Istituzioni Sociali Private;1;Trasferimenti correnti a Istituzioni Sociali Private;1;Trasferimenti correnti a Istituzioni Sociali Private;16-01-2018;
144;1;0;"800,00";"800,00";BANDA ALPINA CITTA' DI CALDIERO; ;EROGAZIONE CONTRIBUTO ECONOMICO ALL'ASSOCIAZIONE BANDA ALPINA CITTA' DI CALDIERO A SOSTEGNO DELLE ATTIVITA' MUSICALI DEL CORRENTE ANNO 2017.;16-01-2018;895;0;604;1;Spese correnti;4;Trasferimenti correnti;4;Trasferimenti correnti a Istituzioni Sociali Private;1;Trasferimenti correnti a Istituzioni Sociali Private;1;Trasferimenti correnti a Istituzioni Sociali Private;16-01-2018;
145;1;0;"130,00";"130,00";DALLA VALENTINA ANTONELLA; ;SERVIZIO ELETTORALE: REFERENDUM REGIONALE CONSULTIVO DEL 17-12-2017 SULLA FUSIONE TRA I COMUNI DI BELFIORE E CALDIERO - LIQUIDAZIONE COMPENSI AI COMPONENTI DEI SEGGI ELETTORALI.;16-01-2018;15;3;759;1;Spese correnti;3;Acquisto di beni e servizi;2;Acquisto di servizi;1;Organi e incarichi istituzionali dell'amministrazione;7;Commissioni elettorali;16-01-2018;
146;1;0;"104,00";"104,00";SANTOLIN CRISTINA; ;SERVIZIO ELETTORALE: REFERENDUM REGIONALE CONSULTIVO DEL 17-12-2017 SULLA FUSIONE TRA I COMUNI DI BELFIORE E CALDIERO - LIQUIDAZIONE COMPENSI AI COMPONENTI DEI SEGGI ELETTORALI.;16-01-2018;15;3;759;1;Spese correnti;3;Acquisto di beni e servizi;2;Acquisto di servizi;1;Organi e incarichi istituzionali dell'amministrazione;7;Commissioni elettorali;16-01-2018;
147;1;0;"104,00";"104,00";ANDREETTA RICCARDO; ;SERVIZIO ELETTORALE: REFERENDUM REGIONALE CONSULTIVO DEL 17-12-2017 SULLA FUSIONE TRA I COMUNI DI BELFIORE E CALDIERO - LIQUIDAZIONE COMPENSI AI COMPONENTI DEI SEGGI ELETTORALI.;16-01-2018;15;3;759;1;Spese correnti;3;Acquisto di beni e servizi;2;Acquisto di servizi;1;Organi e incarichi istituzionali dell'amministrazione;7;Commissioni elettorali;16-01-2018;
148;1;0;"104,00";"104,00";BEATRICE LUCIA; ;SERVIZIO ELETTORALE: REFERENDUM REGIONALE CONSULTIVO DEL 17-12-2017 SULLA FUSIONE TRA I COMUNI DI BELFIORE E CALDIERO - LIQUIDAZIONE COMPENSI AI COMPONENTI DEI SEGGI ELETTORALI.;16-01-2018;15;3;759;1;Spese correnti;3;Acquisto di beni e servizi;2;Acquisto di servizi;1;Organi e incarichi istituzionali dell'amministrazione;7;Commissioni elettorali;16-01-2018;
149;1;0;"104,00";"104,00";BELTRAME MIRCO; ;SERVIZIO ELETTORALE: REFERENDUM REGIONALE CONSULTIVO DEL 17-12-2017 SULLA FUSIONE TRA I COMUNI DI BELFIORE E CALDIERO - LIQUIDAZIONE COMPENSI AI COMPONENTI DEI SEGGI ELETTORALI.;16-01-2018;15;3;759;1;Spese correnti;3;Acquisto di beni e servizi;2;Acquisto di servizi;1;Organi e incarichi istituzionali dell'amministrazione;7;Commissioni elettorali;16-01-2018;
150;1;0;"130,00";"130,00";BONAMINI MONICA; ;SERVIZIO ELETTORALE: REFERENDUM REGIONALE CONSULTIVO DEL 17-12-2017 SULLA FUSIONE TRA I COMUNI DI BELFIORE E CALDIERO - LIQUIDAZIONE COMPENSI AI COMPONENTI DEI SEGGI ELETTORALI.;16-01-2018;15;3;759;1;Spese correnti;3;Acquisto di beni e servizi;2;Acquisto di servizi;1;Organi e incarichi istituzionali dell'amministrazione;7;Commissioni elettorali;16-01-2018;
151;1;0;"104,00";"104,00";BONAMINI FRANCESCA; ;SERVIZIO ELETTORALE: REFERENDUM REGIONALE CONSULTIVO DEL 17-12-2017 SULLA FUSIONE TRA I COMUNI DI BELFIORE E CALDIERO - LIQUIDAZIONE COMPENSI AI COMPONENTI DEI SEGGI ELETTORALI.;16-01-2018;15;3;759;1;Spese correnti;3;Acquisto di beni e servizi;2;Acquisto di servizi;1;Organi e incarichi istituzionali dell'amministrazione;7;Commissioni elettorali;16-01-2018;
152;1;0;"104,00";"104,00";BERGAMASCO MASSIMO TRANQUILLO; ;SERVIZIO ELETTORALE: REFERENDUM REGIONALE CONSULTIVO DEL 17-12-2017 SULLA FUSIONE TRA I COMUNI DI BELFIORE E CALDIERO - LIQUIDAZIONE COMPENSI AI COMPONENTI DEI SEGGI ELETTORALI.;16-01-2018;15;3;759;1;Spese correnti;3;Acquisto di beni e servizi;2;Acquisto di servizi;1;Organi e incarichi istituzionali dell'amministrazione;7;Commissioni elettorali;16-01-2018;
153;1;0;"104,00";"104,00";PIUBELLI ELISA; ;SERVIZIO ELETTORALE: REFERENDUM REGIONALE CONSULTIVO DEL 17-12-2017 SULLA FUSIONE TRA I COMUNI DI BELFIORE E CALDIERO - LIQUIDAZIONE COMPENSI AI COMPONENTI DEI SEGGI ELETTORALI.;16-01-2018;15;3;759;1;Spese correnti;3;Acquisto di beni e servizi;2;Acquisto di servizi;1;Organi e incarichi istituzionali dell'amministrazione;7;Commissioni elettorali;16-01-2018;
154;1;0;"104,00";"104,00";RUZZENE ANDREA; ;SERVIZIO ELETTORALE: REFERENDUM REGIONALE CONSULTIVO DEL 17-12-2017 SULLA FUSIONE TRA I COMUNI DI BELFIORE E CALDIERO - LIQUIDAZIONE COMPENSI AI COMPONENTI DEI SEGGI ELETTORALI.;16-01-2018;15;3;759;1;Spese correnti;3;Acquisto di beni e servizi;2;Acquisto di servizi;1;Organi e incarichi istituzionali dell'amministrazione;7;Commissioni elettorali;16-01-2018;
155;1;0;"130,00";"130,00";DE MARTINO GIUSEPPE; ;SERVIZIO ELETTORALE: REFERENDUM REGIONALE CONSULTIVO DEL 17-12-2017 SULLA FUSIONE TRA I COMUNI DI BELFIORE E CALDIERO - LIQUIDAZIONE COMPENSI AI COMPONENTI DEI SEGGI ELETTORALI.;16-01-2018;15;3;759;1;Spese correnti;3;Acquisto di beni e servizi;2;Acquisto di servizi;1;Organi e incarichi istituzionali dell'amministrazione;7;Commissioni elettorali;16-01-2018;
156;1;0;"104,00";"104,00";DE MARTINO ELENA; ;SERVIZIO ELETTORALE: REFERENDUM REGIONALE CONSULTIVO DEL 17-12-2017 SULLA FUSIONE TRA I COMUNI DI BELFIORE E CALDIERO - LIQUIDAZIONE COMPENSI AI COMPONENTI DEI SEGGI ELETTORALI.;16-01-2018;15;3;759;1;Spese correnti;3;Acquisto di beni e servizi;2;Acquisto di servizi;1;Organi e incarichi istituzionali dell'amministrazione;7;Commissioni elettorali;16-01-2018;
157;1;0;"104,00";"104,00";BASSOTTO SIMONE; ;SERVIZIO ELETTORALE: REFERENDUM REGIONALE CONSULTIVO DEL 17-12-2017 SULLA FUSIONE TRA I COMUNI DI BELFIORE E CALDIERO - LIQUIDAZIONE COMPENSI AI COMPONENTI DEI SEGGI ELETTORALI.;16-01-2018;15;3;759;1;Spese correnti;3;Acquisto di beni e servizi;2;Acquisto di servizi;1;Organi e incarichi istituzionali dell'amministrazione;7;Commissioni elettorali;16-01-2018;
158;1;0;"104,00";"104,00";DAL FORNO GIADA; ;SERVIZIO ELETTORALE: REFERENDUM REGIONALE CONSULTIVO DEL 17-12-2017 SULLA FUSIONE TRA I COMUNI DI BELFIORE E CALDIERO - LIQUIDAZIONE COMPENSI AI COMPONENTI DEI SEGGI ELETTORALI.;16-01-2018;15;3;759;1;Spese correnti;3;Acquisto di beni e servizi;2;Acquisto di servizi;1;Organi e incarichi istituzionali dell'amministrazione;7;Commissioni elettorali;16-01-2018;
159;1;0;"104,00";"104,00";TRUONG THI BICH PHUONG; ;SERVIZIO ELETTORALE: REFERENDUM REGIONALE CONSULTIVO DEL 17-12-2017 SULLA FUSIONE TRA I COMUNI DI BELFIORE E CALDIERO - LIQUIDAZIONE COMPENSI AI COMPONENTI DEI SEGGI ELETTORALI.;16-01-2018;15;3;759;1;Spese correnti;3;Acquisto di beni e servizi;2;Acquisto di servizi;1;Organi e incarichi istituzionali dell'amministrazione;7;Commissioni elettorali;16-01-2018;
160;1;0;"130,00";"130,00";ZAMPICININI ANDREA; ;SERVIZIO ELETTORALE: REFERENDUM REGIONALE CONSULTIVO DEL 17-12-2017 SULLA FUSIONE TRA I COMUNI DI BELFIORE E CALDIERO - LIQUIDAZIONE COMPENSI AI COMPONENTI DEI SEGGI ELETTORALI.;16-01-2018;15;3;759;1;Spese correnti;3;Acquisto di beni e servizi;2;Acquisto di servizi;1;Organi e incarichi istituzionali dell'amministrazione;7;Commissioni elettorali;16-01-2018;
161;1;0;"104,00";"104,00";VISENTIN MADDALENA; ;SERVIZIO ELETTORALE: REFERENDUM REGIONALE CONSULTIVO DEL 17-12-2017 SULLA FUSIONE TRA I COMUNI DI BELFIORE E CALDIERO - LIQUIDAZIONE COMPENSI AI COMPONENTI DEI SEGGI ELETTORALI.;16-01-2018;15;3;759;1;Spese correnti;3;Acquisto di beni e servizi;2;Acquisto di servizi;1;Organi e incarichi istituzionali dell'amministrazione;7;Commissioni elettorali;16-01-2018;
162;1;0;"104,00";"104,00";CASTAGNARO TATIANA; ;SERVIZIO ELETTORALE: REFERENDUM REGIONALE CONSULTIVO DEL 17-12-2017 SULLA FUSIONE TRA I COMUNI DI BELFIORE E CALDIERO - LIQUIDAZIONE COMPENSI AI COMPONENTI DEI SEGGI ELETTORALI.;16-01-2018;15;3;759;1;Spese correnti;3;Acquisto di beni e servizi;2;Acquisto di servizi;1;Organi e incarichi istituzionali dell'amministrazione;7;Commissioni elettorali;16-01-2018;
163;1;0;"104,00";"104,00";MALATESTA MARINA; ;SERVIZIO ELETTORALE: REFERENDUM REGIONALE CONSULTIVO DEL 17-12-2017 SULLA FUSIONE TRA I COMUNI DI BELFIORE E CALDIERO - LIQUIDAZIONE COMPENSI AI COMPONENTI DEI SEGGI ELETTORALI.;16-01-2018;15;3;759;1;Spese correnti;3;Acquisto di beni e servizi;2;Acquisto di servizi;1;Organi e incarichi istituzionali dell'amministrazione;7;Commissioni elettorali;16-01-2018;
164;1;0;"104,00";"104,00";TREGNAGHI LUCREZIA; ;SERVIZIO ELETTORALE: REFERENDUM REGIONALE CONSULTIVO DEL 17-12-2017 SULLA FUSIONE TRA I COMUNI DI BELFIORE E CALDIERO - LIQUIDAZIONE COMPENSI AI COMPONENTI DEI SEGGI ELETTORALI.;16-01-2018;15;3;759;1;Spese correnti;3;Acquisto di beni e servizi;2;Acquisto di servizi;1;Organi e incarichi istituzionali dell'amministrazione;7;Commissioni elettorali;16-01-2018;
165;1;0;"130,00";"130,00";MALATESTA ANDREA; ;SERVIZIO ELETTORALE: REFERENDUM REGIONALE CONSULTIVO DEL 17-12-2017 SULLA FUSIONE TRA I COMUNI DI BELFIORE E CALDIERO - LIQUIDAZIONE COMPENSI AI COMPONENTI DEI SEGGI ELETTORALI.;16-01-2018;15;3;759;1;Spese correnti;3;Acquisto di beni e servizi;2;Acquisto di servizi;1;Organi e incarichi istituzionali dell'amministrazione;7;Commissioni elettorali;16-01-2018;
166;1;0;"104,00";"104,00";ZERMIANI SIMONETTA; ;SERVIZIO ELETTORALE: REFERENDUM REGIONALE CONSULTIVO DEL 17-12-2017 SULLA FUSIONE TRA I COMUNI DI BELFIORE E CALDIERO - LIQUIDAZIONE COMPENSI AI COMPONENTI DEI SEGGI ELETTORALI.;16-01-2018;15;3;759;1;Spese correnti;3;Acquisto di beni e servizi;2;Acquisto di servizi;1;Organi e incarichi istituzionali dell'amministrazione;7;Commissioni elettorali;16-01-2018;
167;1;0;"104,00";"104,00";FAGNO ELENA; ;SERVIZIO ELETTORALE: REFERENDUM REGIONALE CONSULTIVO DEL 17-12-2017 SULLA FUSIONE TRA I COMUNI DI BELFIORE E CALDIERO - LIQUIDAZIONE COMPENSI AI COMPONENTI DEI SEGGI ELETTORALI.;16-01-2018;15;3;759;1;Spese correnti;3;Acquisto di beni e servizi;2;Acquisto di servizi;1;Organi e incarichi istituzionali dell'amministrazione;7;Commissioni elettorali;16-01-2018;
168;1;0;"104,00";"104,00";LUCIANI FABIO; ;SERVIZIO ELETTORALE: REFERENDUM REGIONALE CONSULTIVO DEL 17-12-2017 SULLA FUSIONE TRA I COMUNI DI BELFIORE E CALDIERO - LIQUIDAZIONE COMPENSI AI COMPONENTI DEI SEGGI ELETTORALI.;16-01-2018;15;3;759;1;Spese correnti;3;Acquisto di beni e servizi;2;Acquisto di servizi;1;Organi e incarichi istituzionali dell'amministrazione;7;Commissioni elettorali;16-01-2018;
169;1;0;"104,00";"104,00";NUZZO GABRIELE; ;SERVIZIO ELETTORALE: REFERENDUM REGIONALE CONSULTIVO DEL 17-12-2017 SULLA FUSIONE TRA I COMUNI DI BELFIORE E CALDIERO - LIQUIDAZIONE COMPENSI AI COMPONENTI DEI SEGGI ELETTORALI.;16-01-2018;15;3;759;1;Spese correnti;3;Acquisto di beni e servizi;2;Acquisto di servizi;1;Organi e incarichi istituzionali dell'amministrazione;7;Commissioni elettorali;16-01-2018;
170;1;0;"130,00";"130,00";SANDRINI PAOLO; ;SERVIZIO ELETTORALE: REFERENDUM REGIONALE CONSULTIVO DEL 17-12-2017 SULLA FUSIONE TRA I COMUNI DI BELFIORE E CALDIERO - LIQUIDAZIONE COMPENSI AI COMPONENTI DEI SEGGI ELETTORALI.;16-01-2018;15;3;759;1;Spese correnti;3;Acquisto di beni e servizi;2;Acquisto di servizi;1;Organi e incarichi istituzionali dell'amministrazione;7;Commissioni elettorali;16-01-2018;
171;1;0;"104,00";"104,00";TROTTI ILARIA; ;SERVIZIO ELETTORALE: REFERENDUM REGIONALE CONSULTIVO DEL 17-12-2017 SULLA FUSIONE TRA I COMUNI DI BELFIORE E CALDIERO - LIQUIDAZIONE COMPENSI AI COMPONENTI DEI SEGGI ELETTORALI.;16-01-2018;15;3;759;1;Spese correnti;3;Acquisto di beni e servizi;2;Acquisto di servizi;1;Organi e incarichi istituzionali dell'amministrazione;7;Commissioni elettorali;16-01-2018;
172;1;0;"104,00";"104,00";CONTRI SAMANTHA; ;SERVIZIO ELETTORALE: REFERENDUM REGIONALE CONSULTIVO DEL 17-12-2017 SULLA FUSIONE TRA I COMUNI DI BELFIORE E CALDIERO - LIQUIDAZIONE COMPENSI AI COMPONENTI DEI SEGGI ELETTORALI.;16-01-2018;15;3;759;1;Spese correnti;3;Acquisto di beni e servizi;2;Acquisto di servizi;1;Organi e incarichi istituzionali dell'amministrazione;7;Commissioni elettorali;16-01-2018;
173;1;0;"104,00";"104,00";ROMANATO NICOLA; ;SERVIZIO ELETTORALE: REFERENDUM REGIONALE CONSULTIVO DEL 17-12-2017 SULLA FUSIONE TRA I COMUNI DI BELFIORE E CALDIERO - LIQUIDAZIONE COMPENSI AI COMPONENTI DEI SEGGI ELETTORALI.;16-01-2018;15;3;759;1;Spese correnti;3;Acquisto di beni e servizi;2;Acquisto di servizi;1;Organi e incarichi istituzionali dell'amministrazione;7;Commissioni elettorali;16-01-2018;
174;1;0;"104,00";"104,00";TONELLO ROSANNA; ;SERVIZIO ELETTORALE: REFERENDUM REGIONALE CONSULTIVO DEL 17-12-2017 SULLA FUSIONE TRA I COMUNI DI BELFIORE E CALDIERO - LIQUIDAZIONE COMPENSI AI COMPONENTI DEI SEGGI ELETTORALI.;16-01-2018;15;3;759;1;Spese correnti;3;Acquisto di beni e servizi;2;Acquisto di servizi;1;Organi e incarichi istituzionali dell'amministrazione;7;Commissioni elettorali;16-01-2018;
175;1;0;"31,23";"812,03";STUDIO GIALLO SRL;Z121CD1C77;SALDO Fatt.n. 2/11  del 04/01/2018 FATTURA 2/11 del 04/01/18_ELAB. BUSTE PAGA 4Â° TRIM. 17;16-01-2018;378;0;6;1;Spese correnti;3;Acquisto di beni e servizi;2;Acquisto di servizi;16;Servizi amministrativi;999;Altre spese per servizi amministrativi;16-01-2018;
175;2;0;"780,80";"812,03";STUDIO GIALLO SRL;Z121CD1C77;ACCONTO Fatt.n. 2/11  del 04/01/2018 FATTURA 2/11 del 04/01/18_ELAB. BUSTE PAGA 4Â° TRIM. 17;16-01-2018;378;0;6;1;Spese correnti;3;Acquisto di beni e servizi;2;Acquisto di servizi;16;Servizi amministrativi;999;Altre spese per servizi amministrativi;16-01-2018;
176;1;0;"3.825,00";"3.825,00";AMMINISTRATORI COMUNALI; ;LIQUIDAZIONE INDENNITA' DI CARICA MESE DI GENNAIO 2018;19-01-2018;10;0;4;1;Spese correnti;3;Acquisto di beni e servizi;2;Acquisto di servizi;1;Organi e incarichi istituzionali dell'amministrazione;1;Organi istituzionali dell'amministrazione - Indennità;19-01-2018;
210;1;0;"500,00";"500,00";FORMAGGIO CRISTINA; ;PERSONALE - CONCORSO PUBBLICO PER ESAMI PER LA COPERTURA DI N.1 POSTO A TEMPO PIENO E INDETERMINATO DI ISTRUTTORE DIRETTIVO TECNICO CATEGORIA GIURIDICA D - POSIZIONE ECONOMICA D1 - NOMINA COMMISSIONE ESAMINATRICE;19-01-2018;100;0;459;1;Spese correnti;3;Acquisto di beni e servizi;2;Acquisto di servizi;11;Prestazioni professionali e specialistiche;999;Altre prestazioni professionali e specialistiche n.a.c.;19-01-2018;
250;1;0;"5.075,20";"5.075,20";PROJECT SCARL;Z301A4DFE7;SALDO Fatt.n. FATTPA 2_18  del 15/01/2018 FATTURA;29-01-2018;270;0;346;1;Spese correnti;3;Acquisto di beni e servizi;2;Acquisto di servizi;11;Prestazioni professionali e specialistiche;999;Altre prestazioni professionali e specialistiche n.a.c.;29-01-2018;
251;1;0;"597,80";"597,80";CIDIELLE COOPERATIVA SOCIALE;Z1E1EC391B;SALDO Fatt.n. 235/02  del 31/12/2017 FATTURA;29-01-2018;840;0;326;1;Spese correnti;3;Acquisto di beni e servizi;2;Acquisto di servizi;15;Contratti di servizio pubblico;4;Contratti di servizio per la raccolta rifiuti;29-01-2018;
252;1;0;"17.043,40";"17.043,40";CIDIELLE COOPERATIVA SOCIALE;7021711339;SALDO Fatt.n. 240/02  del 31/12/2017 FATTURA;29-01-2018;870;0;325;1;Spese correnti;3;Acquisto di beni e servizi;2;Acquisto di servizi;9;Manutenzione ordinaria e riparazioni;8;Manutenzione ordinaria e riparazioni di beni immobili;29-01-2018;
253;1;0;"636,78";"636,78";SVAI SPA;Z951D737EF;SALDO Fatt.n. 300581  del 30/12/2017 IDEM;29-01-2018;350;0;117;1;Spese correnti;3;Acquisto di beni e servizi;1;Acquisto di beni;2;Altri beni di consumo;999;Altri beni e materiali di consumo n.a.c.;29-01-2018;
254;1;0;"60,99";"254,80";SVAI SPA;Z951D737EF;SALDO Fatt.n. 300584  del 30/12/2017 IDEM;29-01-2018;350;0;117;1;Spese correnti;3;Acquisto di beni e servizi;1;Acquisto di beni;2;Altri beni di consumo;999;Altri beni e materiali di consumo n.a.c.;29-01-2018;
254;2;0;"193,81";"254,80";SVAI SPA;Z951D737EF;ACCONTO Fatt.n. 300584  del 30/12/2017 IDEM;29-01-2018;350;0;117;1;Spese correnti;3;Acquisto di beni e servizi;1;Acquisto di beni;2;Altri beni di consumo;999;Altri beni e materiali di consumo n.a.c.;29-01-2018;
255;1;0;"427,43";"427,43";SVAI SPA;Z951D737EF;SALDO Fatt.n. 300583  del 30/12/2017 IDEM;29-01-2018;350;0;117;1;Spese correnti;3;Acquisto di beni e servizi;1;Acquisto di beni;2;Altri beni di consumo;999;Altri beni e materiali di consumo n.a.c.;29-01-2018;
256;1;0;"636,78";"636,78";SVAI SPA;Z951D737EF;SALDO Fatt.n. 300582  del 30/12/2017 IDEM;29-01-2018;350;0;117;1;Spese correnti;3;Acquisto di beni e servizi;1;Acquisto di beni;2;Altri beni di consumo;999;Altri beni e materiali di consumo n.a.c.;29-01-2018;
257;1;0;"2.313,67";"2.313,67";COOPERATIVA SOCIALE MONSCLEDA LAVORO SRL;ZBB1F09313;ACCONTO Fatt.n. 203/2017  del 31/12/2017 FATTURA;29-01-2018;952;0;429;1;Spese correnti;3;Acquisto di beni e servizi;2;Acquisto di servizi;9;Manutenzione ordinaria e riparazioni;8;Manutenzione ordinaria e riparazioni di beni immobili;29-01-2018;
258;1;0;"849,00";"849,00";COOPERATIVA SOCIALE MONSCLEDA LAVORO SRL;ZBB1F09313;SALDO Fatt.n. 203/2017  del 31/12/2017 FATTURA;29-01-2018;952;0;429;1;Spese correnti;3;Acquisto di beni e servizi;2;Acquisto di servizi;9;Manutenzione ordinaria e riparazioni;8;Manutenzione ordinaria e riparazioni di beni immobili;29-01-2018;
259;1;0;"120,78";"241,56";PIZZEGHELLA E STEVAN SRL STEVAN;Z711CA7713;SALDO Fatt.n. 4  del 02/01/2018 FATTURA;29-01-2018;352;0;763;1;Spese correnti;3;Acquisto di beni e servizi;2;Acquisto di servizi;9;Manutenzione ordinaria e riparazioni;8;Manutenzione ordinaria e riparazioni di beni immobili;29-01-2018;
259;2;0;"120,78";"241,56";PIZZEGHELLA E STEVAN SRL STEVAN;Z711CA7713;SALDO Fatt.n. 3  del 02/01/2018 FATTURA;29-01-2018;352;0;763;1;Spese correnti;3;Acquisto di beni e servizi;2;Acquisto di servizi;9;Manutenzione ordinaria e riparazioni;8;Manutenzione ordinaria e riparazioni di beni immobili;29-01-2018;
260;1;0;"4.989,80";"4.989,80";ZAMPINI CARLO - NON VALIDO;ZCC20F792D;"SALDO Fatt.n. 6/PA  del 12/01/2018 Determina n. 132/2017, impegno di spesa n. 685/2017, responsabile procedimento Pasetto Arch. Alessio";29-01-2018;142;0;685;1;Spese correnti;3;Acquisto di beni e servizi;2;Acquisto di servizi;99;Altri servizi;999;Altri servizi diversi n.a.c.;29-01-2018;
261;1;0;"1.994,70";"1.994,70";ELETTRA SERVICE SNC;Z251D7391F;SALDO Fatt.n. 108/2017  del 28/12/2017 FATTURA;29-01-2018;352;0;120;1;Spese correnti;3;Acquisto di beni e servizi;2;Acquisto di servizi;9;Manutenzione ordinaria e riparazioni;8;Manutenzione ordinaria e riparazioni di beni immobili;29-01-2018;
262;1;0;"299,14";"299,14";CALDIERO GOMME DI GROBBERIO L.;Z161DC6793;SALDO Fatt.n. 699  del 28/12/2017 FATTURA IMMEDIATA;29-01-2018;292;0;162;1;Spese correnti;3;Acquisto di beni e servizi;2;Acquisto di servizi;9;Manutenzione ordinaria e riparazioni;1;"Manutenzione ordinaria e riparazioni di mezzi di trasporto ad uso civile, di sicurezza e ordine pubblico";29-01-2018;
263;1;0;"807,88";"807,88";DALLA VECCHIA FABRIZIO & C.  SRL;Z101DC67EB;ACCONTO Fatt.n. 0000011/PA  del 29/12/2017 FATTURA;29-01-2018;352;0;751;1;Spese correnti;3;Acquisto di beni e servizi;2;Acquisto di servizi;9;Manutenzione ordinaria e riparazioni;8;Manutenzione ordinaria e riparazioni di beni immobili;29-01-2018;
264;1;0;"335,54";"335,54";DALLA VECCHIA FABRIZIO & C.  SRL;Z101DC67EB;SALDO Fatt.n. 0000011/PA  del 29/12/2017 FATTURA;29-01-2018;352;0;752;1;Spese correnti;3;Acquisto di beni e servizi;2;Acquisto di servizi;9;Manutenzione ordinaria e riparazioni;8;Manutenzione ordinaria e riparazioni di beni immobili;29-01-2018;
265;1;0;"19,59";"19,59";ACQUE VERONESI SCARL; ;SALDO Fatt.n. 0350120170800746600  del 14/12/2017 B/Bollettazione;29-01-2018;359;0;328;1;Spese correnti;3;Acquisto di beni e servizi;2;Acquisto di servizi;5;Utenze e canoni;5;Acqua;29-01-2018;
266;1;0;"0,01";"25,46";ACQUE VERONESI SCARL;Z591F205C0;SALDO Fatt.n. 0350120170800746700  del 14/12/2017 B/Bollettazione;29-01-2018;359;0;328;1;Spese correnti;3;Acquisto di beni e servizi;2;Acquisto di servizi;5;Utenze e canoni;5;Acqua;29-01-2018;
266;2;0;"25,45";"25,46";ACQUE VERONESI SCARL;Z591F205C0;ACCONTO Fatt.n. 0350120170800746700  del 14/12/2017 B/Bollettazione;29-01-2018;359;0;328;1;Spese correnti;3;Acquisto di beni e servizi;2;Acquisto di servizi;5;Utenze e canoni;5;Acqua;29-01-2018;
267;1;0;"28,06";"28,06";SERVIZIO ELETTRICO NAZIONALE  - Servizio Maggior Tutela;ZC41E38DF2;SALDO Fatt.n. 230620605036039  del 13/12/2017 FATTURA;29-01-2018;960;0;239;1;Spese correnti;3;Acquisto di beni e servizi;2;Acquisto di servizi;5;Utenze e canoni;4;Energia elettrica;29-01-2018;
268;1;0;"1.104,06";"1.104,06";ENEL ENERGIA SPA;Z141E3AEE8;SALDO Fatt.n. 004801776908  del 06/12/2017 FATTURA;29-01-2018;881;0;250;1;Spese correnti;3;Acquisto di beni e servizi;2;Acquisto di servizi;5;Utenze e canoni;4;Energia elettrica;29-01-2018;
269;1;0;"1.116,58";"1.116,58";ENEL ENERGIA SPA;Z141E3AEE8;SALDO Fatt.n. 004810084487  del 08/01/2018;29-01-2018;881;0;250;1;Spese correnti;3;Acquisto di beni e servizi;2;Acquisto di servizi;5;Utenze e canoni;4;Energia elettrica;29-01-2018;
270;1;0;"770,00";"770,00";ASSOCIAZIONE CULTURALE TEATRO DELLE ARANCE;Z7F2024A3D;SALDO Fatt.n. 000002-2017-1  del 29/12/2017 FATTURA;29-01-2018;686;0;609;1;Spese correnti;3;Acquisto di beni e servizi;2;Acquisto di servizi;2;"Organizzazione eventi, pubblicita` e servizi per trasferta";5;Organizzazione e partecipazione a manifestazioni e convegni;29-01-2018;
271;1;0;"305,00";"305,00";BIESSE SRL - SISMA;Z981E4FB91;SALDO Fatt.n. 0000046  del 29/12/2017 FATTURA;29-01-2018;115;0;272;1;Spese correnti;3;Acquisto di beni e servizi;2;Acquisto di servizi;11;Prestazioni professionali e specialistiche;999;Altre prestazioni professionali e specialistiche n.a.c.;29-01-2018;
272;1;0;"1.650,00";"1.650,00";IL NODO ASSOCIAZIONE CULT. SSDL;Z912024C26;SALDO Fatt.n. FATTPA 47_17  del 12/12/2017 FATTURA;29-01-2018;686;0;610;1;Spese correnti;3;Acquisto di beni e servizi;2;Acquisto di servizi;2;"Organizzazione eventi, pubblicita` e servizi per trasferta";5;Organizzazione e partecipazione a manifestazioni e convegni;29-01-2018;
273;1;0;"770,00";"770,00";ALFIERE TEATRO;Z4F2024A0C;SALDO Fatt.n. 0000001/PA  del 21/12/2017 FATTURA;29-01-2018;686;0;606;1;Spese correnti;3;Acquisto di beni e servizi;2;Acquisto di servizi;2;"Organizzazione eventi, pubblicita` e servizi per trasferta";5;Organizzazione e partecipazione a manifestazioni e convegni;29-01-2018;
274;1;0;"112,36";"112,36";CLAN DI MUNDICI SRL DIFFUSIONE LIBRI;ZA115D8FA3;SALDO Fatt.n. 70641  del 21/12/2017 FATTURA ELETTRONICA;29-01-2018;555;0;735;1;Spese correnti;4;Trasferimenti correnti;2;Trasferimenti correnti a Famiglie;5;Altri trasferimenti a famiglie;999;Altri trasferimenti a famiglie n.a.c.;29-01-2018;
275;1;0;"4.929,72";"4.929,72";EURORISTORAZIONE SRL;6993767F17;SALDO Fatt.n. 17CPA03222  del 02/11/2017 FATTURA;29-01-2018;662;0;139;1;Spese correnti;3;Acquisto di beni e servizi;2;Acquisto di servizi;15;Contratti di servizio pubblico;6;Contratti di servizio per le mense scolastiche;29-01-2018;
276;1;0;"10.755,76";"10.755,76";EURORISTORAZIONE SRL;6993767F17;SALDO Fatt.n. 17CPA03250  del 30/11/2017 FATTURA;29-01-2018;662;0;139;1;Spese correnti;3;Acquisto di beni e servizi;2;Acquisto di servizi;15;Contratti di servizio pubblico;6;Contratti di servizio per le mense scolastiche;29-01-2018;
277;1;0;"150,00";"150,00";ANUSCA;Z98IEA7E76;SALDO Fatt.n. 2555E  del 30/12/2017 fattura;29-01-2018;115;0;303;1;Spese correnti;3;Acquisto di beni e servizi;2;Acquisto di servizi;11;Prestazioni professionali e specialistiche;999;Altre prestazioni professionali e specialistiche n.a.c.;29-01-2018;
278;1;0;"1.809,60";"1.809,60";TIPOGRAFIA CENTRALE SAS;ZB220C0E74;SALDO Fatt.n. FATTPA 34_17  del 14/12/2017 FATTURA;29-01-2018;147;0;703;1;Spese correnti;3;Acquisto di beni e servizi;2;Acquisto di servizi;2;"Organizzazione eventi, pubblicita` e servizi per trasferta";999;"Altre spese per relazioni pubbliche, convegni e mostre, pubblicita` n.a.c";29-01-2018;
279;1;0;"298,47";"298,47";LA BOTTEGA DELL'INFORMATICA SAS;Z3A1DB6B7E;SALDO Fatt.n. 8/PA  del 31/12/2017 Rif. DDT n. 15 del 13/12/2017 e 16 del 22/12/2017;29-01-2018;110;0;153;1;Spese correnti;3;Acquisto di beni e servizi;1;Acquisto di beni;2;Altri beni di consumo;999;Altri beni e materiali di consumo n.a.c.;29-01-2018;
280;1;0;"580,62";"580,62";RANCAN SNC DI RANCAN LAURA E ALESSANDRO & C.;ZE81F985D0;SALDO Fatt.n. 55/PA  del 30/12/2017 VENDITA;29-01-2018;110;0;482;1;Spese correnti;3;Acquisto di beni e servizi;1;Acquisto di beni;2;Altri beni di consumo;1;"Carta, cancelleria e stampati";29-01-2018;
281;1;0;"75,26";"75,26";MAGGIOLI SPA;Z0B207F571;SALDO Fatt.n. 0002146564  del 13/12/2017 FATT. IVA SPLIT P.;29-01-2018;15;2;628;1;Spese correnti;3;Acquisto di beni e servizi;1;Acquisto di beni;2;Altri beni di consumo;10;Beni per consultazioni elettorali;29-01-2018;
282;1;0;"2.256,61";"2.256,61";MAGGIOLI SPA;Z0B207F571;SALDO Fatt.n. 0002147175  del 14/12/2017 FATT. IVA SPLIT P.;29-01-2018;15;2;628;1;Spese correnti;3;Acquisto di beni e servizi;1;Acquisto di beni;2;Altri beni di consumo;10;Beni per consultazioni elettorali;29-01-2018;
283;1;0;"0,03";"185,70";LEGGERE SRL;Z7D1DFD17B;SALDO Fatt.n. 21760  del 29/12/2017 FATTURA;29-01-2018;681;0;216;1;Spese correnti;3;Acquisto di beni e servizi;1;Acquisto di beni;1;"Giornali, riviste e pubblicazioni";2;Pubblicazioni;29-01-2018;
283;2;0;"19,50";"185,70";LEGGERE SRL;Z7D1DFD17B;SALDO Fatt.n. 21759  del 29/12/2017 FATTURA;29-01-2018;681;0;216;1;Spese correnti;3;Acquisto di beni e servizi;1;Acquisto di beni;1;"Giornali, riviste e pubblicazioni";2;Pubblicazioni;29-01-2018;
283;3;0;"166,17";"185,70";LEGGERE SRL;Z7D1DFD17B;ACCONTO Fatt.n. 21760  del 29/12/2017 FATTURA;29-01-2018;681;0;216;1;Spese correnti;3;Acquisto di beni e servizi;1;Acquisto di beni;1;"Giornali, riviste e pubblicazioni";2;Pubblicazioni;29-01-2018;
284;1;0;"1.969,16";"3.938,32";SOCIETA' COOPERATIVA CULTURE;5539394489;SALDO Fatt.n. 1256/FE  del 14/12/2017 FATTURA;29-01-2018;680;0;121;1;Spese correnti;3;Acquisto di beni e servizi;2;Acquisto di servizi;15;Contratti di servizio pubblico;999;Altre spese per contratti di servizio pubblico;29-01-2018;
284;2;0;"1.969,16";"3.938,32";SOCIETA' COOPERATIVA CULTURE;5539394489;SALDO Fatt.n. 41/FE  del 15/01/2018 FATTURA;29-01-2018;680;0;121;1;Spese correnti;3;Acquisto di beni e servizi;2;Acquisto di servizi;15;Contratti di servizio pubblico;999;Altre spese per contratti di servizio pubblico;29-01-2018;
285;1;0;"2.257,78";"2.257,78";CIDIELLE COOPERATIVA SOCIALE;6993707D94;SALDO Fatt.n. 213/02  del 30/11/2017 FATTURA;29-01-2018;117;0;150;1;Spese correnti;3;Acquisto di beni e servizi;2;Acquisto di servizi;13;Servizi ausiliari per il funzionamento dell'ente;2;Servizi di pulizia e lavanderia;29-01-2018;
286;1;0;"79,30";"79,30";GRAFICHE E. GASPARI SRL;ZC01E0610A;SALDO Fatt.n. 18294  del 31/12/2017 FATTURA;29-01-2018;330;0;217;1;Spese correnti;3;Acquisto di beni e servizi;1;Acquisto di beni;2;Altri beni di consumo;1;"Carta, cancelleria e stampati";29-01-2018;
287;1;0;"2.500,00";"2.500,00";PARROCCHIA DI STRA'; ;"EROGAZIONE CONTRIBUTO ECONOMICO STRAORDINARIO ALLA PARROCCHIA DI STRA' DI COLOGNOLA AI COLLI (VR), APPROVATO CON DELIBERAZIONE DI GIUNTA COMUNALE N.148/2017.";29-01-2018;891;2;795;1;Spese correnti;4;Trasferimenti correnti;4;Trasferimenti correnti a Istituzioni Sociali Private;1;Trasferimenti correnti a Istituzioni Sociali Private;1;Trasferimenti correnti a Istituzioni Sociali Private;29-01-2018;
288;1;0;"500,00";"500,00";PARROCCHIA DI STRA'; ;"EROGAZIONE CONTRIBUTO ECONOMICO STRAORDINARIO ALLA PARROCCHIA DI STRA' DI COLOGNOLA AI COLLI (VR), APPROVATO CON DELIBERAZIONE DI GIUNTA COMUNALE N.148/2017.";29-01-2018;690;0;796;1;Spese correnti;4;Trasferimenti correnti;4;Trasferimenti correnti a Istituzioni Sociali Private;1;Trasferimenti correnti a Istituzioni Sociali Private;1;Trasferimenti correnti a Istituzioni Sociali Private;29-01-2018;
289;1;0;"300,00";"300,00";ASSOCIAZIONE BANCO ALIMENTARE DEL VENETO ONLUS; ;"IMPEGNO ED EROGAZIONE CONTRIBUTO AL BANCO ALIMENTARE DEL VENETO ONLUS, APPROVATO CON DELIBERA DI GIUNTA COMUNALE N.131 DEL 06.12.2017.";31-01-2018;933;0;767;1;Spese correnti;3;Acquisto di beni e servizi;2;Acquisto di servizi;2;"Organizzazione eventi, pubblicita` e servizi per trasferta";5;Organizzazione e partecipazione a manifestazioni e convegni;31-01-2018;
290;1;0;"1.484,00";"1.484,00";GP GLOBAL POWER SPA; ;BENEFICIARI DIVERSI-PAGAMENTI DIVERSI COD DISP 751712210JAGOH NOME GLOBAL POWER SPA MANDATO (P.      14 -R.      14);31-01-2018;111;0;146;1;Spese correnti;3;Acquisto di beni e servizi;2;Acquisto di servizi;5;Utenze e canoni;4;Energia elettrica;31-01-2018;
291;1;0;"140,46";"140,46";GP GLOBAL POWER SPA;7226954F17;BENEFICIARI DIVERSI-PAGAMENTI DIVERSI COD DISP 751712210JAGP5 NOME GLOBAL POWER SPA MANDATO (P.       9 -R.       9);31-01-2018;211;0;573;1;Spese correnti;3;Acquisto di beni e servizi;2;Acquisto di servizi;5;Utenze e canoni;4;Energia elettrica;31-01-2018;
292;1;0;"0,02";"381,02";GP GLOBAL POWER SPA;7226954F17;BENEFICIARI DIVERSI-PAGAMENTI DIVERSI COD DISP 751712210JAGLL NOME GLOBAL POWER SPA MANDATO (P.       7 -R.       7);31-01-2018;354;0;574;1;Spese correnti;3;Acquisto di beni e servizi;2;Acquisto di servizi;5;Utenze e canoni;4;Energia elettrica;31-01-2018;
292;2;0;"19,76";"381,02";GP GLOBAL POWER SPA;7226954F17;BENEFICIARI DIVERSI-PAGAMENTI DIVERSI COD DISP 751712210JAGP9 NOME GLOBAL POWER SPA MANDATO (P.       2 -R.       2);31-01-2018;354;0;574;1;Spese correnti;3;Acquisto di beni e servizi;2;Acquisto di servizi;5;Utenze e canoni;4;Energia elettrica;31-01-2018;
292;3;0;"23,20";"381,02";GP GLOBAL POWER SPA;7226954F17;BENEFICIARI DIVERSI-PAGAMENTI DIVERSI COD DISP 751712210JAGLH NOME GLOBAL POWER SPA MANDATO (P.       8 -R.       8);31-01-2018;354;0;574;1;Spese correnti;3;Acquisto di beni e servizi;2;Acquisto di servizi;5;Utenze e canoni;4;Energia elettrica;31-01-2018;
292;4;0;"30,36";"381,02";GP GLOBAL POWER SPA;7226954F17;BENEFICIARI DIVERSI-PAGAMENTI DIVERSI COD DISP 751712210JAGPG NOME GLOBAL POWER SPA MANDATO (P.      11 -R.      11);31-01-2018;354;0;574;1;Spese correnti;3;Acquisto di beni e servizi;2;Acquisto di servizi;5;Utenze e canoni;4;Energia elettrica;31-01-2018;
292;5;0;"35,38";"381,02";GP GLOBAL POWER SPA;7226954F17;BENEFICIARI DIVERSI-PAGAMENTI DIVERSI COD DISP 751712210JAGOY NOME GLOBAL POWER SPA MANDATO (P.       3 -R.       3);31-01-2018;354;0;574;1;Spese correnti;3;Acquisto di beni e servizi;2;Acquisto di servizi;5;Utenze e canoni;4;Energia elettrica;31-01-2018;
292;6;0;"40,23";"381,02";GP GLOBAL POWER SPA;7226954F17;BENEFICIARI DIVERSI-PAGAMENTI DIVERSI COD DISP 751712210JAGON NOME GLOBAL POWER SPA MANDATO (P.       1 -R.       1);31-01-2018;354;0;574;1;Spese correnti;3;Acquisto di beni e servizi;2;Acquisto di servizi;5;Utenze e canoni;4;Energia elettrica;31-01-2018;
292;7;0;"90,13";"381,02";GP GLOBAL POWER SPA;7226954F17;BENEFICIARI DIVERSI-PAGAMENTI DIVERSI COD DISP 751712210JAGOS NOME GLOBAL POWER SPA MANDATO (P.      13 -R.      13);31-01-2018;354;0;574;1;Spese correnti;3;Acquisto di beni e servizi;2;Acquisto di servizi;5;Utenze e canoni;4;Energia elettrica;31-01-2018;
292;8;0;"141,94";"381,02";GP GLOBAL POWER SPA;7226954F17;BENEFICIARI DIVERSI-PAGAMENTI DIVERSI COD DISP 751712210JAGOK NOME GLOBAL POWER SPA MANDATO (P.      10 -R.      10);31-01-2018;354;0;574;1;Spese correnti;3;Acquisto di beni e servizi;2;Acquisto di servizi;5;Utenze e canoni;4;Energia elettrica;31-01-2018;
293;1;0;"24,60";"24,60";ACQUE VERONESI SCARL; ;BENEFICIARI DIVERSI-PAGAMENTI DIVERSI COD DISP 751712270MDJY7 NOME ACQUE VERONESI SCARL MANDAT (P.      16 -R.      16);31-01-2018;359;0;328;1;Spese correnti;3;Acquisto di beni e servizi;2;Acquisto di servizi;5;Utenze e canoni;5;Acqua;31-01-2018;
294;1;0;"976,98";"976,98";GP GLOBAL POWER SPA;7226954F17;BENEFICIARI DIVERSI-PAGAMENTI DIVERSI COD DISP 751712210JAGP2 NOME GLOBAL POWER SPA MANDATO (P.      15 -R.      15);31-01-2018;541;0;575;1;Spese correnti;3;Acquisto di beni e servizi;2;Acquisto di servizi;5;Utenze e canoni;4;Energia elettrica;31-01-2018;
295;1;0;"506,89";"506,89";GP GLOBAL POWER SPA;7226954F17;BENEFICIARI DIVERSI-PAGAMENTI DIVERSI COD DISP 751712210JAGOX NOME GLOBAL POWER SPA MANDATO (P.       5 -R.       5);31-01-2018;581;0;576;1;Spese correnti;3;Acquisto di beni e servizi;2;Acquisto di servizi;5;Utenze e canoni;4;Energia elettrica;31-01-2018;
296;1;0;"432,09";"432,09";GP GLOBAL POWER SPA;7226954F17;BENEFICIARI DIVERSI-PAGAMENTI DIVERSI COD DISP 751712210JAGPD NOME GLOBAL POWER SPA MANDATO (P.      12 -R.      12);31-01-2018;885;0;578;1;Spese correnti;3;Acquisto di beni e servizi;2;Acquisto di servizi;5;Utenze e canoni;6;Gas;31-01-2018;
297;1;0;"142,51";"142,51";GP GLOBAL POWER SPA;7226954F17;BENEFICIARI DIVERSI-PAGAMENTI DIVERSI COD DISP 751712210JAGLV NOME GLOBAL POWER SPA MANDATO (P.       6 -R.       6);31-01-2018;951;0;579;1;Spese correnti;3;Acquisto di beni e servizi;2;Acquisto di servizi;5;Utenze e canoni;4;Energia elettrica;31-01-2018;
298;1;0;"609,89";"11.827,31";GP GLOBAL POWER SPA;7226954F17;BENEFICIARI DIVERSI-PAGAMENTI DIVERSI COD DISP 751712210JAGLR NOME GLOBAL POWER SPA MANDATO (P.       4 -R.       4);31-01-2018;960;0;580;1;Spese correnti;3;Acquisto di beni e servizi;2;Acquisto di servizi;5;Utenze e canoni;4;Energia elettrica;31-01-2018;
298;2;0;"11.217,42";"11.827,31";GP GLOBAL POWER SPA;7226954F17;BENEFICIARI DIVERSI-PAGAMENTI DIVERSI COD DISP 751712210JAGLV NOME GLOBAL POWER SPA MANDATO (P.       6 -R.       6);31-01-2018;960;0;580;1;Spese correnti;3;Acquisto di beni e servizi;2;Acquisto di servizi;5;Utenze e canoni;4;Energia elettrica;31-01-2018;
299;1;0;"5,10";"5,10";GP GLOBAL POWER SPA;7226954F17;SALDO Fatt.n. V0/146918  del 12/12/2017 Fattura Energia Elettrica;31-01-2018;354;0;574;1;Spese correnti;3;Acquisto di beni e servizi;2;Acquisto di servizi;5;Utenze e canoni;4;Energia elettrica;31-01-2018;
300;1;0;"8,85";"8,85";GP GLOBAL POWER SPA;7226954F17;SALDO Fatt.n. V0/146910  del 12/12/2017 Fattura Energia Elettrica;31-01-2018;354;0;574;1;Spese correnti;3;Acquisto di beni e servizi;2;Acquisto di servizi;5;Utenze e canoni;4;Energia elettrica;31-01-2018;
301;1;0;"4,35";"4,35";GP GLOBAL POWER SPA;7226954F17;SALDO Fatt.n. V0/146917  del 12/12/2017 Fattura Energia Elettrica;31-01-2018;354;0;574;1;Spese correnti;3;Acquisto di beni e servizi;2;Acquisto di servizi;5;Utenze e canoni;4;Energia elettrica;31-01-2018;
302;1;0;"7,78";"7,78";GP GLOBAL POWER SPA;7226954F17;SALDO Fatt.n. V0/146912  del 12/12/2017 Fattura Energia Elettrica;31-01-2018;354;0;574;1;Spese correnti;3;Acquisto di beni e servizi;2;Acquisto di servizi;5;Utenze e canoni;4;Energia elettrica;31-01-2018;
303;1;0;"134,18";"134,18";GP GLOBAL POWER SPA;7226954F17;SALDO Fatt.n. V0/146919  del 12/12/2017 Fattura Energia Elettrica;31-01-2018;960;0;580;1;Spese correnti;3;Acquisto di beni e servizi;2;Acquisto di servizi;5;Utenze e canoni;4;Energia elettrica;31-01-2018;
304;1;0;"50,69";"50,69";GP GLOBAL POWER SPA;7226954F17;SALDO Fatt.n. V0/146914  del 12/12/2017 Fattura Energia Elettrica;31-01-2018;581;0;576;1;Spese correnti;3;Acquisto di beni e servizi;2;Acquisto di servizi;5;Utenze e canoni;4;Energia elettrica;31-01-2018;
305;1;0;"30,90";"30,90";GP GLOBAL POWER SPA;7226954F17;SALDO Fatt.n. V0/146913  del 12/12/2017 Fattura Energia Elettrica;31-01-2018;211;0;573;1;Spese correnti;3;Acquisto di beni e servizi;2;Acquisto di servizi;5;Utenze e canoni;4;Energia elettrica;31-01-2018;
306;1;0;"31,23";"31,23";GP GLOBAL POWER SPA;7226954F17;SALDO Fatt.n. V0/146915  del 12/12/2017 Fattura Energia Elettrica;31-01-2018;354;0;574;1;Spese correnti;3;Acquisto di beni e servizi;2;Acquisto di servizi;5;Utenze e canoni;4;Energia elettrica;31-01-2018;
307;1;0;"6,68";"6,68";GP GLOBAL POWER SPA;7226954F17;SALDO Fatt.n. V0/146909  del 12/12/2017 Fattura Energia Elettrica;31-01-2018;354;0;574;1;Spese correnti;3;Acquisto di beni e servizi;2;Acquisto di servizi;5;Utenze e canoni;4;Energia elettrica;31-01-2018;
308;1;0;"95,06";"95,06";GP GLOBAL POWER SPA;7226954F17;SALDO Fatt.n. V0/146907  del 12/12/2017 Fattura Energia Elettrica;31-01-2018;885;0;578;1;Spese correnti;3;Acquisto di beni e servizi;2;Acquisto di servizi;5;Utenze e canoni;6;Gas;31-01-2018;
309;1;0;"19,83";"19,83";GP GLOBAL POWER SPA;7226954F17;SALDO Fatt.n. V0/146911  del 12/12/2017 Fattura Energia Elettrica;31-01-2018;354;0;574;1;Spese correnti;3;Acquisto di beni e servizi;2;Acquisto di servizi;5;Utenze e canoni;4;Energia elettrica;31-01-2018;
310;1;0;"326,48";"326,48";GP GLOBAL POWER SPA; ;SALDO Fatt.n. V0/146906  del 12/12/2017 Fattura Energia Elettrica;31-01-2018;111;0;146;1;Spese correnti;3;Acquisto di beni e servizi;2;Acquisto di servizi;5;Utenze e canoni;4;Energia elettrica;31-01-2018;
311;1;0;"97,70";"97,70";GP GLOBAL POWER SPA;7226954F17;SALDO Fatt.n. V0/146908  del 12/12/2017 Fattura Energia Elettrica;31-01-2018;541;0;575;1;Spese correnti;3;Acquisto di beni e servizi;2;Acquisto di servizi;5;Utenze e canoni;4;Energia elettrica;31-01-2018;
312;1;0;"2.467,83";"2.467,83";GP GLOBAL POWER SPA;7226954F17;ACCONTO Fatt.n. V0/146921  del 12/12/2017 Fattura Energia Elettrica;31-01-2018;960;0;580;1;Spese correnti;3;Acquisto di beni e servizi;2;Acquisto di servizi;5;Utenze e canoni;4;Energia elettrica;31-01-2018;
313;1;0;"31,35";"31,35";GP GLOBAL POWER SPA;7226954F17;SALDO Fatt.n. V0/146921  del 12/12/2017 Fattura Energia Elettrica;31-01-2018;951;0;579;1;Spese correnti;3;Acquisto di beni e servizi;2;Acquisto di servizi;5;Utenze e canoni;4;Energia elettrica;31-01-2018;
314;1;0;"1.802,86";"1.802,86";GP GLOBAL POWER SPA; ;BENEFICIARI DIVERSI-PAGAMENTI DIVERSI COD DISP 7518011905DJFS NOME GLOBAL POWER SPA MANDATO (P.      37 -R.     244);31-01-2018;111;0;146;1;Spese correnti;3;Acquisto di beni e servizi;2;Acquisto di servizi;5;Utenze e canoni;4;Energia elettrica;31-01-2018;
315;1;0;"130,62";"130,62";GP GLOBAL POWER SPA;7226954F17;BENEFICIARI DIVERSI-PAGAMENTI DIVERSI COD DISP 7518011905DJF9 NOME GLOBAL POWER SPA MANDATO (P.      35 -R.     242);31-01-2018;211;0;573;1;Spese correnti;3;Acquisto di beni e servizi;2;Acquisto di servizi;5;Utenze e canoni;4;Energia elettrica;31-01-2018;
316;1;0;"0,02";"384,47";GP GLOBAL POWER SPA;7226954F17;BENEFICIARI DIVERSI-PAGAMENTI DIVERSI COD DISP 7518011905DJEI NOME GLOBAL POWER SPA MANDATO (P.      26 -R.     233);31-01-2018;354;0;574;1;Spese correnti;3;Acquisto di beni e servizi;2;Acquisto di servizi;5;Utenze e canoni;4;Energia elettrica;31-01-2018;
316;2;0;"19,76";"384,47";GP GLOBAL POWER SPA;7226954F17;BENEFICIARI DIVERSI-PAGAMENTI DIVERSI COD DISP 7518011905DJE1 NOME GLOBAL POWER SPA MANDATO (P.      28 -R.     235);31-01-2018;354;0;574;1;Spese correnti;3;Acquisto di beni e servizi;2;Acquisto di servizi;5;Utenze e canoni;4;Energia elettrica;31-01-2018;
316;3;0;"23,50";"384,47";GP GLOBAL POWER SPA;7226954F17;BENEFICIARI DIVERSI-PAGAMENTI DIVERSI COD DISP 7518011905DJED NOME GLOBAL POWER SPA MANDATO (P.      30 -R.     237);31-01-2018;354;0;574;1;Spese correnti;3;Acquisto di beni e servizi;2;Acquisto di servizi;5;Utenze e canoni;4;Energia elettrica;31-01-2018;
316;4;0;"30,36";"384,47";GP GLOBAL POWER SPA;7226954F17;BENEFICIARI DIVERSI-PAGAMENTI DIVERSI COD DISP 7518011905DJDP NOME GLOBAL POWER SPA MANDATO (P.      41 -R.     248);31-01-2018;354;0;574;1;Spese correnti;3;Acquisto di beni e servizi;2;Acquisto di servizi;5;Utenze e canoni;4;Energia elettrica;31-01-2018;
316;5;0;"30,72";"384,47";GP GLOBAL POWER SPA;7226954F17;BENEFICIARI DIVERSI-PAGAMENTI DIVERSI COD DISP 7518011905DJEY NOME GLOBAL POWER SPA MANDATO (P.      33 -R.     240);31-01-2018;354;0;574;1;Spese correnti;3;Acquisto di beni e servizi;2;Acquisto di servizi;5;Utenze e canoni;4;Energia elettrica;31-01-2018;
316;6;0;"40,69";"384,47";GP GLOBAL POWER SPA;7226954F17;ACCONTO Fatt.n. V0/11199  del 11/01/2018 Fattura Energia Elettrica;31-01-2018;354;0;574;1;Spese correnti;3;Acquisto di beni e servizi;2;Acquisto di servizi;5;Utenze e canoni;4;Energia elettrica;31-01-2018;
316;7;0;"104,04";"384,47";GP GLOBAL POWER SPA;7226954F17;BENEFICIARI DIVERSI-PAGAMENTI DIVERSI COD DISP 7518011905DJFI NOME GLOBAL POWER SPA MANDATO (P.      40 -R.     247);31-01-2018;354;0;574;1;Spese correnti;3;Acquisto di beni e servizi;2;Acquisto di servizi;5;Utenze e canoni;4;Energia elettrica;31-01-2018;
316;8;0;"135,38";"384,47";GP GLOBAL POWER SPA;7226954F17;BENEFICIARI DIVERSI-PAGAMENTI DIVERSI COD DISP 7518011905DJF5 NOME GLOBAL POWER SPA MANDATO (P.      29 -R.     236);31-01-2018;354;0;574;1;Spese correnti;3;Acquisto di beni e servizi;2;Acquisto di servizi;5;Utenze e canoni;4;Energia elettrica;31-01-2018;
317;1;0;"776,24";"776,24";GP GLOBAL POWER SPA;7226954F17;BENEFICIARI DIVERSI-PAGAMENTI DIVERSI COD DISP 7518011905DJDK NOME GLOBAL POWER SPA MANDATO (P.      34 -R.     241);31-01-2018;541;0;575;1;Spese correnti;3;Acquisto di beni e servizi;2;Acquisto di servizi;5;Utenze e canoni;4;Energia elettrica;31-01-2018;
318;1;0;"318,19";"1.228,76";GP GLOBAL POWER SPA;7226954F17;BENEFICIARI DIVERSI-PAGAMENTI DIVERSI COD DISP 7518011905DJDK NOME GLOBAL POWER SPA MANDATO (P.      34 -R.     241);31-01-2018;581;0;576;1;Spese correnti;3;Acquisto di beni e servizi;2;Acquisto di servizi;5;Utenze e canoni;4;Energia elettrica;31-01-2018;
318;2;0;"910,57";"1.228,76";GP GLOBAL POWER SPA;7226954F17;BENEFICIARI DIVERSI-PAGAMENTI DIVERSI COD DISP 7518011905DJDV NOME GLOBAL POWER SPA MANDATO (P.      32 -R.     239);31-01-2018;581;0;576;1;Spese correnti;3;Acquisto di beni e servizi;2;Acquisto di servizi;5;Utenze e canoni;4;Energia elettrica;31-01-2018;
319;1;0;"416,01";"416,01";GP GLOBAL POWER SPA;7226954F17;BENEFICIARI DIVERSI-PAGAMENTI DIVERSI COD DISP 7518011905DJFN NOME GLOBAL POWER SPA MANDATO (P.      39 -R.     246);31-01-2018;885;0;578;1;Spese correnti;3;Acquisto di beni e servizi;2;Acquisto di servizi;5;Utenze e canoni;6;Gas;31-01-2018;
320;1;0;"63,44";"63,44";GP GLOBAL POWER SPA;7226954F17;BENEFICIARI DIVERSI-PAGAMENTI DIVERSI COD DISP 7518011905DJE6 NOME GLOBAL POWER SPA MANDATO (P.      27 -R.     234);31-01-2018;951;0;579;1;Spese correnti;3;Acquisto di beni e servizi;2;Acquisto di servizi;5;Utenze e canoni;4;Energia elettrica;31-01-2018;
321;1;0;"0,02";"12.924,98";GP GLOBAL POWER SPA;7226954F17;BENEFICIARI DIVERSI-PAGAMENTI DIVERSI COD DISP 7518011905DJFE NOME GLOBAL POWER SPA MANDATO (P.      31 -R.     238);31-01-2018;960;0;580;1;Spese correnti;3;Acquisto di beni e servizi;2;Acquisto di servizi;5;Utenze e canoni;4;Energia elettrica;31-01-2018;
321;2;0;"37,84";"12.924,98";GP GLOBAL POWER SPA;7226954F17;BENEFICIARI DIVERSI-PAGAMENTI DIVERSI COD DISP 7518011905DJE6 NOME GLOBAL POWER SPA MANDATO (P.      27 -R.     234);31-01-2018;960;0;580;1;Spese correnti;3;Acquisto di beni e servizi;2;Acquisto di servizi;5;Utenze e canoni;4;Energia elettrica;31-01-2018;
321;3;0;"341,36";"12.924,98";GP GLOBAL POWER SPA;7226954F17;BENEFICIARI DIVERSI-PAGAMENTI DIVERSI COD DISP 7518011905DJEN NOME GLOBAL POWER SPA MANDATO (P.      36 -R.     243);31-01-2018;960;0;580;1;Spese correnti;3;Acquisto di beni e servizi;2;Acquisto di servizi;5;Utenze e canoni;4;Energia elettrica;31-01-2018;
321;4;0;"368,70";"12.924,98";GP GLOBAL POWER SPA;7226954F17;BENEFICIARI DIVERSI-PAGAMENTI DIVERSI COD DISP 7518011905DJDK NOME GLOBAL POWER SPA MANDATO (P.      34 -R.     241);31-01-2018;960;0;580;1;Spese correnti;3;Acquisto di beni e servizi;2;Acquisto di servizi;5;Utenze e canoni;4;Energia elettrica;31-01-2018;
321;5;0;"12.177,06";"12.924,98";GP GLOBAL POWER SPA;7226954F17;BENEFICIARI DIVERSI-PAGAMENTI DIVERSI COD DISP 7518011905DJE6 NOME GLOBAL POWER SPA MANDATO (P.      27 -R.     234);31-01-2018;960;0;580;1;Spese correnti;3;Acquisto di beni e servizi;2;Acquisto di servizi;5;Utenze e canoni;4;Energia elettrica;31-01-2018;
322;1;0;"2.678,95";"2.678,95";GP GLOBAL POWER SPA;7226954F17;ACCONTO Fatt.n. V0/11210  del 11/01/2018 Fattura Energia Elettrica;31-01-2018;960;0;580;1;Spese correnti;3;Acquisto di beni e servizi;2;Acquisto di servizi;5;Utenze e canoni;4;Energia elettrica;31-01-2018;
323;1;0;"22,28";"22,28";GP GLOBAL POWER SPA;7226954F17;SALDO Fatt.n. V0/11210  del 11/01/2018 Fattura Energia Elettrica;31-01-2018;951;0;579;1;Spese correnti;3;Acquisto di beni e servizi;2;Acquisto di servizi;5;Utenze e canoni;4;Energia elettrica;31-01-2018;
324;1;0;"5,17";"5,17";GP GLOBAL POWER SPA;7226954F17;SALDO Fatt.n. V0/11207  del 11/01/2018 Fattura Energia Elettrica;31-01-2018;354;0;574;1;Spese correnti;3;Acquisto di beni e servizi;2;Acquisto di servizi;5;Utenze e canoni;4;Energia elettrica;31-01-2018;
325;1;0;"4,35";"4,35";GP GLOBAL POWER SPA;7226954F17;SALDO Fatt.n. V0/11206  del 11/01/2018 Fattura Energia Elettrica;31-01-2018;354;0;574;1;Spese correnti;3;Acquisto di beni e servizi;2;Acquisto di servizi;5;Utenze e canoni;4;Energia elettrica;31-01-2018;
326;1;0;"29,78";"29,78";GP GLOBAL POWER SPA;7226954F17;SALDO Fatt.n. V0/11204  del 11/01/2018 Fattura Energia Elettrica;31-01-2018;354;0;574;1;Spese correnti;3;Acquisto di beni e servizi;2;Acquisto di servizi;5;Utenze e canoni;4;Energia elettrica;31-01-2018;
327;1;0;"6,76";"6,76";GP GLOBAL POWER SPA;7226954F17;SALDO Fatt.n. V0/11201  del 11/01/2018 Fattura Energia Elettrica;31-01-2018;354;0;574;1;Spese correnti;3;Acquisto di beni e servizi;2;Acquisto di servizi;5;Utenze e canoni;4;Energia elettrica;31-01-2018;
328;1;0;"22,89";"22,89";GP GLOBAL POWER SPA;7226954F17;SALDO Fatt.n. V0/11200  del 11/01/2018 Fattura Energia Elettrica;31-01-2018;354;0;574;1;Spese correnti;3;Acquisto di beni e servizi;2;Acquisto di servizi;5;Utenze e canoni;4;Energia elettrica;31-01-2018;
329;1;0;"8,95";"8,95";GP GLOBAL POWER SPA;7226954F17;SALDO Fatt.n. V0/11199  del 11/01/2018 Fattura Energia Elettrica;31-01-2018;354;0;574;1;Spese correnti;3;Acquisto di beni e servizi;2;Acquisto di servizi;5;Utenze e canoni;4;Energia elettrica;31-01-2018;
330;1;0;"6,68";"6,68";GP GLOBAL POWER SPA;7226954F17;SALDO Fatt.n. V0/11198  del 11/01/2018 Fattura Energia Elettrica;31-01-2018;354;0;574;1;Spese correnti;3;Acquisto di beni e servizi;2;Acquisto di servizi;5;Utenze e canoni;4;Energia elettrica;31-01-2018;
331;1;0;"91,52";"91,52";GP GLOBAL POWER SPA;7226954F17;SALDO Fatt.n. V0/11196  del 11/01/2018 Fattura Energia Elettrica;31-01-2018;885;0;578;1;Spese correnti;3;Acquisto di beni e servizi;2;Acquisto di servizi;5;Utenze e canoni;6;Gas;31-01-2018;
332;1;0;"396,63";"396,63";GP GLOBAL POWER SPA; ;SALDO Fatt.n. V0/11195  del 11/01/2018 Fattura Energia Elettrica;31-01-2018;111;0;146;1;Spese correnti;3;Acquisto di beni e servizi;2;Acquisto di servizi;5;Utenze e canoni;4;Energia elettrica;31-01-2018;
333;1;0;"75,10";"75,10";GP GLOBAL POWER SPA;7226954F17;SALDO Fatt.n. V0/11208  del 11/01/2018 Fattura Energia Elettrica;31-01-2018;960;0;580;1;Spese correnti;3;Acquisto di beni e servizi;2;Acquisto di servizi;5;Utenze e canoni;4;Energia elettrica;31-01-2018;
334;1;0;"28,74";"28,74";GP GLOBAL POWER SPA;7226954F17;SALDO Fatt.n. V0/11202  del 11/01/2018 Fattura Energia Elettrica;31-01-2018;211;0;573;1;Spese correnti;3;Acquisto di beni e servizi;2;Acquisto di servizi;5;Utenze e canoni;4;Energia elettrica;31-01-2018;
335;1;0;"146,31";"146,31";GP GLOBAL POWER SPA;7226954F17;SALDO Fatt.n. V0/11197  del 11/01/2018 Fattura Energia Elettrica;31-01-2018;581;0;576;1;Spese correnti;3;Acquisto di beni e servizi;2;Acquisto di servizi;5;Utenze e canoni;4;Energia elettrica;31-01-2018;
336;1;0;"91,06";"91,06";GP GLOBAL POWER SPA;7226954F17;SALDO Fatt.n. V0/11203  del 11/01/2018 Fattura Energia Elettrica;31-01-2018;581;0;576;1;Spese correnti;3;Acquisto di beni e servizi;2;Acquisto di servizi;5;Utenze e canoni;4;Energia elettrica;31-01-2018;
337;1;0;"30,68";"30,68";TELECOM ITALIA;Z8A08BEC62;EROGATORE SERVIZI TELEFONICI-PAGAMENTO TELEFONO COD DISP 751801050SYEYB NOME TELECOM ITALIA S P A MANDAT (P.      22 -R.     186);31-01-2018;113;0;630;1;Spese correnti;3;Acquisto di beni e servizi;2;Acquisto di servizi;5;Utenze e canoni;1;Telefonia fissa;31-01-2018;
338;1;0;"58,00";"58,00";TELECOM ITALIA;Z8A08BEC62;EROGATORE SERVIZI TELEFONICI-PAGAMENTO TELEFONO COD DISP 751801050SYER7 NOME TELECOM ITALIA S P A MANDAT (P.      18 -R.     182);31-01-2018;113;0;631;1;Spese correnti;3;Acquisto di beni e servizi;2;Acquisto di servizi;5;Utenze e canoni;1;Telefonia fissa;31-01-2018;
339;1;0;"61,01";"61,01";TELECOM ITALIA;Z8A08BEC62;EROGATORE SERVIZI TELEFONICI-PAGAMENTO TELEFONO COD DISP 751801050SYEQW NOME TELECOM ITALIA S P A MANDAT (P.      19 -R.     183);31-01-2018;113;0;632;1;Spese correnti;3;Acquisto di beni e servizi;2;Acquisto di servizi;5;Utenze e canoni;1;Telefonia fissa;31-01-2018;
340;1;0;"109,26";"109,26";TELECOM ITALIA;Z8A08BEC62;EROGATORE SERVIZI TELEFONICI-PAGAMENTO TELEFONO COD DISP 751801050SYEHV NOME TELECOM ITALIA S P A MANDAT (P.      23 -R.     187);31-01-2018;113;0;633;1;Spese correnti;3;Acquisto di beni e servizi;2;Acquisto di servizi;5;Utenze e canoni;1;Telefonia fissa;31-01-2018;
341;1;0;"60,46";"60,46";TELECOM ITALIA;Z8A08BEC62;EROGATORE SERVIZI TELEFONICI-PAGAMENTO TELEFONO COD DISP 751801050SYER8 NOME TELECOM ITALIA S P A MANDAT (P.      17 -R.     181);31-01-2018;213;0;634;1;Spese correnti;3;Acquisto di beni e servizi;2;Acquisto di servizi;5;Utenze e canoni;1;Telefonia fissa;31-01-2018;
342;1;0;"43,47";"43,47";TELECOM ITALIA;Z8A08BEC62;EROGATORE SERVIZI TELEFONICI-PAGAMENTO TELEFONO COD DISP 751801050SYEWM NOME TELECOM ITALIA S P A MANDAT (P.      20 -R.     184);31-01-2018;543;0;635;1;Spese correnti;3;Acquisto di beni e servizi;2;Acquisto di servizi;5;Utenze e canoni;1;Telefonia fissa;31-01-2018;
343;1;0;"113,56";"113,56";TELECOM ITALIA;Z8A08BEC62;EROGATORE SERVIZI TELEFONICI-PAGAMENTO TELEFONO COD DISP 751801050SYERM NOME TELECOM ITALIA S P A MANDAT (P.      21 -R.     185);31-01-2018;583;0;636;1;Spese correnti;3;Acquisto di beni e servizi;2;Acquisto di servizi;5;Utenze e canoni;1;Telefonia fissa;31-01-2018;
344;1;0;"13,30";"13,30";TELECOM ITALIA;Z8A08BEC62;SALDO Fatt.n. 8E01032135  del 05/10/2017 6BIM 2017;31-01-2018;213;0;634;1;Spese correnti;3;Acquisto di beni e servizi;2;Acquisto di servizi;5;Utenze e canoni;1;Telefonia fissa;31-01-2018;
345;1;0;"12,76";"12,76";TELECOM ITALIA;Z8A08BEC62;SALDO Fatt.n. 8E01040304  del 05/10/2017 6BIM 2017;31-01-2018;113;0;631;1;Spese correnti;3;Acquisto di beni e servizi;2;Acquisto di servizi;5;Utenze e canoni;1;Telefonia fissa;31-01-2018;
346;1;0;"13,42";"13,42";TELECOM ITALIA;Z8A08BEC62;SALDO Fatt.n. 8E01041943  del 05/10/2017 6BIM 2017;31-01-2018;113;0;632;1;Spese correnti;3;Acquisto di beni e servizi;2;Acquisto di servizi;5;Utenze e canoni;1;Telefonia fissa;31-01-2018;
347;1;0;"24,98";"24,98";TELECOM ITALIA;Z8A08BEC62;SALDO Fatt.n. 8E01033220  del 05/10/2017 6BIM 2017;31-01-2018;583;0;636;1;Spese correnti;3;Acquisto di beni e servizi;2;Acquisto di servizi;5;Utenze e canoni;1;Telefonia fissa;31-01-2018;
348;1;0;"6,75";"6,75";TELECOM ITALIA;Z8A08BEC62;SALDO Fatt.n. 8E01037710  del 05/10/2017 6BIM 2017;31-01-2018;113;0;630;1;Spese correnti;3;Acquisto di beni e servizi;2;Acquisto di servizi;5;Utenze e canoni;1;Telefonia fissa;31-01-2018;
349;1;0;"24,04";"24,04";TELECOM ITALIA;Z8A08BEC62;SALDO Fatt.n. 8E01043044  del 05/10/2017 6BIM 2017;31-01-2018;113;0;633;1;Spese correnti;3;Acquisto di beni e servizi;2;Acquisto di servizi;5;Utenze e canoni;1;Telefonia fissa;31-01-2018;
350;1;0;"9,56";"9,56";TELECOM ITALIA;Z8A08BEC62;SALDO Fatt.n. 8E01037746  del 05/10/2017 6BIM 2017;31-01-2018;543;0;635;1;Spese correnti;3;Acquisto di beni e servizi;2;Acquisto di servizi;5;Utenze e canoni;1;Telefonia fissa;31-01-2018;
351;1;0;"3.138,62";"3.138,62";MINISTERO DELL'ECONOMIA E DELLE FINANZE; ;VERSAMENTO IVA A DEBITO MESE DI GENNAIO 2018;06-02-2018;1070;0;87;1;Spese correnti;10;Altre spese correnti;3;Versamenti IVA a debito;1;Versamenti IVA a debito per le gestioni commerciali;1;Versamenti IVA a debito per le gestioni commerciali;06-02-2018;
353;1;0;"430,00";"430,00";MONTEVERDE SOC.COOP. DI SOLIDARIETA'. ONLUS;ZAE207B19A;SALDO Fatt.n. 000255/PA  del 31/12/2017 Scissione pagamenti art. 17ter DPR 633/72;06-02-2018;663;0;629;1;Spese correnti;3;Acquisto di beni e servizi;2;Acquisto di servizi;15;Contratti di servizio pubblico;999;Altre spese per contratti di servizio pubblico;06-02-2018;
354;1;0;"430,00";"430,00";MONTEVERDE SOC.COOP. DI SOLIDARIETA'. ONLUS;ZAE207B19A;SALDO Fatt.n. 000256/PA  del 31/12/2017 Scissione pagamenti art. 17ter DPR 633/72;06-02-2018;663;0;629;1;Spese correnti;3;Acquisto di beni e servizi;2;Acquisto di servizi;15;Contratti di servizio pubblico;999;Altre spese per contratti di servizio pubblico;06-02-2018;
355;1;0;"6.553,31";"6.553,31";EURORISTORAZIONE SRL;6993767F17;SALDO Fatt.n. 17CPA03680  del 31/12/2017 FATTURA;06-02-2018;662;0;139;1;Spese correnti;3;Acquisto di beni e servizi;2;Acquisto di servizi;15;Contratti di servizio pubblico;6;Contratti di servizio per le mense scolastiche;06-02-2018;
356;1;0;"1.830,00";"1.830,00";EISEKO;ZA62149C87;SALDO Fatt.n. FATTPA 1_18  del 15/01/2018 FATTURA;06-02-2018;270;0;740;1;Spese correnti;3;Acquisto di beni e servizi;2;Acquisto di servizi;11;Prestazioni professionali e specialistiche;999;Altre prestazioni professionali e specialistiche n.a.c.;06-02-2018;
358;1;0;"1.291,73";"1.291,73";FABBRI NICOLA;Z732085DF3;SALDO Fatt.n. 53\PA  del 21/12/2017 Comune di Cldiero // C.r.l. srl  - Causa avanti il Tribunale di Verona;06-02-2018;170;0;639;1;Spese correnti;3;Acquisto di beni e servizi;2;Acquisto di servizi;11;Prestazioni professionali e specialistiche;6;Patrocinio legale;06-02-2018;
359;1;0;"115,00";"115,00";ZUEGG CHRISTINA;Z9320C829E;SALDO Fatt.n. 0000145  del 26/11/2017 FATTURA;06-02-2018;686;0;678;1;Spese correnti;3;Acquisto di beni e servizi;2;Acquisto di servizi;2;"Organizzazione eventi, pubblicita` e servizi per trasferta";5;Organizzazione e partecipazione a manifestazioni e convegni;06-02-2018;
360;1;0;"500,00";"500,00";CORO POLIFONICO; ;"IMPEGNO CONTRIBUTO ECONOMICO ALL'ASSOCIAZIONE CORO POLIFONICO DI CALDIERO PER IL CONCERTO DELL'EPIFANIA 2018, APPROVATO CON DELIBERA DI GIUNTA N. 137/2017.";06-02-2018;690;0;768;1;Spese correnti;4;Trasferimenti correnti;4;Trasferimenti correnti a Istituzioni Sociali Private;1;Trasferimenti correnti a Istituzioni Sociali Private;1;Trasferimenti correnti a Istituzioni Sociali Private;06-02-2018;
361;1;0;"208,76";"208,76";GROTTO SUSANNA; ;LIQUIDAZIONE DELLE SPESE LEGALI SOSTENUTE A SEGUITO ATTO DI CITAZIONE IN OPPOSIZIONE AD INGIUNZIONE DI PAGAMENTO ISCRITTO A RUOLO INNANZI AL GIUDICE DI PACE ALLA SIG.RA GROTTO SUSANNA;06-02-2018;380;0;83;1;Spese correnti;3;Acquisto di beni e servizi;2;Acquisto di servizi;99;Altri servizi;2;Altre spese legali;06-02-2018;
363;1;0;"3.681,83";"3.681,83";REGIONE VENETO - GENIO CIVILE DI VERONA CANONI DEMANIO; ;VRD/1721 - ACQUEDOTTO COMUNALE - VARIANTE PICCOLA DERIVAZIONE D'ACQUA DELLA FALDA SOTTERRANEA USI POTABILI PUBBLICI - PRATICA D/1721 - CANONE DAL 2001 AL 2010. LIQUIDAZIONE ALLA REGIONE VENETO GENIO CIVILE VERONA;06-02-2018;1000;0;91;1;Spese correnti;4;Trasferimenti correnti;1;Trasferimenti correnti a Amministrazioni Pubbliche;2;Trasferimenti correnti a Amministrazioni Locali;1;Trasferimenti correnti a Regioni e province autonome;06-02-2018;
364;1;0;"4.784,23";"4.784,23";CONSORZIO DI BACINO VERONA DUE DEL QUADRILATERO; ;SALDO Fatt.n. 003957/02  del 14/11/2017 FATTURA;06-02-2018;841;0;201;1;Spese correnti;4;Trasferimenti correnti;1;Trasferimenti correnti a Amministrazioni Pubbliche;2;Trasferimenti correnti a Amministrazioni Locali;18;Trasferimenti correnti a Consorzi di enti locali;06-02-2018;
365;1;0;"788,96";"788,96";CONSORZIO DI BACINO VERONA DUE DEL QUADRILATERO; ;SALDO Fatt.n. 003911/02  del 14/11/2017 FATTURA;06-02-2018;841;0;201;1;Spese correnti;4;Trasferimenti correnti;1;Trasferimenti correnti a Amministrazioni Pubbliche;2;Trasferimenti correnti a Amministrazioni Locali;18;Trasferimenti correnti a Consorzi di enti locali;06-02-2018;
366;1;0;"960,45";"960,45";CONSORZIO DI BACINO VERONA DUE DEL QUADRILATERO; ;SALDO Fatt.n. 004098/02  del 30/11/2017 FATTURA;06-02-2018;840;0;155;1;Spese correnti;3;Acquisto di beni e servizi;2;Acquisto di servizi;15;Contratti di servizio pubblico;4;Contratti di servizio per la raccolta rifiuti;06-02-2018;
367;1;0;"31.464,35";"31.464,35";CONSORZIO DI BACINO VERONA DUE DEL QUADRILATERO; ;SALDO Fatt.n. 004335/02  del 11/12/2017 FATTURA;06-02-2018;840;0;155;1;Spese correnti;3;Acquisto di beni e servizi;2;Acquisto di servizi;15;Contratti di servizio pubblico;4;Contratti di servizio per la raccolta rifiuti;06-02-2018;
368;1;0;"591,68";"591,68";CONSORZIO DI BACINO VERONA DUE DEL QUADRILATERO; ;SALDO Fatt.n. 004132/02  del 30/11/2017 FATTURA;06-02-2018;840;0;155;1;Spese correnti;3;Acquisto di beni e servizi;2;Acquisto di servizi;15;Contratti di servizio pubblico;4;Contratti di servizio per la raccolta rifiuti;06-02-2018;
369;1;0;"718,41";"718,41";CONSORZIO DI BACINO VERONA DUE DEL QUADRILATERO; ;SALDO Fatt.n. 004172/02  del 30/11/2017 FATTURA;06-02-2018;840;0;155;1;Spese correnti;3;Acquisto di beni e servizi;2;Acquisto di servizi;15;Contratti di servizio pubblico;4;Contratti di servizio per la raccolta rifiuti;06-02-2018;
370;1;0;"9.205,21";"9.205,21";CONSORZIO DI BACINO VERONA DUE DEL QUADRILATERO; ;SALDO Fatt.n. 004083/02  del 30/11/2017 FATTURA;06-02-2018;840;0;155;1;Spese correnti;3;Acquisto di beni e servizi;2;Acquisto di servizi;15;Contratti di servizio pubblico;4;Contratti di servizio per la raccolta rifiuti;06-02-2018;
371;1;0;"271,26";"271,26";CONSORZIO DI BACINO VERONA DUE DEL QUADRILATERO; ;SALDO Fatt.n. 004259/02  del 30/11/2017 FATTURA;06-02-2018;840;0;155;1;Spese correnti;3;Acquisto di beni e servizi;2;Acquisto di servizi;15;Contratti di servizio pubblico;4;Contratti di servizio per la raccolta rifiuti;06-02-2018;
372;1;0;"5.887,22";"5.887,22";CONSORZIO DI BACINO VERONA DUE DEL QUADRILATERO; ;SALDO Fatt.n. 004216/02  del 30/11/2017 FATTURA;06-02-2018;840;0;155;1;Spese correnti;3;Acquisto di beni e servizi;2;Acquisto di servizi;15;Contratti di servizio pubblico;4;Contratti di servizio per la raccolta rifiuti;06-02-2018;
373;1;0;"31.464,35";"31.464,35";CONSORZIO DI BACINO VERONA DUE DEL QUADRILATERO; ;SALDO Fatt.n. 004391/02  del 31/12/2017 FATTURA;06-02-2018;840;0;155;1;Spese correnti;3;Acquisto di beni e servizi;2;Acquisto di servizi;15;Contratti di servizio pubblico;4;Contratti di servizio per la raccolta rifiuti;06-02-2018;
374;1;0;"9.359,02";"9.359,02";CONSORZIO DI BACINO VERONA DUE DEL QUADRILATERO; ;SALDO Fatt.n. 004476/02  del 31/12/2017 FATTURA;06-02-2018;840;0;155;1;Spese correnti;3;Acquisto di beni e servizi;2;Acquisto di servizi;15;Contratti di servizio pubblico;4;Contratti di servizio per la raccolta rifiuti;06-02-2018;
375;1;0;"6.207,81";"6.207,81";CONSORZIO DI BACINO VERONA DUE DEL QUADRILATERO; ;SALDO Fatt.n. 004536/02  del 31/12/2017 FATTURA;06-02-2018;840;0;155;1;Spese correnti;3;Acquisto di beni e servizi;2;Acquisto di servizi;15;Contratti di servizio pubblico;4;Contratti di servizio per la raccolta rifiuti;06-02-2018;
376;1;0;"997,92";"997,92";CONSORZIO DI BACINO VERONA DUE DEL QUADRILATERO; ;SALDO Fatt.n. 004493/02  del 31/12/2017 FATTURA;06-02-2018;840;0;155;1;Spese correnti;3;Acquisto di beni e servizi;2;Acquisto di servizi;15;Contratti di servizio pubblico;4;Contratti di servizio per la raccolta rifiuti;06-02-2018;
386;1;0;"16.231,12";"16.231,12";ZAMPINI MARCO;Z0F1E3DF90;SALDO Fatt.n. FATTPA 2_17  del 21/12/2017 FATTURA;07-02-2018;1092;1;688;2;Spese in conto capitale;2;Investimenti fissi lordi e acquisto di terreni;1;Beni materiali;9;Beni immobili;19;Fabbricati ad uso strumentale;07-02-2018;
387;1;0;"14.264,83";"14.264,83";COPROLA - CONSORZIO PRODUZIONE LAVORO ARTIGIANO;7123208133;DM 16/02/2016 INT 1.A FATT PA 5_18 09/01/2018 SR COMUNE CALDIERO P.I. 00252060231 BENEFICIARIO COPROLA P.I. 02513990420;07-02-2018;1092;0;687;2;Spese in conto capitale;2;Investimenti fissi lordi e acquisto di terreni;1;Beni materiali;9;Beni immobili;19;Fabbricati ad uso strumentale;07-02-2018;
388;1;0;"77,20";"77,20";COPROLA - CONSORZIO PRODUZIONE LAVORO ARTIGIANO;7123208133;DM 16/02/2016 INT 1.B FATT PA 6_18 09/01/2018 SR COMUNE CALDIERO P.I. 00252060231 BENEFICIARIO COPROLA P.I. 02513990420;07-02-2018;1092;0;687;2;Spese in conto capitale;2;Investimenti fissi lordi e acquisto di terreni;1;Beni materiali;9;Beni immobili;19;Fabbricati ad uso strumentale;07-02-2018;
389;1;0;"3.551,94";"3.551,94";COPROLA - CONSORZIO PRODUZIONE LAVORO ARTIGIANO;7123208133;DM 16/02/2016 INT 1.F FATT PA 7_18 09/01/2018 SR COMUNE CALDIERO P.I. 00252060231 BENEFICIARIO COPROLA P.I. 02513990420;07-02-2018;1092;0;687;2;Spese in conto capitale;2;Investimenti fissi lordi e acquisto di terreni;1;Beni materiali;9;Beni immobili;19;Fabbricati ad uso strumentale;07-02-2018;
390;1;0;"25.479,04";"25.479,04";COPROLA - CONSORZIO PRODUZIONE LAVORO ARTIGIANO;7123208133;DM 16/02/2016 INT 2.A FATT PA 8_18 09/01/2018 SR COMUNE CALDIERO P.I. 00252060231 BENEFICIARIO COPROLA P.I. 02513990420;07-02-2018;1092;0;687;2;Spese in conto capitale;2;Investimenti fissi lordi e acquisto di terreni;1;Beni materiali;9;Beni immobili;19;Fabbricati ad uso strumentale;07-02-2018;
391;1;0;"200,00";"200,00";PARROCCHIA S.PIETRO APOSTOLO (CALDIERO); ;"INIZIATIVA DEL GIORNO DELLA MEMORIA, APPROVATA CON DELIBERA DI GIUNTA COMUNALE N.7 DEL 18/1/2018. IMPEGNO E LIQUIDAZIONE CONTRIBUTO A FAVORE DELLA PARROCCHIA DI CALDIERO.";08-02-2018;690;0;85;1;Spese correnti;4;Trasferimenti correnti;4;Trasferimenti correnti a Istituzioni Sociali Private;1;Trasferimenti correnti a Istituzioni Sociali Private;1;Trasferimenti correnti a Istituzioni Sociali Private;08-02-2018;
392;1;0;"247,72";"247,72";GP GLOBAL POWER SPA;5952652BD1;SALDO Fatt.n. V6/2926  del 26/01/2018 FORNITURA GAS;08-02-2018;582;0;817;1;Spese correnti;3;Acquisto di beni e servizi;2;Acquisto di servizi;5;Utenze e canoni;6;Gas;08-02-2018;
393;1;0;"979,14";"979,14";GP GLOBAL POWER SPA;5952652BD1;SALDO Fatt.n. V6/2932  del 26/01/2018 FORNITURA GAS;08-02-2018;212;0;820;1;Spese correnti;3;Acquisto di beni e servizi;2;Acquisto di servizi;5;Utenze e canoni;6;Gas;08-02-2018;
394;1;0;"1.368,91";"1.368,91";GP GLOBAL POWER SPA;5952652BD1;SALDO Fatt.n. V6/2933  del 26/01/2018 FORNITURA GAS;08-02-2018;884;0;821;1;Spese correnti;3;Acquisto di beni e servizi;2;Acquisto di servizi;5;Utenze e canoni;6;Gas;08-02-2018;
395;1;0;"3.093,88";"3.093,88";GP GLOBAL POWER SPA;5952652BD1;SALDO Fatt.n. V6/2934  del 26/01/2018 FORNITURA GAS;08-02-2018;888;0;822;1;Spese correnti;3;Acquisto di beni e servizi;2;Acquisto di servizi;5;Utenze e canoni;6;Gas;08-02-2018;
396;1;0;"2,67";"2,67";GP GLOBAL POWER SPA;5952652BD1;SALDO Fatt.n. V6/2935  del 26/01/2018 FORNITURA GAS;08-02-2018;353;0;823;1;Spese correnti;3;Acquisto di beni e servizi;2;Acquisto di servizi;5;Utenze e canoni;6;Gas;08-02-2018;
397;1;0;"27,39";"27,39";GP GLOBAL POWER SPA;5952652BD1;SALDO Fatt.n. V6/2936  del 26/01/2018 FORNITURA GAS;08-02-2018;353;0;823;1;Spese correnti;3;Acquisto di beni e servizi;2;Acquisto di servizi;5;Utenze e canoni;6;Gas;08-02-2018;
398;1;0;"351,08";"351,08";GP GLOBAL POWER SPA;5952652BD1;SALDO Fatt.n. V6/2927  del 26/01/2018 FORNITURA GAS;08-02-2018;353;0;823;1;Spese correnti;3;Acquisto di beni e servizi;2;Acquisto di servizi;5;Utenze e canoni;6;Gas;08-02-2018;
399;1;0;"1.506,68";"1.506,68";GP GLOBAL POWER SPA;5952652BD1;SALDO Fatt.n. V6/2928  del 26/01/2018 FORNITURA GAS;08-02-2018;353;0;823;1;Spese correnti;3;Acquisto di beni e servizi;2;Acquisto di servizi;5;Utenze e canoni;6;Gas;08-02-2018;
400;1;0;"2.777,53";"2.777,53";GP GLOBAL POWER SPA;5952652BD1;SALDO Fatt.n. V6/2929  del 26/01/2018 FORNITURA GAS;08-02-2018;542;0;818;1;Spese correnti;3;Acquisto di beni e servizi;2;Acquisto di servizi;5;Utenze e canoni;6;Gas;08-02-2018;
401;1;0;"133,55";"133,55";GP GLOBAL POWER SPA;5952652BD1;ACCONTO Fatt.n. V6/2930  del 26/01/2018 FORNITURA GAS;08-02-2018;542;0;824;1;Spese correnti;3;Acquisto di beni e servizi;2;Acquisto di servizi;5;Utenze e canoni;6;Gas;08-02-2018;
402;1;0;"-357,61";"665,12";GP GLOBAL POWER SPA;5952652BD1;SALDO Fatt.n. V6/2931  del 26/01/2018 FORNITURA GAS;08-02-2018;212;0;826;1;Spese correnti;3;Acquisto di beni e servizi;2;Acquisto di servizi;5;Utenze e canoni;6;Gas;08-02-2018;
402;2;0;"1.022,73";"665,12";GP GLOBAL POWER SPA;5952652BD1;ACCONTO Fatt.n. V6/2930  del 26/01/2018 FORNITURA GAS;08-02-2018;212;0;826;1;Spese correnti;3;Acquisto di beni e servizi;2;Acquisto di servizi;5;Utenze e canoni;6;Gas;08-02-2018;
403;1;0;"531,52";"531,52";GP GLOBAL POWER SPA;5952652BD1;SALDO Fatt.n. V6/2930  del 26/01/2018 FORNITURA GAS;08-02-2018;582;0;825;1;Spese correnti;3;Acquisto di beni e servizi;2;Acquisto di servizi;5;Utenze e canoni;6;Gas;08-02-2018;
404;1;0;"367,97";"367,97";TELECOM ITALIA;Z7215900F5;SALDO Fatt.n. 7X05279595  del 15/12/2017 1BIM 2018;08-02-2018;113;0;108;1;Spese correnti;3;Acquisto di beni e servizi;2;Acquisto di servizi;5;Utenze e canoni;2;Telefonia mobile;08-02-2018;
405;1;0;"3.825,00";"3.825,00";AMMINISTRATORI COMUNALI; ;LIQUIDAZIONE INDENNITA' DI CARICA MESE DI FEBBRAIO 2018;21-02-2018;10;0;4;1;Spese correnti;3;Acquisto di beni e servizi;2;Acquisto di servizi;1;Organi e incarichi istituzionali dell'amministrazione;1;Organi istituzionali dell'amministrazione - Indennità;21-02-2018;
481;1;0;"30,00";"30,00";ANAC - AUTORITA' NAZIONALE ANTICORRUZIONE EX AVCP; ;CIG 516264094B - PARCHI E GIARDINI - SERVIZIO DI MANUTENZIONE DEL VERDE PUBBLICO COMUNALE PER L'ANNO 2013 - IMPEGNO DI SPESA A FAVORE DELLA COOP. SOCIALE CDL DI SAN BONIFACIO;27-02-2018;295;0;386;1;Spese correnti;4;Trasferimenti correnti;1;Trasferimenti correnti a Amministrazioni Pubbliche;1;Trasferimenti correnti a Amministrazioni Centrali;10;Trasferimenti correnti a autorità amministrative indipendenti;27-02-2018;
482;1;0;"30,00";"30,00";ANAC - AUTORITA' NAZIONALE ANTICORRUZIONE EX AVCP;5717524A0E;SERVIZIO DI MANUTENZIONE DEL VERDE PUBBLICO PER L'ANNO 2014 - APPROVAZIONE CONVENZIONE ED AFFIDAMENTO DIRETTO A COOPERATIVA SOCIALE DI TIPO "B";27-02-2018;295;0;210;1;Spese correnti;4;Trasferimenti correnti;1;Trasferimenti correnti a Amministrazioni Pubbliche;1;Trasferimenti correnti a Amministrazioni Centrali;10;Trasferimenti correnti a autorità amministrative indipendenti;27-02-2018;
483;1;0;"30,00";"30,00";ANAC - AUTORITA' NAZIONALE ANTICORRUZIONE EX AVCP;604820724F;MANUTENZIONE DEL VERDE PUBBLICO - AFFIDAMENTO MEDIANTE INSERIMENTO LAVORATIVO DI SOGGETTI SVANTAGGIATI E DEBOLI EX LEGGE 381/1991 IN DEROGA D.LGS N. 163/2006 - AUTORIZZAZIONE A CONTRARRE -  CIG;27-02-2018;295;0;595;1;Spese correnti;4;Trasferimenti correnti;1;Trasferimenti correnti a Amministrazioni Pubbliche;1;Trasferimenti correnti a Amministrazioni Centrali;10;Trasferimenti correnti a autorità amministrative indipendenti;27-02-2018;
484;1;0;"150,00";"150,00";ANAC - AUTORITA' NAZIONALE ANTICORRUZIONE EX AVCP; ;IMPEGNO E LIQUIDAZIONE IMPORTI DOVUTI ALL'AUTORITA' ANTICORRUZIONE PER L'ESPLETAMENTO GARE DI APPALTO LAVORI;27-02-2018;295;0;145;1;Spese correnti;4;Trasferimenti correnti;1;Trasferimenti correnti a Amministrazioni Pubbliche;1;Trasferimenti correnti a Amministrazioni Centrali;10;Trasferimenti correnti a autorità amministrative indipendenti;27-02-2018;
485;1;0;"5,00";"5,00";UNIONE DI COMUNI VERONA EST; ;CONTRIBUTO ANAC GARA GESTIONE INTEGRATA SICUREZZA LUOGHI LAVORO;27-02-2018;295;0;144;1;Spese correnti;4;Trasferimenti correnti;1;Trasferimenti correnti a Amministrazioni Pubbliche;1;Trasferimenti correnti a Amministrazioni Centrali;10;Trasferimenti correnti a autorità amministrative indipendenti;27-02-2018;
486;1;0;"2.000,00";"2.000,00";POSTE ITALIANE SPA - ALT NORS EST - INCASSI MAAF;Z0B226BB82;SERVIZIO DI POSTA IN PARTENZA CON MACCHINA AFFRANCATRICE. IMPEGNO DI SPESA E VERSAMENTO SU CONTO CORRENTE POSTALE.;27-02-2018;105;0;140;1;Spese correnti;3;Acquisto di beni e servizi;2;Acquisto di servizi;16;Servizi amministrativi;2;Spese postali;27-02-2018;
490;1;0;"0,80";"0,80";CIDIELLE COOPERATIVA SOCIALE;Z141D07EC2;ACCONTO Fatt.n. 227/02  del 31/12/2017 FATTURA;28-02-2018;117;0;86;1;Spese correnti;3;Acquisto di beni e servizi;2;Acquisto di servizi;13;Servizi ausiliari per il funzionamento dell'ente;2;Servizi di pulizia e lavanderia;28-02-2018;
491;1;0;"2.256,98";"2.256,98";CIDIELLE COOPERATIVA SOCIALE;6993707D94;SALDO Fatt.n. 227/02  del 31/12/2017 FATTURA;28-02-2018;117;0;150;1;Spese correnti;3;Acquisto di beni e servizi;2;Acquisto di servizi;13;Servizi ausiliari per il funzionamento dell'ente;2;Servizi di pulizia e lavanderia;28-02-2018;
492;1;0;"654,42";"654,42";VALLISARI ADRIANA;Z6F20D3239;ACCONTO Fatt.n. FATTPA 1_18  del 20/01/2018 FATTURA;28-02-2018;147;0;686;1;Spese correnti;3;Acquisto di beni e servizi;2;Acquisto di servizi;2;"Organizzazione eventi, pubblicita` e servizi per trasferta";999;"Altre spese per relazioni pubbliche, convegni e mostre, pubblicita` n.a.c";28-02-2018;
494;1;0;"3.000,00";"3.000,00";BOMMARTINI MARIA; ;PATRIMONIO COMUNALE - LOCAZIONE DI UN IMMOBILE ED AREA ESTERNA DA ADIBIRE A DEPOSITO COMUNALE - APPROVAZIONE CONTRATTO DI LOCAZIONE PER IL PERIODO 30 LUGLIO 2017 -:- 29 LUGLIO 2020 - IMPEGNO DI SPESA -;28-02-2018;280;0;265;1;Spese correnti;3;Acquisto di beni e servizi;2;Acquisto di servizi;7;Utilizzo di beni di terzi;1;Locazione di beni immobili;28-02-2018;
495;1;0;"36.478,00";"36.478,00";COSTRUZIONI GUERRA SRL;6818381200;SALDO Fatt.n. 02 PA 2018  del 26/01/2018 fattura;28-02-2018;1180;0;612;2;Spese in conto capitale;2;Investimenti fissi lordi e acquisto di terreni;1;Beni materiali;9;Beni immobili;12;Infrastrutture stradali;28-02-2018;
496;1;0;"482,71";"482,71";COSTRUZIONI GUERRA SRL;6818381200;SALDO Fatt.n. 04 pa 2018  del 06/02/2018 FATTURA;28-02-2018;1180;0;612;2;Spese in conto capitale;2;Investimenti fissi lordi e acquisto di terreni;1;Beni materiali;9;Beni immobili;12;Infrastrutture stradali;28-02-2018;
497;1;0;"250,00";"250,00";UNIPOL SAI ASSICURAZIONI SPA; ;ASSICURAZIONI - POLIZZA R.C. GENERALE - SINISTRO N. 1-8101-2017-0628188 - LIQUIDAZIONE SOMMA A TITOLO DI FRANCHIGIA ALLA COMPAGNIA ASSICURATRICE.;28-02-2018;120;0;114;1;Spese correnti;10;Altre spese correnti;4;Premi di assicurazione;1;Premi di assicurazione contro i danni;999;Altri premi di assicurazione contro i danni;28-02-2018;
498;1;0;"507,09";"507,09";ANCI VENETO; ;"ORGANISMI ASSOCIATIVI - ADESIONE PER L'ANNO 2018 AD ANCIVENETO, ANUSCA ED ANUTEL.";28-02-2018;190;0;109;1;Spese correnti;4;Trasferimenti correnti;1;Trasferimenti correnti a Amministrazioni Pubbliche;1;Trasferimenti correnti a Amministrazioni Centrali;11;Trasferimenti correnti a enti centrali a struttura associativa;28-02-2018;
499;1;0;"230,00";"230,00";ANUTEL; ;"ORGANISMI ASSOCIATIVI - ADESIONE PER L'ANNO 2018 AD ANCIVENETO, ANUSCA ED ANUTEL.";28-02-2018;190;0;110;1;Spese correnti;4;Trasferimenti correnti;1;Trasferimenti correnti a Amministrazioni Pubbliche;1;Trasferimenti correnti a Amministrazioni Centrali;11;Trasferimenti correnti a enti centrali a struttura associativa;28-02-2018;
500;1;0;"440,00";"440,00";ANUSCA; ;"ORGANISMI ASSOCIATIVI - ADESIONE PER L'ANNO 2018 AD ANCIVENETO, ANUSCA ED ANUTEL.";28-02-2018;190;0;111;1;Spese correnti;4;Trasferimenti correnti;1;Trasferimenti correnti a Amministrazioni Pubbliche;1;Trasferimenti correnti a Amministrazioni Centrali;11;Trasferimenti correnti a enti centrali a struttura associativa;28-02-2018;
501;1;0;"1.173,00";"1.173,00";VALLISARI ADRIANA;Z9720A89C6;SALDO Fatt.n. FATTPA 3_18  del 21/01/2018 FATTURA;28-02-2018;147;0;658;1;Spese correnti;3;Acquisto di beni e servizi;2;Acquisto di servizi;2;"Organizzazione eventi, pubblicita` e servizi per trasferta";999;"Altre spese per relazioni pubbliche, convegni e mostre, pubblicita` n.a.c";28-02-2018;
502;1;0;"2.091,00";"2.091,00";VALLISARI ADRIANA;Z811D7E402;SALDO Fatt.n. FATTPA 2_18  del 21/01/2018 FATTURA;28-02-2018;147;0;149;1;Spese correnti;3;Acquisto di beni e servizi;2;Acquisto di servizi;2;"Organizzazione eventi, pubblicita` e servizi per trasferta";999;"Altre spese per relazioni pubbliche, convegni e mostre, pubblicita` n.a.c";28-02-2018;
503;1;0;"0,01";"504,99";LEGGERE SRL;Z7D1DFD17B;SALDO Fatt.n. 1685  del 31/01/2018 fattura;28-02-2018;681;0;216;1;Spese correnti;3;Acquisto di beni e servizi;1;Acquisto di beni;1;"Giornali, riviste e pubblicazioni";2;Pubblicazioni;28-02-2018;
503;2;0;"0,11";"504,99";LEGGERE SRL;Z7D1DFD17B;SALDO Fatt.n. 1686  del 31/01/2018 fattura;28-02-2018;681;0;216;1;Spese correnti;3;Acquisto di beni e servizi;1;Acquisto di beni;1;"Giornali, riviste e pubblicazioni";2;Pubblicazioni;28-02-2018;
503;3;0;"20,25";"504,99";LEGGERE SRL;Z7D1DFD17B;ACCONTO Fatt.n. 1685  del 31/01/2018 fattura;28-02-2018;681;0;216;1;Spese correnti;3;Acquisto di beni e servizi;1;Acquisto di beni;1;"Giornali, riviste e pubblicazioni";2;Pubblicazioni;28-02-2018;
503;4;0;"484,62";"504,99";LEGGERE SRL;Z7D1DFD17B;ACCONTO Fatt.n. 1686  del 31/01/2018 fattura;28-02-2018;681;0;216;1;Spese correnti;3;Acquisto di beni e servizi;1;Acquisto di beni;1;"Giornali, riviste e pubblicazioni";2;Pubblicazioni;28-02-2018;
504;1;0;"652,21";"652,21";GRAFICHE E. GASPARI SRL;ZC01E0610A;SALDO Fatt.n. 18313  del 31/12/2017 fattura;28-02-2018;330;0;217;1;Spese correnti;3;Acquisto di beni e servizi;1;Acquisto di beni;2;Altri beni di consumo;1;"Carta, cancelleria e stampati";28-02-2018;
505;1;0;"364,78";"364,78";POWER MEDIA;Z99202709F;SALDO Fatt.n. FATTPA 92_17  del 25/11/2017 FATTURA;28-02-2018;681;0;572;1;Spese correnti;3;Acquisto di beni e servizi;1;Acquisto di beni;1;"Giornali, riviste e pubblicazioni";2;Pubblicazioni;28-02-2018;
506;1;0;"236,92";"236,92";MINISTERO DELL'ECONOMIA E DELLE FINANZE; ;VERSAMENTO IVA A DEBITO RELATIVA AL MESE DI FEBBRAIO 2018;05-03-2018;1070;0;162;1;Spese correnti;10;Altre spese correnti;3;Versamenti IVA a debito;1;Versamenti IVA a debito per le gestioni commerciali;1;Versamenti IVA a debito per le gestioni commerciali;05-03-2018;
508;1;0;"2.500,00";"2.500,00";FONDAZIONE DON GAETANO PROVOLI - SCUOLA PARITARIA PER L; ;"EROGAZIONE CONTRIBUTI STRAORDINARI ALLE SCUOLE MATERNE PARITARIE DEL TERRITORIO, APPROVATI CON DELIBERA DI GIUNTA COMUNALE N.147/2017.";06-03-2018;480;0;798;1;Spese correnti;4;Trasferimenti correnti;4;Trasferimenti correnti a Istituzioni Sociali Private;1;Trasferimenti correnti a Istituzioni Sociali Private;1;Trasferimenti correnti a Istituzioni Sociali Private;06-03-2018;
509;1;0;"1.000,00";"1.000,00";SCUOLA MATERNA "MARIA IMMACOLATA" STRA'; ;"EROGAZIONE CONTRIBUTI STRAORDINARI ALLE SCUOLE MATERNE PARITARIE DEL TERRITORIO, APPROVATI CON DELIBERA DI GIUNTA COMUNALE N.147/2017.";06-03-2018;480;0;798;1;Spese correnti;4;Trasferimenti correnti;4;Trasferimenti correnti a Istituzioni Sociali Private;1;Trasferimenti correnti a Istituzioni Sociali Private;1;Trasferimenti correnti a Istituzioni Sociali Private;06-03-2018;
510;1;0;"2.500,00";"2.500,00";SCUOLA MATERNA MARIA BAMBINA; ;"EROGAZIONE CONTRIBUTI STRAORDINARI ALLE SCUOLE MATERNE PARITARIE DEL TERRITORIO, APPROVATI CON DELIBERA DI GIUNTA COMUNALE N.147/2017.";06-03-2018;480;0;798;1;Spese correnti;4;Trasferimenti correnti;4;Trasferimenti correnti a Istituzioni Sociali Private;1;Trasferimenti correnti a Istituzioni Sociali Private;1;Trasferimenti correnti a Istituzioni Sociali Private;06-03-2018;
511;1;0;"4.123,60";"4.123,60";INTECH - INGEGNERI ASSOCIATI;Z591AD1F1E;SALDO Fatt.n. FATTPA 1_18  del 26/01/2018 FATTURA;06-03-2018;1180;0;447;2;Spese in conto capitale;2;Investimenti fissi lordi e acquisto di terreni;1;Beni materiali;9;Beni immobili;12;Infrastrutture stradali;06-03-2018;
512;1;0;"92.089,90";"92.089,90";CONSORZIO ARTEA;7223582072;ACCONTO Fatt.n. 4-2018/PA  del 21/02/2018 FATTURA PRIMO SAL;06-03-2018;1174;0;278;2;Spese in conto capitale;2;Investimenti fissi lordi e acquisto di terreni;1;Beni materiali;9;Beni immobili;16;Impianti sportivi;06-03-2018;
513;1;0;"530,10";"530,10";CONSORZIO ARTEA;7223582072;SALDO Fatt.n. 4-2018/PA  del 21/02/2018 FATTURA PRIMO SAL;06-03-2018;1174;0;278;2;Spese in conto capitale;2;Investimenti fissi lordi e acquisto di terreni;1;Beni materiali;9;Beni immobili;16;Impianti sportivi;06-03-2018;
514;1;0;"8.361,66";"8.361,66";EURORISTORAZIONE SRL;6993767F17;SALDO Fatt.n. 18CPA00249  del 31/01/2018 FATTURA;06-03-2018;662;0;139;1;Spese correnti;3;Acquisto di beni e servizi;2;Acquisto di servizi;15;Contratti di servizio pubblico;6;Contratti di servizio per le mense scolastiche;06-03-2018;
515;1;0;"366,00";"366,00";MERCURIO SRL;Z3421CBCC0;SALDO Fatt.n. FATTPA 1_18  del 31/01/2018 fattura;06-03-2018;147;0;797;1;Spese correnti;3;Acquisto di beni e servizi;2;Acquisto di servizi;2;"Organizzazione eventi, pubblicita` e servizi per trasferta";999;"Altre spese per relazioni pubbliche, convegni e mostre, pubblicita` n.a.c";06-03-2018;
516;1;0;"1.776,32";"1.776,32";TECNOGEO - STUDIO TECNICO ASSOCIATO;Z371D3CD83;SALDO Fatt.n. 15  del 12/02/2018 FATTURA;06-03-2018;1180;1;577;2;Spese in conto capitale;2;Investimenti fissi lordi e acquisto di terreni;1;Beni materiali;9;Beni immobili;12;Infrastrutture stradali;06-03-2018;
517;1;0;"170,80";"170,80";RATTICIDA VENETA SAS DI FERLENGA M. E G.;ZF31F0A617;SALDO Fatt.n. 8/PA  del 31/01/2018 fattura;06-03-2018;465;0;453;1;Spese correnti;3;Acquisto di beni e servizi;2;Acquisto di servizi;99;Altri servizi;999;Altri servizi diversi n.a.c.;06-03-2018;
518;1;0;"70,90";"70,90";FERRAMENTA BELLOMI DI FOLLETTO G. E L. SAS;Z8F1DC66DA;SALDO Fatt.n. 2018     1/P  del 31/01/2018 fattura;06-03-2018;350;0;158;1;Spese correnti;3;Acquisto di beni e servizi;1;Acquisto di beni;2;Altri beni di consumo;999;Altri beni e materiali di consumo n.a.c.;06-03-2018;
519;1;0;"4.672,05";"4.672,05";COOPERATIVA SOCIALE MONSCLEDA LAVORO SRL;ZBB1F09313;SALDO Fatt.n. 9/2018  del 31/01/2018 FATTURA;06-03-2018;952;0;429;1;Spese correnti;3;Acquisto di beni e servizi;2;Acquisto di servizi;9;Manutenzione ordinaria e riparazioni;8;Manutenzione ordinaria e riparazioni di beni immobili;06-03-2018;
520;1;0;"5.500,00";"5.500,00";METALCO SRL;Z9D2148583;SALDO Fatt.n. 2018130000004  del 18/01/2018 fattura;06-03-2018;1181;0;552;2;Spese in conto capitale;2;Investimenti fissi lordi e acquisto di terreni;1;Beni materiali;9;Beni immobili;12;Infrastrutture stradali;06-03-2018;
521;1;0;"4.651,86";"4.651,86";IDROCLIMA DI MILLI STEFANO E VANNI SNC;Z9E1D73961;SALDO Fatt.n. 00002/02  del 15/01/2018 fattura;06-03-2018;352;0;121;1;Spese correnti;3;Acquisto di beni e servizi;2;Acquisto di servizi;9;Manutenzione ordinaria e riparazioni;8;Manutenzione ordinaria e riparazioni di beni immobili;06-03-2018;
522;1;0;"1.498,77";"1.498,77";AGRIGARDEN DI ALBERTINI RENATO;ZE11DC6762;SALDO Fatt.n. 01/PA  del 22/01/2018 MANUTENZIONI ORDINARIE - CIG ZE11DC6762;06-03-2018;292;0;161;1;Spese correnti;3;Acquisto di beni e servizi;2;Acquisto di servizi;9;Manutenzione ordinaria e riparazioni;1;"Manutenzione ordinaria e riparazioni di mezzi di trasporto ad uso civile, di sicurezza e ordine pubblico";06-03-2018;
523;1;0;"2.156,96";"2.156,96";TOVO COSTANZO - ARCH.;Z3F1D300CA;SALDO Fatt.n. FATTPA 3_18  del 19/02/2018 FATTURA;06-03-2018;1092;1;688;2;Spese in conto capitale;2;Investimenti fissi lordi e acquisto di terreni;1;Beni materiali;9;Beni immobili;19;Fabbricati ad uso strumentale;06-03-2018;
524;1;0;"1.235,85";"1.235,85";MATTARANETTA SOCIETA' COOPERATIVA SOCIALE;Z3C1CA95E4;SALDO Fatt.n. 4/FE  del 31/01/2018 FATTURA IMMEDIATA;06-03-2018;840;0;750;1;Spese correnti;3;Acquisto di beni e servizi;2;Acquisto di servizi;15;Contratti di servizio pubblico;4;Contratti di servizio per la raccolta rifiuti;06-03-2018;
525;1;0;"372,10";"372,10";SICONTRAF SRL;ZA91DEC1FC;SALDO Fatt.n. 20/PA  del 24/01/2018 fattura;06-03-2018;952;0;203;1;Spese correnti;3;Acquisto di beni e servizi;2;Acquisto di servizi;9;Manutenzione ordinaria e riparazioni;8;Manutenzione ordinaria e riparazioni di beni immobili;06-03-2018;
526;1;0;"9.972,89";"9.972,89";PICCOLI FLAVIO SRL - IMPIANTI;Z86216698C;SALDO Fatt.n. 2PA  del 14/02/2018 FATTURA;06-03-2018;1203;0;744;2;Spese in conto capitale;2;Investimenti fissi lordi e acquisto di terreni;1;Beni materiali;9;Beni immobili;12;Infrastrutture stradali;06-03-2018;
527;1;0;"129,17";"129,17";LA RONDA - SERVIZI DI VIGILANZA;ZE618FE5E8;SALDO Fatt.n. 0002039  del 31/01/2018 fattura;06-03-2018;357;0;171;1;Spese correnti;3;Acquisto di beni e servizi;2;Acquisto di servizi;13;Servizi ausiliari per il funzionamento dell'ente;1;"Servizi di sorveglianza, custodia e accoglienza";06-03-2018;
528;1;0;"256,20";"256,20";VETRERIE ZAMBONI SRL;ZEB1D73890;SALDO Fatt.n. 000001-2018-FE  del 16/01/2018 DETERMINA N. 6/2017;06-03-2018;350;0;118;1;Spese correnti;3;Acquisto di beni e servizi;1;Acquisto di beni;2;Altri beni di consumo;8;Strumenti tecnico-specialistici non sanitari;06-03-2018;
529;1;0;"-200,00";"1.755,50";STUDIO GIUNONE DI ALBI E CRIVELLENTE;Z22213E7D7;SALDO Fatt.n. 2/FE  del 01/02/2018 PRESTAZIONI TECNICHE RIGUARDANTI IL RINNOVO DEL CERTIFICATO DI PREVENZIONE INCENDI DELLE TRIBUNE PRESSO IL CAMPO SPORTIVO IN VIA PONTEROTTO - CALDIERO. RIFERIMENTO IMPEGNO DI SPESA NR. 732/2017.;06-03-2018;270;0;732;1;Spese correnti;3;Acquisto di beni e servizi;2;Acquisto di servizi;11;Prestazioni professionali e specialistiche;999;Altre prestazioni professionali e specialistiche n.a.c.;06-03-2018;
529;2;0;"1.955,50";"1.755,50";STUDIO GIUNONE DI ALBI E CRIVELLENTE;Z22213E7D7;SALDO Fatt.n. 2/FE  del 01/02/2018 PRESTAZIONI TECNICHE RIGUARDANTI IL RINNOVO DEL CERTIFICATO DI PREVENZIONE INCENDI DELLE TRIBUNE PRESSO IL CAMPO SPORTIVO IN VIA PONTEROTTO - CALDIERO. RIFERIMENTO IMPEGNO DI SPESA NR. 732/2017.;06-03-2018;270;0;732;1;Spese correnti;3;Acquisto di beni e servizi;2;Acquisto di servizi;11;Prestazioni professionali e specialistiche;999;Altre prestazioni professionali e specialistiche n.a.c.;06-03-2018;
530;1;0;"49,00";"267,51";KUWAIT PETROLEUM ITALIA SPA;ZA91845EEC;ACCONTO Fatt.n. PJ00113160  del 31/01/2018 FATTURA;06-03-2018;290;0;238;1;Spese correnti;3;Acquisto di beni e servizi;1;Acquisto di beni;2;Altri beni di consumo;2;"Carburanti, combustibili e lubrificanti";06-03-2018;
530;2;0;"218,51";"267,51";KUWAIT PETROLEUM ITALIA SPA;ZA91845EEC;SALDO Fatt.n. PJ00113160  del 31/01/2018 FATTURA;06-03-2018;290;0;238;1;Spese correnti;3;Acquisto di beni e servizi;1;Acquisto di beni;2;Altri beni di consumo;2;"Carburanti, combustibili e lubrificanti";06-03-2018;
531;1;0;"878,40";"878,40";GES GROUP SRL;Z1520D26B6;SALDO Fatt.n. 000037  del 20/12/2017 fattura;06-03-2018;1171;0;701;2;Spese in conto capitale;2;Investimenti fissi lordi e acquisto di terreni;1;Beni materiali;9;Beni immobili;16;Impianti sportivi;06-03-2018;
532;1;0;"0,01";"444,00";EDILTOSI S.R.L.;ZC71D737AF;SALDO Fatt.n. 000602  del 31/01/2018 FATTURA;06-03-2018;350;0;116;1;Spese correnti;3;Acquisto di beni e servizi;1;Acquisto di beni;2;Altri beni di consumo;999;Altri beni e materiali di consumo n.a.c.;06-03-2018;
532;2;0;"443,99";"444,00";EDILTOSI S.R.L.;ZC71D737AF;ACCONTO Fatt.n. 000602  del 31/01/2018 FATTURA;06-03-2018;350;0;116;1;Spese correnti;3;Acquisto di beni e servizi;1;Acquisto di beni;2;Altri beni di consumo;999;Altri beni e materiali di consumo n.a.c.;06-03-2018;
533;1;0;"3.669,76";"3.669,76";ARES SRL;Z87218CDA1;SALDO Fatt.n. 1/PA  del 13/02/2018 FATTURA;06-03-2018;589;0;794;1;Spese correnti;3;Acquisto di beni e servizi;2;Acquisto di servizi;9;Manutenzione ordinaria e riparazioni;9;"Manutenzione ordinaria e riparazioni di beni immobili di valore culturale, storico ed artistico";06-03-2018;
534;1;0;"8.092,96";"8.092,96";ELETTRA SERVICE SNC;ZE12186C4F;SALDO Fatt.n. 06/2018  del 31/01/2018 FATTURA;06-03-2018;589;0;792;1;Spese correnti;3;Acquisto di beni e servizi;2;Acquisto di servizi;9;Manutenzione ordinaria e riparazioni;8;Manutenzione ordinaria e riparazioni di beni immobili;06-03-2018;
535;1;0;"292,80";"292,80";SORDATO SRL;Z44166E18B;SALDO Fatt.n. PA-0003  del 24/01/2018 fattura;06-03-2018;114;0;491;1;Spese correnti;3;Acquisto di beni e servizi;2;Acquisto di servizi;9;Manutenzione ordinaria e riparazioni;4;Manutenzione ordinaria e riparazioni di impianti e macchinari;06-03-2018;
536;1;0;"1.443,66";"1.443,66";SORDATO SRL;Z102019168;SALDO Fatt.n. PA-0004  del 31/01/2018 FATTURA;06-03-2018;114;0;599;1;Spese correnti;3;Acquisto di beni e servizi;2;Acquisto di servizi;9;Manutenzione ordinaria e riparazioni;4;Manutenzione ordinaria e riparazioni di impianti e macchinari;06-03-2018;
537;1;0;"478,24";"478,24";CIDIELLE COOPERATIVA SOCIALE;Z1E1EC391B;SALDO Fatt.n. 24/02  del 31/01/2018 FATTURA;06-03-2018;840;0;326;1;Spese correnti;3;Acquisto di beni e servizi;2;Acquisto di servizi;15;Contratti di servizio pubblico;4;Contratti di servizio per la raccolta rifiuti;06-03-2018;
538;1;0;"2.132,96";"2.132,96";COOPERATIVA SOCIALE VENETA ONLUS;Z431F034F6;SALDO Fatt.n. 000015-2018-PA  del 31/01/2018 FATTURA;06-03-2018;782;0;454;1;Spese correnti;3;Acquisto di beni e servizi;2;Acquisto di servizi;9;Manutenzione ordinaria e riparazioni;8;Manutenzione ordinaria e riparazioni di beni immobili;06-03-2018;
539;1;0;"697,84";"697,84";ADAMI GRAZIANO;Z261903F58;SALDO Fatt.n. 04/PA  del 08/02/2018 FATTURA;06-03-2018;378;0;169;1;Spese correnti;3;Acquisto di beni e servizi;2;Acquisto di servizi;16;Servizi amministrativi;999;Altre spese per servizi amministrativi;06-03-2018;
540;1;0;"697,84";"697,84";ADAMI GRAZIANO;Z411D47ACF;SALDO Fatt.n. 05/PA  del 08/02/2018 FATTURA;06-03-2018;378;0;100;1;Spese correnti;3;Acquisto di beni e servizi;2;Acquisto di servizi;16;Servizi amministrativi;999;Altre spese per servizi amministrativi;06-03-2018;
541;1;0;"-127,36";"11.045,75";GP GLOBAL POWER SPA;7226954F17;BENEFICIARI DIVERSI-PAGAMENTI DIVERSI COD DISP 751802210XMGAK NOME GLOBAL POWER SPA MANDATO (P.      51 -R.     424);07-03-2018;960;0;580;1;Spese correnti;3;Acquisto di beni e servizi;2;Acquisto di servizi;5;Utenze e canoni;4;Energia elettrica;07-03-2018;
541;2;0;"11.173,11";"11.045,75";GP GLOBAL POWER SPA;7226954F17;BENEFICIARI DIVERSI-PAGAMENTI DIVERSI COD DISP 751802210XMGAK NOME GLOBAL POWER SPA MANDATO (P.      51 -R.     424);07-03-2018;960;0;580;1;Spese correnti;3;Acquisto di beni e servizi;2;Acquisto di servizi;5;Utenze e canoni;4;Energia elettrica;07-03-2018;
542;1;0;"1.797,79";"1.797,79";GP GLOBAL POWER SPA; ;BENEFICIARI DIVERSI-PAGAMENTI DIVERSI COD DISP 751802210XMGFW NOME GLOBAL POWER SPA MANDATO (P.      54 -R.     427);07-03-2018;111;0;146;1;Spese correnti;3;Acquisto di beni e servizi;2;Acquisto di servizi;5;Utenze e canoni;4;Energia elettrica;07-03-2018;
543;1;0;"58,18";"58,18";TELECOM ITALIA;Z8A08BEC62;EROGATORE SERVIZI TELEFONICI-PAGAMENTO TELEFONO COD DISP 751802200W5XWW NOME TELECOM ITALIA S P A MANDAT (P.      47 -R.     420);07-03-2018;113;0;101;1;Spese correnti;3;Acquisto di beni e servizi;2;Acquisto di servizi;5;Utenze e canoni;1;Telefonia fissa;07-03-2018;
544;1;0;"62,27";"62,27";TELECOM ITALIA;Z8A08BEC62;EROGATORE SERVIZI TELEFONICI-PAGAMENTO TELEFONO COD DISP 751802200W5XWV NOME TELECOM ITALIA S P A MANDAT (P.      50 -R.     423);07-03-2018;113;0;102;1;Spese correnti;3;Acquisto di beni e servizi;2;Acquisto di servizi;5;Utenze e canoni;1;Telefonia fissa;07-03-2018;
545;1;0;"133,87";"133,87";TELECOM ITALIA;Z8A08BEC62;EROGATORE SERVIZI TELEFONICI-PAGAMENTO TELEFONO COD DISP 751802200W5XWP NOME TELECOM ITALIA S P A MANDAT (P.      44 -R.     417);07-03-2018;113;0;103;1;Spese correnti;3;Acquisto di beni e servizi;2;Acquisto di servizi;5;Utenze e canoni;1;Telefonia fissa;07-03-2018;
546;1;0;"30,68";"30,68";TELECOM ITALIA; ;EROGATORE SERVIZI TELEFONICI-PAGAMENTO TELEFONO COD DISP 751802200W5XWY NOME TELECOM ITALIA S P A MANDAT (P.      48 -R.     421);07-03-2018;113;0;107;1;Spese correnti;3;Acquisto di beni e servizi;2;Acquisto di servizi;5;Utenze e canoni;1;Telefonia fissa;07-03-2018;
547;1;0;"147,38";"147,38";GP GLOBAL POWER SPA;7226954F17;BENEFICIARI DIVERSI-PAGAMENTI DIVERSI COD DISP 751802210XMGAN NOME GLOBAL POWER SPA MANDATO (P.      53 -R.     426);07-03-2018;211;0;573;1;Spese correnti;3;Acquisto di beni e servizi;2;Acquisto di servizi;5;Utenze e canoni;4;Energia elettrica;07-03-2018;
548;1;0;"61,70";"61,70";TELECOM ITALIA;Z8A08BEC62;EROGATORE SERVIZI TELEFONICI-PAGAMENTO TELEFONO COD DISP 751802200W5XWT NOME TELECOM ITALIA S P A MANDAT (P.      46 -R.     419);07-03-2018;213;0;104;1;Spese correnti;3;Acquisto di beni e servizi;2;Acquisto di servizi;5;Utenze e canoni;1;Telefonia fissa;07-03-2018;
549;1;0;"391,47";"391,47";GP GLOBAL POWER SPA;7226954F17;BENEFICIARI DIVERSI-PAGAMENTI DIVERSI COD DISP 751802210XMGAH NOME GLOBAL POWER SPA MANDATO (P.      52 -R.     425);07-03-2018;354;0;574;1;Spese correnti;3;Acquisto di beni e servizi;2;Acquisto di servizi;5;Utenze e canoni;4;Energia elettrica;07-03-2018;
550;1;0;"1.286,67";"1.286,67";GP GLOBAL POWER SPA;7226954F17;BENEFICIARI DIVERSI-PAGAMENTI DIVERSI COD DISP 751802210XMG9R NOME GLOBAL POWER SPA MANDATO (P.      55 -R.     428);07-03-2018;541;0;575;1;Spese correnti;3;Acquisto di beni e servizi;2;Acquisto di servizi;5;Utenze e canoni;4;Energia elettrica;07-03-2018;
551;1;0;"51,37";"51,37";TELECOM ITALIA;Z8A08BEC62;EROGATORE SERVIZI TELEFONICI-PAGAMENTO TELEFONO COD DISP 751802200W5XWZ NOME TELECOM ITALIA S P A MANDAT (P.      49 -R.     422);07-03-2018;543;0;105;1;Spese correnti;3;Acquisto di beni e servizi;2;Acquisto di servizi;5;Utenze e canoni;1;Telefonia fissa;07-03-2018;
552;1;0;"792,34";"792,34";GP GLOBAL POWER SPA;7226954F17;BENEFICIARI DIVERSI-PAGAMENTI DIVERSI COD DISP 751802210XMGFY NOME GLOBAL POWER SPA MANDATO (P.      58 -R.     431);07-03-2018;581;0;576;1;Spese correnti;3;Acquisto di beni e servizi;2;Acquisto di servizi;5;Utenze e canoni;4;Energia elettrica;07-03-2018;
553;1;0;"115,35";"115,35";TELECOM ITALIA; ;EROGATORE SERVIZI TELEFONICI-PAGAMENTO TELEFONO COD DISP 751802200W5XWU NOME TELECOM ITALIA S P A MANDAT (P.      45 -R.     418);07-03-2018;583;0;106;1;Spese correnti;3;Acquisto di beni e servizi;2;Acquisto di servizi;5;Utenze e canoni;1;Telefonia fissa;07-03-2018;
554;1;0;"383,91";"383,91";GP GLOBAL POWER SPA;7226954F17;BENEFICIARI DIVERSI-PAGAMENTI DIVERSI COD DISP 751802210XMG9U NOME GLOBAL POWER SPA MANDATO (P.      57 -R.     430);07-03-2018;885;0;578;1;Spese correnti;3;Acquisto di beni e servizi;2;Acquisto di servizi;5;Utenze e canoni;6;Gas;07-03-2018;
555;1;0;"80,31";"80,31";GP GLOBAL POWER SPA;7226954F17;BENEFICIARI DIVERSI-PAGAMENTI DIVERSI COD DISP 751802210XMGAQ NOME GLOBAL POWER SPA MANDATO (P.      56 -R.     429);07-03-2018;951;0;579;1;Spese correnti;3;Acquisto di beni e servizi;2;Acquisto di servizi;5;Utenze e canoni;4;Energia elettrica;07-03-2018;
556;1;0;"-28,02";"2.430,06";GP GLOBAL POWER SPA;7226954F17;SALDO Fatt.n. V0/146916  del 12/12/2017 Fattura Energia Elettrica;07-03-2018;960;0;580;1;Spese correnti;3;Acquisto di beni e servizi;2;Acquisto di servizi;5;Utenze e canoni;4;Energia elettrica;07-03-2018;
556;2;0;"2.458,08";"2.430,06";GP GLOBAL POWER SPA;7226954F17;SALDO Fatt.n. V0/24046  del 13/02/2018 Fattura Energia Elettrica;07-03-2018;960;0;580;1;Spese correnti;3;Acquisto di beni e servizi;2;Acquisto di servizi;5;Utenze e canoni;4;Energia elettrica;07-03-2018;
557;1;0;"86,12";"86,12";GP GLOBAL POWER SPA;7226954F17;SALDO Fatt.n. V0/24049  del 13/02/2018 Fattura Energia Elettrica;07-03-2018;354;0;574;1;Spese correnti;3;Acquisto di beni e servizi;2;Acquisto di servizi;5;Utenze e canoni;4;Energia elettrica;07-03-2018;
558;1;0;"32,42";"32,42";GP GLOBAL POWER SPA;7226954F17;SALDO Fatt.n. V0/24048  del 13/02/2018 Fattura Energia Elettrica;07-03-2018;211;0;573;1;Spese correnti;3;Acquisto di beni e servizi;2;Acquisto di servizi;5;Utenze e canoni;4;Energia elettrica;07-03-2018;
559;1;0;"395,51";"395,51";GP GLOBAL POWER SPA;7226954F17;SALDO Fatt.n. V0/24047  del 13/02/2018 Fattura Energia Elettrica;07-03-2018;111;0;146;1;Spese correnti;3;Acquisto di beni e servizi;2;Acquisto di servizi;5;Utenze e canoni;4;Energia elettrica;07-03-2018;
560;1;0;"128,67";"128,67";GP GLOBAL POWER SPA;7226954F17;SALDO Fatt.n. V0/24050  del 13/02/2018 Fattura Energia Elettrica;07-03-2018;541;0;575;1;Spese correnti;3;Acquisto di beni e servizi;2;Acquisto di servizi;5;Utenze e canoni;4;Energia elettrica;07-03-2018;
561;1;0;"17,67";"17,67";GP GLOBAL POWER SPA;7226954F17;SALDO Fatt.n. V0/24053  del 13/02/2018 Fattura Energia Elettrica;07-03-2018;951;0;579;1;Spese correnti;3;Acquisto di beni e servizi;2;Acquisto di servizi;5;Utenze e canoni;4;Energia elettrica;07-03-2018;
562;1;0;"84,46";"84,46";GP GLOBAL POWER SPA;7226954F17;SALDO Fatt.n. V0/24052  del 13/02/2018 Fattura Energia Elettrica;07-03-2018;885;0;578;1;Spese correnti;3;Acquisto di beni e servizi;2;Acquisto di servizi;5;Utenze e canoni;6;Gas;07-03-2018;
563;1;0;"79,23";"79,23";GP GLOBAL POWER SPA;7226954F17;SALDO Fatt.n. V0/24051  del 13/02/2018 Fattura Energia Elettrica;07-03-2018;581;0;576;1;Spese correnti;3;Acquisto di beni e servizi;2;Acquisto di servizi;5;Utenze e canoni;4;Energia elettrica;07-03-2018;
564;1;0;"29,45";"29,45";TELECOM ITALIA;Z8A08BEC62;SALDO Fatt.n. 8E01248599  del 06/12/2017 1BIM 2018;08-03-2018;113;0;103;1;Spese correnti;3;Acquisto di beni e servizi;2;Acquisto di servizi;5;Utenze e canoni;1;Telefonia fissa;08-03-2018;
565;1;0;"25,38";"25,38";TELECOM ITALIA;Z8A08BEC62;SALDO Fatt.n. 8E01247908  del 06/12/2017 1BIM 2018;08-03-2018;583;0;106;1;Spese correnti;3;Acquisto di beni e servizi;2;Acquisto di servizi;5;Utenze e canoni;1;Telefonia fissa;08-03-2018;
566;1;0;"13,57";"13,57";TELECOM ITALIA;Z8A08BEC62;SALDO Fatt.n. 8E01252997  del 06/12/2017 1BIM 2018;08-03-2018;213;0;104;1;Spese correnti;3;Acquisto di beni e servizi;2;Acquisto di servizi;5;Utenze e canoni;1;Telefonia fissa;08-03-2018;
567;1;0;"12,80";"12,80";TELECOM ITALIA;Z8A08BEC62;SALDO Fatt.n. 8E01249832  del 06/12/2017 1BIM 2018;08-03-2018;113;0;101;1;Spese correnti;3;Acquisto di beni e servizi;2;Acquisto di servizi;5;Utenze e canoni;1;Telefonia fissa;08-03-2018;
568;1;0;"6,75";"6,75";TELECOM ITALIA;Z8A08BEC62;SALDO Fatt.n. 8E01246760  del 06/12/2017 1BIM 2018;08-03-2018;113;0;107;1;Spese correnti;3;Acquisto di beni e servizi;2;Acquisto di servizi;5;Utenze e canoni;1;Telefonia fissa;08-03-2018;
569;1;0;"11,30";"11,30";TELECOM ITALIA;Z8A08BEC62;SALDO Fatt.n. 8E01248413  del 06/12/2017 1BIM 2018;08-03-2018;543;0;105;1;Spese correnti;3;Acquisto di beni e servizi;2;Acquisto di servizi;5;Utenze e canoni;1;Telefonia fissa;08-03-2018;
570;1;0;"13,70";"13,70";TELECOM ITALIA;Z8A08BEC62;SALDO Fatt.n. 8E01250269  del 06/12/2017 1BIM 2018;08-03-2018;113;0;102;1;Spese correnti;3;Acquisto di beni e servizi;2;Acquisto di servizi;5;Utenze e canoni;1;Telefonia fissa;08-03-2018;
571;1;0;"214,39";"214,39";SHARP ELECTRONICS ITALIA SPA;ZF81FAD390;"SALDO Fatt.n. 7717025380  del 22/12/2017 COMUNE DI CALDIERO, ORDINE 3811295, CIG ZF81FAD390 COMPETENZA 21/09/2017 al 20/12/2017 NUM.RATA     1";12-03-2018;109;0;483;1;Spese correnti;3;Acquisto di beni e servizi;2;Acquisto di servizi;7;Utilizzo di beni di terzi;4;Noleggi di hardware;12-03-2018;
572;1;0;"0,01";"126,01";LEGGERE SRL;Z7D1DFD17B;SALDO Fatt.n. 3286  del 28/02/2018 FATTURA;12-03-2018;681;0;216;1;Spese correnti;3;Acquisto di beni e servizi;1;Acquisto di beni;1;"Giornali, riviste e pubblicazioni";2;Pubblicazioni;12-03-2018;
572;2;0;"0,04";"126,01";LEGGERE SRL;Z7D1DFD17B;SALDO Fatt.n. 3287  del 28/02/2018 FATTURA;12-03-2018;681;0;216;1;Spese correnti;3;Acquisto di beni e servizi;1;Acquisto di beni;1;"Giornali, riviste e pubblicazioni";2;Pubblicazioni;12-03-2018;
572;3;0;"8,25";"126,01";LEGGERE SRL;Z7D1DFD17B;ACCONTO Fatt.n. 3286  del 28/02/2018 FATTURA;12-03-2018;681;0;216;1;Spese correnti;3;Acquisto di beni e servizi;1;Acquisto di beni;1;"Giornali, riviste e pubblicazioni";2;Pubblicazioni;12-03-2018;
572;4;0;"117,71";"126,01";LEGGERE SRL;Z7D1DFD17B;ACCONTO Fatt.n. 3287  del 28/02/2018 FATTURA;12-03-2018;681;0;216;1;Spese correnti;3;Acquisto di beni e servizi;1;Acquisto di beni;1;"Giornali, riviste e pubblicazioni";2;Pubblicazioni;12-03-2018;
573;1;0;"116,88";"116,88";CONVERGE SPA;Z5A1F50C97;ACCONTO Fatt.n. 201548  del 28/02/2018 NOLEGGIO APPARECCHIATURE MULTIFUNZIONE PER UFFICIO TECNICO;12-03-2018;109;0;397;1;Spese correnti;3;Acquisto di beni e servizi;2;Acquisto di servizi;7;Utilizzo di beni di terzi;4;Noleggi di hardware;12-03-2018;
574;1;0;"58,41";"58,41";CONVERGE SPA;Z5A1F50C97;SALDO Fatt.n. 201548  del 28/02/2018 NOLEGGIO APPARECCHIATURE MULTIFUNZIONE PER UFFICIO TECNICO;12-03-2018;109;0;397;1;Spese correnti;3;Acquisto di beni e servizi;2;Acquisto di servizi;7;Utilizzo di beni di terzi;4;Noleggi di hardware;12-03-2018;
576;1;0;"500,00";"500,00";PARROCCHIA "SAN LORENZO MARTIRE"; ;"EROGAZIONE CONTRIBUTO ECONOMICO ALLA PARROCCHIA DI CALDIERO, ALLA PARROCCHIA DI CALDIERINO E ALLA PARROCCHIA DI STRA' DI COLOGNOLA AI COLLI, PER LE ATTIVITA' ESTIVE DI GREST 2017.";12-03-2018;895;0;717;1;Spese correnti;4;Trasferimenti correnti;4;Trasferimenti correnti a Istituzioni Sociali Private;1;Trasferimenti correnti a Istituzioni Sociali Private;1;Trasferimenti correnti a Istituzioni Sociali Private;12-03-2018;
577;1;0;"7.768,27";"7.768,27";CONSORZIO DI BACINO VERONA DUE DEL QUADRILATERO; ;SALDO Fatt.n. 000345/02  del 31/01/2018 fattura;12-03-2018;840;0;155;1;Spese correnti;3;Acquisto di beni e servizi;2;Acquisto di servizi;15;Contratti di servizio pubblico;4;Contratti di servizio per la raccolta rifiuti;12-03-2018;
578;1;0;"438,03";"438,03";CONSORZIO DI BACINO VERONA DUE DEL QUADRILATERO; ;SALDO Fatt.n. 000023/02  del 19/01/2018 fattura;12-03-2018;840;0;155;1;Spese correnti;3;Acquisto di beni e servizi;2;Acquisto di servizi;15;Contratti di servizio pubblico;4;Contratti di servizio per la raccolta rifiuti;12-03-2018;
579;1;0;"275,60";"275,60";CONSORZIO DI BACINO VERONA DUE DEL QUADRILATERO; ;SALDO Fatt.n. 000091/02  del 30/01/2018 FATTURA;12-03-2018;840;0;155;1;Spese correnti;3;Acquisto di beni e servizi;2;Acquisto di servizi;15;Contratti di servizio pubblico;4;Contratti di servizio per la raccolta rifiuti;12-03-2018;
580;1;0;"7.223,13";"7.223,13";CONSORZIO DI BACINO VERONA DUE DEL QUADRILATERO; ;SALDO Fatt.n. 000194/02  del 30/01/2018 FATTURA;12-03-2018;840;0;155;1;Spese correnti;3;Acquisto di beni e servizi;2;Acquisto di servizi;15;Contratti di servizio pubblico;4;Contratti di servizio per la raccolta rifiuti;12-03-2018;
581;1;0;"5.130,20";"5.130,20";CONSORZIO DI BACINO VERONA DUE DEL QUADRILATERO; ;SALDO Fatt.n. 000211/02  del 30/01/2018 FATTURA;12-03-2018;840;0;155;1;Spese correnti;3;Acquisto di beni e servizi;2;Acquisto di servizi;15;Contratti di servizio pubblico;4;Contratti di servizio per la raccolta rifiuti;12-03-2018;
582;1;0;"85,53";"85,53";CONSORZIO DI BACINO VERONA DUE DEL QUADRILATERO; ;SALDO Fatt.n. 000255/02  del 30/01/2018 FATTURA;12-03-2018;840;0;155;1;Spese correnti;3;Acquisto di beni e servizi;2;Acquisto di servizi;15;Contratti di servizio pubblico;4;Contratti di servizio per la raccolta rifiuti;12-03-2018;
583;1;0;"275,60";"275,60";CONSORZIO DI BACINO VERONA DUE DEL QUADRILATERO; ;SALDO Fatt.n. 000110/02  del 30/01/2018 FATTURA;12-03-2018;840;0;155;1;Spese correnti;3;Acquisto di beni e servizi;2;Acquisto di servizi;15;Contratti di servizio pubblico;4;Contratti di servizio per la raccolta rifiuti;12-03-2018;
584;1;0;"235,62";"235,62";CONSORZIO DI BACINO VERONA DUE DEL QUADRILATERO; ;SALDO Fatt.n. 000293/02  del 30/01/2018 FATTURA;12-03-2018;840;0;155;1;Spese correnti;3;Acquisto di beni e servizi;2;Acquisto di servizi;15;Contratti di servizio pubblico;4;Contratti di servizio per la raccolta rifiuti;12-03-2018;
585;1;0;"541,68";"541,68";GRAFICHE E. GASPARI SRL;ZB121DAC57;SALDO Fatt.n. 02176  del 31/01/2018 FATTURA;13-03-2018;15;2;76;1;Spese correnti;3;Acquisto di beni e servizi;1;Acquisto di beni;2;Altri beni di consumo;10;Beni per consultazioni elettorali;13-03-2018;
590;1;0;"270,35";"270,35";ABACO SPA;6519265BA8;SALDO Fatt.n. 2017120002473  del 31/12/2017 FATTURA;13-03-2018;382;0;800;1;Spese correnti;3;Acquisto di beni e servizi;2;Acquisto di servizi;3;Aggi di riscossione;999;Altri aggi di riscossione n.a.c.;13-03-2018;
592;1;0;"522,12";"522,12";ABACO SPA;7408612407;SALDO Fatt.n. 2018120000385  del 09/02/2018 FATTURA;13-03-2018;382;0;166;1;Spese correnti;3;Acquisto di beni e servizi;2;Acquisto di servizi;3;Aggi di riscossione;999;Altri aggi di riscossione n.a.c.;13-03-2018;
593;1;0;"1.106,52";"1.106,52";ABACO SPA;7408612407;SALDO Fatt.n. 2018120000460  del 12/02/2018 FATTURA;13-03-2018;382;0;166;1;Spese correnti;3;Acquisto di beni e servizi;2;Acquisto di servizi;3;Aggi di riscossione;999;Altri aggi di riscossione n.a.c.;13-03-2018;
595;1;0;"295,92";"295,92";ABACO SPA;7408612407;SALDO Fatt.n. 2018120000627  del 08/03/2018 FATTURA;13-03-2018;382;0;166;1;Spese correnti;3;Acquisto di beni e servizi;2;Acquisto di servizi;3;Aggi di riscossione;999;Altri aggi di riscossione n.a.c.;13-03-2018;
596;1;0;"1.128,98";"1.128,98";ABACO SPA;7408612407;SALDO Fatt.n. 2018120000746  del 09/03/2018 FATTURA;13-03-2018;382;0;166;1;Spese correnti;3;Acquisto di beni e servizi;2;Acquisto di servizi;3;Aggi di riscossione;999;Altri aggi di riscossione n.a.c.;13-03-2018;
597;1;0;"2.357,39";"2.357,39";CIDIELLE COOPERATIVA SOCIALE;5307599141;SALDO Fatt.n. 16/02  del 31/01/2018 FATTURA;20-03-2018;117;0;191;1;Spese correnti;3;Acquisto di beni e servizi;2;Acquisto di servizi;13;Servizi ausiliari per il funzionamento dell'ente;2;Servizi di pulizia e lavanderia;20-03-2018;
598;1;0;"2.355,00";"2.355,00";CIDIELLE COOPERATIVA SOCIALE;Z141D07EC2;SALDO Fatt.n. 17/02  del 31/01/2018 FATTURA;20-03-2018;117;0;86;1;Spese correnti;3;Acquisto di beni e servizi;2;Acquisto di servizi;13;Servizi ausiliari per il funzionamento dell'ente;2;Servizi di pulizia e lavanderia;20-03-2018;
599;1;0;"1.969,16";"1.969,16";SOCIETA' COOPERATIVA CULTURE;5539394489;SALDO Fatt.n. 228/FE  del 22/02/2018 FATTURA;20-03-2018;680;0;121;1;Spese correnti;3;Acquisto di beni e servizi;2;Acquisto di servizi;15;Contratti di servizio pubblico;999;Altre spese per contratti di servizio pubblico;20-03-2018;
601;1;0;"150,00";"150,00";PARROCCHIA S.PIETRO APOSTOLO (CALDIERO); ;"INIZIATIVE CULTURALI DI MARZO 2018, APPROVATE CON DELIBERA DI GIUNTA N.18/2018. PROVVEDIMENTI DI SPESA. CODICI SMART CIG Z622250EF6 E Z6C2250FB2.";20-03-2018;690;0;124;1;Spese correnti;4;Trasferimenti correnti;4;Trasferimenti correnti a Istituzioni Sociali Private;1;Trasferimenti correnti a Istituzioni Sociali Private;1;Trasferimenti correnti a Istituzioni Sociali Private;20-03-2018;
602;1;0;"5,88";"5,88";COMUNE DI ZEVIO; ;rimborso spese di notifica -richiesta prot. 2170 del 08.02.2018 - notifica del 18.12.2017;20-03-2018;105;0;844;1;Spese correnti;3;Acquisto di beni e servizi;2;Acquisto di servizi;16;Servizi amministrativi;2;Spese postali;20-03-2018;
604;1;0;"187,00";"187,00";DALLA VALENTINA ANTONELLA; ;SERVIZIO ELETTORALE - ELEZIONI POLITICHE DEL 04 MARZO 2018: LIQUIDAZIONE COMPENSI AI COMPONENTI DEI SEGGI ELETTORALI.;20-03-2018;15;3;169;1;Spese correnti;3;Acquisto di beni e servizi;2;Acquisto di servizi;1;Organi e incarichi istituzionali dell'amministrazione;7;Commissioni elettorali;20-03-2018;
605;1;0;"145,00";"145,00";SANTOLIN CRISTINA; ;SERVIZIO ELETTORALE - ELEZIONI POLITICHE DEL 04 MARZO 2018: LIQUIDAZIONE COMPENSI AI COMPONENTI DEI SEGGI ELETTORALI.;20-03-2018;15;3;169;1;Spese correnti;3;Acquisto di beni e servizi;2;Acquisto di servizi;1;Organi e incarichi istituzionali dell'amministrazione;7;Commissioni elettorali;20-03-2018;
606;1;0;"145,00";"145,00";AGOSTINI ALESSANDRO; ;SERVIZIO ELETTORALE - ELEZIONI POLITICHE DEL 04 MARZO 2018: LIQUIDAZIONE COMPENSI AI COMPONENTI DEI SEGGI ELETTORALI.;20-03-2018;15;3;169;1;Spese correnti;3;Acquisto di beni e servizi;2;Acquisto di servizi;1;Organi e incarichi istituzionali dell'amministrazione;7;Commissioni elettorali;20-03-2018;
607;1;0;"145,00";"145,00";BALZANELLO ALESSIA; ;SERVIZIO ELETTORALE - ELEZIONI POLITICHE DEL 04 MARZO 2018: LIQUIDAZIONE COMPENSI AI COMPONENTI DEI SEGGI ELETTORALI.;20-03-2018;15;3;169;1;Spese correnti;3;Acquisto di beni e servizi;2;Acquisto di servizi;1;Organi e incarichi istituzionali dell'amministrazione;7;Commissioni elettorali;20-03-2018;
608;1;0;"145,00";"145,00";FIOCCO FEDERICO; ;SERVIZIO ELETTORALE - ELEZIONI POLITICHE DEL 04 MARZO 2018: LIQUIDAZIONE COMPENSI AI COMPONENTI DEI SEGGI ELETTORALI.;20-03-2018;15;3;169;1;Spese correnti;3;Acquisto di beni e servizi;2;Acquisto di servizi;1;Organi e incarichi istituzionali dell'amministrazione;7;Commissioni elettorali;20-03-2018;
609;1;0;"145,00";"145,00";GRIGOLINI ANNA; ;SERVIZIO ELETTORALE - ELEZIONI POLITICHE DEL 04 MARZO 2018: LIQUIDAZIONE COMPENSI AI COMPONENTI DEI SEGGI ELETTORALI.;20-03-2018;15;3;169;1;Spese correnti;3;Acquisto di beni e servizi;2;Acquisto di servizi;1;Organi e incarichi istituzionali dell'amministrazione;7;Commissioni elettorali;20-03-2018;
610;1;0;"187,00";"187,00";BONAMINI MONICA; ;SERVIZIO ELETTORALE - ELEZIONI POLITICHE DEL 04 MARZO 2018: LIQUIDAZIONE COMPENSI AI COMPONENTI DEI SEGGI ELETTORALI.;20-03-2018;15;3;169;1;Spese correnti;3;Acquisto di beni e servizi;2;Acquisto di servizi;1;Organi e incarichi istituzionali dell'amministrazione;7;Commissioni elettorali;20-03-2018;
611;1;0;"145,00";"145,00";BONAMINI FRANCESCA; ;SERVIZIO ELETTORALE - ELEZIONI POLITICHE DEL 04 MARZO 2018: LIQUIDAZIONE COMPENSI AI COMPONENTI DEI SEGGI ELETTORALI.;20-03-2018;15;3;169;1;Spese correnti;3;Acquisto di beni e servizi;2;Acquisto di servizi;1;Organi e incarichi istituzionali dell'amministrazione;7;Commissioni elettorali;20-03-2018;
612;1;0;"145,00";"145,00";BONGIOVANNI ALICE; ;SERVIZIO ELETTORALE - ELEZIONI POLITICHE DEL 04 MARZO 2018: LIQUIDAZIONE COMPENSI AI COMPONENTI DEI SEGGI ELETTORALI.;20-03-2018;15;3;169;1;Spese correnti;3;Acquisto di beni e servizi;2;Acquisto di servizi;1;Organi e incarichi istituzionali dell'amministrazione;7;Commissioni elettorali;20-03-2018;
613;1;0;"145,00";"145,00";CARTA CINZIA; ;SERVIZIO ELETTORALE - ELEZIONI POLITICHE DEL 04 MARZO 2018: LIQUIDAZIONE COMPENSI AI COMPONENTI DEI SEGGI ELETTORALI.;20-03-2018;15;3;169;1;Spese correnti;3;Acquisto di beni e servizi;2;Acquisto di servizi;1;Organi e incarichi istituzionali dell'amministrazione;7;Commissioni elettorali;20-03-2018;
614;1;0;"145,00";"145,00";CASAROTTO LORENZO; ;SERVIZIO ELETTORALE - ELEZIONI POLITICHE DEL 04 MARZO 2018: LIQUIDAZIONE COMPENSI AI COMPONENTI DEI SEGGI ELETTORALI.;20-03-2018;15;3;169;1;Spese correnti;3;Acquisto di beni e servizi;2;Acquisto di servizi;1;Organi e incarichi istituzionali dell'amministrazione;7;Commissioni elettorali;20-03-2018;
615;1;0;"145,00";"145,00";SALGARO MICHELA; ;SERVIZIO ELETTORALE - ELEZIONI POLITICHE DEL 04 MARZO 2018: LIQUIDAZIONE COMPENSI AI COMPONENTI DEI SEGGI ELETTORALI.;20-03-2018;15;3;169;1;Spese correnti;3;Acquisto di beni e servizi;2;Acquisto di servizi;1;Organi e incarichi istituzionali dell'amministrazione;7;Commissioni elettorali;20-03-2018;
616;1;0;"187,00";"187,00";DE MARTINO GIUSEPPE; ;SERVIZIO ELETTORALE - ELEZIONI POLITICHE DEL 04 MARZO 2018: LIQUIDAZIONE COMPENSI AI COMPONENTI DEI SEGGI ELETTORALI.;20-03-2018;15;3;169;1;Spese correnti;3;Acquisto di beni e servizi;2;Acquisto di servizi;1;Organi e incarichi istituzionali dell'amministrazione;7;Commissioni elettorali;20-03-2018;
617;1;0;"145,00";"145,00";DE MARTINO ELENA; ;SERVIZIO ELETTORALE - ELEZIONI POLITICHE DEL 04 MARZO 2018: LIQUIDAZIONE COMPENSI AI COMPONENTI DEI SEGGI ELETTORALI.;20-03-2018;15;3;169;1;Spese correnti;3;Acquisto di beni e servizi;2;Acquisto di servizi;1;Organi e incarichi istituzionali dell'amministrazione;7;Commissioni elettorali;20-03-2018;
618;1;0;"145,00";"145,00";DAL MAGRO ELISA; ;SERVIZIO ELETTORALE - ELEZIONI POLITICHE DEL 04 MARZO 2018: LIQUIDAZIONE COMPENSI AI COMPONENTI DEI SEGGI ELETTORALI.;20-03-2018;15;3;169;1;Spese correnti;3;Acquisto di beni e servizi;2;Acquisto di servizi;1;Organi e incarichi istituzionali dell'amministrazione;7;Commissioni elettorali;20-03-2018;
619;1;0;"145,00";"145,00";DANZI ELEONORA; ;SERVIZIO ELETTORALE - ELEZIONI POLITICHE DEL 04 MARZO 2018: LIQUIDAZIONE COMPENSI AI COMPONENTI DEI SEGGI ELETTORALI.;20-03-2018;15;3;169;1;Spese correnti;3;Acquisto di beni e servizi;2;Acquisto di servizi;1;Organi e incarichi istituzionali dell'amministrazione;7;Commissioni elettorali;20-03-2018;
620;1;0;"145,00";"145,00";FAVALEZZA FRANCESCO; ;SERVIZIO ELETTORALE - ELEZIONI POLITICHE DEL 04 MARZO 2018: LIQUIDAZIONE COMPENSI AI COMPONENTI DEI SEGGI ELETTORALI.;20-03-2018;15;3;169;1;Spese correnti;3;Acquisto di beni e servizi;2;Acquisto di servizi;1;Organi e incarichi istituzionali dell'amministrazione;7;Commissioni elettorali;20-03-2018;
621;1;0;"145,00";"145,00";SANTI MICHELA; ;SERVIZIO ELETTORALE - ELEZIONI POLITICHE DEL 04 MARZO 2018: LIQUIDAZIONE COMPENSI AI COMPONENTI DEI SEGGI ELETTORALI.;20-03-2018;15;3;169;1;Spese correnti;3;Acquisto di beni e servizi;2;Acquisto di servizi;1;Organi e incarichi istituzionali dell'amministrazione;7;Commissioni elettorali;20-03-2018;
622;1;0;"187,00";"187,00";ZAMPICININI ANDREA; ;SERVIZIO ELETTORALE - ELEZIONI POLITICHE DEL 04 MARZO 2018: LIQUIDAZIONE COMPENSI AI COMPONENTI DEI SEGGI ELETTORALI.;20-03-2018;15;3;169;1;Spese correnti;3;Acquisto di beni e servizi;2;Acquisto di servizi;1;Organi e incarichi istituzionali dell'amministrazione;7;Commissioni elettorali;20-03-2018;
623;1;0;"145,00";"145,00";RONCARI GEMMA; ;SERVIZIO ELETTORALE - ELEZIONI POLITICHE DEL 04 MARZO 2018: LIQUIDAZIONE COMPENSI AI COMPONENTI DEI SEGGI ELETTORALI.;20-03-2018;15;3;169;1;Spese correnti;3;Acquisto di beni e servizi;2;Acquisto di servizi;1;Organi e incarichi istituzionali dell'amministrazione;7;Commissioni elettorali;20-03-2018;
624;1;0;"145,00";"145,00";OTTOLINI FEDERICO; ;SERVIZIO ELETTORALE - ELEZIONI POLITICHE DEL 04 MARZO 2018: LIQUIDAZIONE COMPENSI AI COMPONENTI DEI SEGGI ELETTORALI.;20-03-2018;15;3;169;1;Spese correnti;3;Acquisto di beni e servizi;2;Acquisto di servizi;1;Organi e incarichi istituzionali dell'amministrazione;7;Commissioni elettorali;20-03-2018;
625;1;0;"145,00";"145,00";PANATO HARIS; ;SERVIZIO ELETTORALE - ELEZIONI POLITICHE DEL 04 MARZO 2018: LIQUIDAZIONE COMPENSI AI COMPONENTI DEI SEGGI ELETTORALI.;20-03-2018;15;3;169;1;Spese correnti;3;Acquisto di beni e servizi;2;Acquisto di servizi;1;Organi e incarichi istituzionali dell'amministrazione;7;Commissioni elettorali;20-03-2018;
626;1;0;"145,00";"145,00";RANCAN NADIA; ;SERVIZIO ELETTORALE - ELEZIONI POLITICHE DEL 04 MARZO 2018: LIQUIDAZIONE COMPENSI AI COMPONENTI DEI SEGGI ELETTORALI.;20-03-2018;15;3;169;1;Spese correnti;3;Acquisto di beni e servizi;2;Acquisto di servizi;1;Organi e incarichi istituzionali dell'amministrazione;7;Commissioni elettorali;20-03-2018;
627;1;0;"145,00";"145,00";ZENARO FRANCESCO; ;SERVIZIO ELETTORALE - ELEZIONI POLITICHE DEL 04 MARZO 2018: LIQUIDAZIONE COMPENSI AI COMPONENTI DEI SEGGI ELETTORALI.;20-03-2018;15;3;169;1;Spese correnti;3;Acquisto di beni e servizi;2;Acquisto di servizi;1;Organi e incarichi istituzionali dell'amministrazione;7;Commissioni elettorali;20-03-2018;
628;1;0;"187,00";"187,00";MALATESTA ANDREA; ;SERVIZIO ELETTORALE - ELEZIONI POLITICHE DEL 04 MARZO 2018: LIQUIDAZIONE COMPENSI AI COMPONENTI DEI SEGGI ELETTORALI.;20-03-2018;15;3;169;1;Spese correnti;3;Acquisto di beni e servizi;2;Acquisto di servizi;1;Organi e incarichi istituzionali dell'amministrazione;7;Commissioni elettorali;20-03-2018;
629;1;0;"145,00";"145,00";MALATESTA MARINA; ;SERVIZIO ELETTORALE - ELEZIONI POLITICHE DEL 04 MARZO 2018: LIQUIDAZIONE COMPENSI AI COMPONENTI DEI SEGGI ELETTORALI.;20-03-2018;15;3;169;1;Spese correnti;3;Acquisto di beni e servizi;2;Acquisto di servizi;1;Organi e incarichi istituzionali dell'amministrazione;7;Commissioni elettorali;20-03-2018;
630;1;0;"145,00";"145,00";AVOGARO FRANCESCO; ;SERVIZIO ELETTORALE - ELEZIONI POLITICHE DEL 04 MARZO 2018: LIQUIDAZIONE COMPENSI AI COMPONENTI DEI SEGGI ELETTORALI.;20-03-2018;15;3;169;1;Spese correnti;3;Acquisto di beni e servizi;2;Acquisto di servizi;1;Organi e incarichi istituzionali dell'amministrazione;7;Commissioni elettorali;20-03-2018;
631;1;0;"145,00";"145,00";BRAZZOLI AMOS; ;SERVIZIO ELETTORALE - ELEZIONI POLITICHE DEL 04 MARZO 2018: LIQUIDAZIONE COMPENSI AI COMPONENTI DEI SEGGI ELETTORALI.;20-03-2018;15;3;169;1;Spese correnti;3;Acquisto di beni e servizi;2;Acquisto di servizi;1;Organi e incarichi istituzionali dell'amministrazione;7;Commissioni elettorali;20-03-2018;
632;1;0;"145,00";"145,00";FABBRI MARCO; ;SERVIZIO ELETTORALE - ELEZIONI POLITICHE DEL 04 MARZO 2018: LIQUIDAZIONE COMPENSI AI COMPONENTI DEI SEGGI ELETTORALI.;20-03-2018;15;3;169;1;Spese correnti;3;Acquisto di beni e servizi;2;Acquisto di servizi;1;Organi e incarichi istituzionali dell'amministrazione;7;Commissioni elettorali;20-03-2018;
633;1;0;"145,00";"145,00";LISSANDRINI GIACOMO; ;SERVIZIO ELETTORALE - ELEZIONI POLITICHE DEL 04 MARZO 2018: LIQUIDAZIONE COMPENSI AI COMPONENTI DEI SEGGI ELETTORALI.;20-03-2018;15;3;169;1;Spese correnti;3;Acquisto di beni e servizi;2;Acquisto di servizi;1;Organi e incarichi istituzionali dell'amministrazione;7;Commissioni elettorali;20-03-2018;
634;1;0;"187,00";"187,00";BONAMINI ELISA; ;SERVIZIO ELETTORALE - ELEZIONI POLITICHE DEL 04 MARZO 2018: LIQUIDAZIONE COMPENSI AI COMPONENTI DEI SEGGI ELETTORALI.;20-03-2018;15;3;169;1;Spese correnti;3;Acquisto di beni e servizi;2;Acquisto di servizi;1;Organi e incarichi istituzionali dell'amministrazione;7;Commissioni elettorali;20-03-2018;
635;1;0;"145,00";"145,00";TROTTI ILARIA; ;SERVIZIO ELETTORALE - ELEZIONI POLITICHE DEL 04 MARZO 2018: LIQUIDAZIONE COMPENSI AI COMPONENTI DEI SEGGI ELETTORALI.;20-03-2018;15;3;169;1;Spese correnti;3;Acquisto di beni e servizi;2;Acquisto di servizi;1;Organi e incarichi istituzionali dell'amministrazione;7;Commissioni elettorali;20-03-2018;
636;1;0;"145,00";"145,00";BOSARO ALESSANDRA; ;SERVIZIO ELETTORALE - ELEZIONI POLITICHE DEL 04 MARZO 2018: LIQUIDAZIONE COMPENSI AI COMPONENTI DEI SEGGI ELETTORALI.;20-03-2018;15;3;169;1;Spese correnti;3;Acquisto di beni e servizi;2;Acquisto di servizi;1;Organi e incarichi istituzionali dell'amministrazione;7;Commissioni elettorali;20-03-2018;
637;1;0;"145,00";"145,00";DOMASCHI CHIARA; ;SERVIZIO ELETTORALE - ELEZIONI POLITICHE DEL 04 MARZO 2018: LIQUIDAZIONE COMPENSI AI COMPONENTI DEI SEGGI ELETTORALI.;20-03-2018;15;3;169;1;Spese correnti;3;Acquisto di beni e servizi;2;Acquisto di servizi;1;Organi e incarichi istituzionali dell'amministrazione;7;Commissioni elettorali;20-03-2018;
638;1;0;"145,00";"145,00";RUZZENE ANDREA; ;SERVIZIO ELETTORALE - ELEZIONI POLITICHE DEL 04 MARZO 2018: LIQUIDAZIONE COMPENSI AI COMPONENTI DEI SEGGI ELETTORALI.;20-03-2018;15;3;169;1;Spese correnti;3;Acquisto di beni e servizi;2;Acquisto di servizi;1;Organi e incarichi istituzionali dell'amministrazione;7;Commissioni elettorali;20-03-2018;
639;1;0;"145,00";"145,00";SORIATO FEDERICA; ;SERVIZIO ELETTORALE - ELEZIONI POLITICHE DEL 04 MARZO 2018: LIQUIDAZIONE COMPENSI AI COMPONENTI DEI SEGGI ELETTORALI.;20-03-2018;15;3;169;1;Spese correnti;3;Acquisto di beni e servizi;2;Acquisto di servizi;1;Organi e incarichi istituzionali dell'amministrazione;7;Commissioni elettorali;20-03-2018;
640;1;0;"3.825,00";"3.825,00";AMMINISTRATORI COMUNALI; ;LIQUIDAZIONE INDENNITA' DI CARICA MESE DI MARZO 2018;21-03-2018;10;0;4;1;Spese correnti;3;Acquisto di beni e servizi;2;Acquisto di servizi;1;Organi e incarichi istituzionali dell'amministrazione;1;Organi istituzionali dell'amministrazione - Indennità;21-03-2018;
720;1;0;"1.209,34";"1.209,34";UNIONE DI COMUNI VERONA EST; ;"GARA TRIBUTI  PER SERVIZIO RISCOSSIONE COATTIVA DELLE ENRATE TRIBUTARIE, EXTRATRIBUTARIE E PATRIMONIALI E DEL SERVIZIO ACCERTAMENTO E RISCOSSIONE ORDINARIE E COATTIVA TOSAP/COSAP, ICP/CIMP E DIRITTI PUBBLICHE AFFISSIONI - IMPEGNO DI SPESA";26-03-2018;380;0;832;1;Spese correnti;3;Acquisto di beni e servizi;2;Acquisto di servizi;99;Altri servizi;999;Altri servizi diversi n.a.c.;26-03-2018;
721;1;0;"4,23";"4,23";ACQUE VERONESI SCARL; ;SALDO Fatt.n. 0350120170800535200  del 14/11/2017 B/Bollettazione;26-03-2018;879;0;774;1;Spese correnti;3;Acquisto di beni e servizi;2;Acquisto di servizi;5;Utenze e canoni;5;Acqua;26-03-2018;
722;1;0;"8.558,06";"8.558,06";CONSORZIO DI BACINO VERONA DUE DEL QUADRILATERO; ;SALDO Fatt.n. 000582/02  del 28/02/2018 FATTURA;26-03-2018;840;0;174;1;Spese correnti;3;Acquisto di beni e servizi;2;Acquisto di servizi;15;Contratti di servizio pubblico;4;Contratti di servizio per la raccolta rifiuti;26-03-2018;
723;1;0;"6.692,52";"6.692,52";CONSORZIO DI BACINO VERONA DUE DEL QUADRILATERO; ;SALDO Fatt.n. 000628/02  del 28/02/2018 FATTURA;26-03-2018;840;0;174;1;Spese correnti;3;Acquisto di beni e servizi;2;Acquisto di servizi;15;Contratti di servizio pubblico;4;Contratti di servizio per la raccolta rifiuti;26-03-2018;
724;1;0;"3.537,27";"3.537,27";GIVANI SRL;Z00203EA0B;ACCONTO Fatt.n. 3  del 22/01/2018 fattura;26-03-2018;1187;1;598;2;Spese in conto capitale;2;Investimenti fissi lordi e acquisto di terreni;1;Beni materiali;9;Beni immobili;12;Infrastrutture stradali;26-03-2018;
725;1;0;"3.348,73";"3.348,73";GIVANI SRL;Z00203EA0B;ACCONTO Fatt.n. 3  del 22/01/2018 fattura;26-03-2018;1184;2;597;2;Spese in conto capitale;2;Investimenti fissi lordi e acquisto di terreni;1;Beni materiali;9;Beni immobili;12;Infrastrutture stradali;26-03-2018;
726;1;0;"11.414,00";"11.414,00";GIVANI SRL;Z00203EA0B;SALDO Fatt.n. 3  del 22/01/2018 fattura;26-03-2018;1132;0;596;2;Spese in conto capitale;2;Investimenti fissi lordi e acquisto di terreni;1;Beni materiali;9;Beni immobili;15;Cimiteri;26-03-2018;
727;1;0;"6.600,81";"6.600,81";MORANDO FRANCESCO;Z122097B98;SALDO Fatt.n. 13/PA-2018  del 09/02/2018 FATTURA;26-03-2018;870;0;702;1;Spese correnti;3;Acquisto di beni e servizi;2;Acquisto di servizi;9;Manutenzione ordinaria e riparazioni;8;Manutenzione ordinaria e riparazioni di beni immobili;26-03-2018;
728;1;0;"227,80";"227,80";FERRAMENTA BELLOMI DI FOLLETTO G. E L. SAS;Z8F1DC66DA;SALDO Fatt.n. 2018     5/P  del 28/02/2018 FATTURA;26-03-2018;350;0;158;1;Spese correnti;3;Acquisto di beni e servizi;1;Acquisto di beni;2;Altri beni di consumo;999;Altri beni e materiali di consumo n.a.c.;26-03-2018;
729;1;0;"1.311,65";"1.311,65";ENEL ENERGIA SPA;Z6918F9622;SALDO Fatt.n. 004810341661  del 21/02/2018;26-03-2018;881;0;158;1;Spese correnti;3;Acquisto di beni e servizi;2;Acquisto di servizi;5;Utenze e canoni;4;Energia elettrica;26-03-2018;
730;1;0;"763,35";"763,35";CONSORZIO DI BACINO VERONA DUE DEL QUADRILATERO; ;SALDO Fatt.n. 000480/02  del 27/02/2018 FATTURA;26-03-2018;840;0;155;1;Spese correnti;3;Acquisto di beni e servizi;2;Acquisto di servizi;15;Contratti di servizio pubblico;4;Contratti di servizio per la raccolta rifiuti;26-03-2018;
731;1;0;"268,69";"268,69";CONSORZIO DI BACINO VERONA DUE DEL QUADRILATERO; ;SALDO Fatt.n. 000699/02  del 28/02/2018 FATTURA;26-03-2018;840;0;155;1;Spese correnti;3;Acquisto di beni e servizi;2;Acquisto di servizi;15;Contratti di servizio pubblico;4;Contratti di servizio per la raccolta rifiuti;26-03-2018;
732;1;0;"221,57";"221,57";CONSORZIO DI BACINO VERONA DUE DEL QUADRILATERO; ;SALDO Fatt.n. 000737/02  del 28/02/2018 FATTURA;26-03-2018;840;0;155;1;Spese correnti;3;Acquisto di beni e servizi;2;Acquisto di servizi;15;Contratti di servizio pubblico;4;Contratti di servizio per la raccolta rifiuti;26-03-2018;
733;1;0;"191,46";"191,46";CONSORZIO DI BACINO VERONA DUE DEL QUADRILATERO; ;SALDO Fatt.n. 000776/02  del 28/02/2018 FATTURA;26-03-2018;840;0;155;1;Spese correnti;3;Acquisto di beni e servizi;2;Acquisto di servizi;15;Contratti di servizio pubblico;4;Contratti di servizio per la raccolta rifiuti;26-03-2018;
734;1;0;"690,89";"690,89";CONSORZIO DI BACINO VERONA DUE DEL QUADRILATERO; ;SALDO Fatt.n. 000842/02  del 28/02/2018 FATTURA;26-03-2018;840;0;155;1;Spese correnti;3;Acquisto di beni e servizi;2;Acquisto di servizi;15;Contratti di servizio pubblico;4;Contratti di servizio per la raccolta rifiuti;26-03-2018;
735;1;0;"0,48";"0,48";CONSORZIO DI BACINO VERONA DUE DEL QUADRILATERO; ;SALDO Fatt.n. 000881/02  del 28/02/2018 FATTURA;26-03-2018;840;0;155;1;Spese correnti;3;Acquisto di beni e servizi;2;Acquisto di servizi;15;Contratti di servizio pubblico;4;Contratti di servizio per la raccolta rifiuti;26-03-2018;
736;1;0;"20,91";"20,91";CONSORZIO DI BACINO VERONA DUE DEL QUADRILATERO; ;SALDO Fatt.n. 000904/02  del 28/02/2018 FATTURA;26-03-2018;840;0;155;1;Spese correnti;3;Acquisto di beni e servizi;2;Acquisto di servizi;15;Contratti di servizio pubblico;4;Contratti di servizio per la raccolta rifiuti;26-03-2018;
737;1;0;"313,32";"313,32";CONSORZIO DI BACINO VERONA DUE DEL QUADRILATERO; ;SALDO Fatt.n. 000965/02  del 28/02/2018 FATTURA;26-03-2018;840;0;155;1;Spese correnti;3;Acquisto di beni e servizi;2;Acquisto di servizi;15;Contratti di servizio pubblico;4;Contratti di servizio per la raccolta rifiuti;26-03-2018;
738;1;0;"129,17";"129,17";LA RONDA - SERVIZI DI VIGILANZA;ZE618FE5E8;SALDO Fatt.n. 0002807  del 28/02/2018 FATTURA;26-03-2018;357;0;171;1;Spese correnti;3;Acquisto di beni e servizi;2;Acquisto di servizi;13;Servizi ausiliari per il funzionamento dell'ente;1;"Servizi di sorveglianza, custodia e accoglienza";26-03-2018;
739;1;0;"170,80";"170,80";RATTICIDA VENETA SAS DI FERLENGA M. E G.;ZF31F0A617;SALDO Fatt.n. 14/PA  del 28/02/2018 FATTURA;26-03-2018;465;0;453;1;Spese correnti;3;Acquisto di beni e servizi;2;Acquisto di servizi;99;Altri servizi;999;Altri servizi diversi n.a.c.;26-03-2018;
740;1;0;"1.318,35";"1.318,35";MATTARANETTA SOCIETA' COOPERATIVA SOCIALE;Z3C1CA95E4;SALDO Fatt.n. 7/FE  del 28/02/2018 FATTURA IMMEDIATA;26-03-2018;840;0;750;1;Spese correnti;3;Acquisto di beni e servizi;2;Acquisto di servizi;15;Contratti di servizio pubblico;4;Contratti di servizio per la raccolta rifiuti;26-03-2018;
741;1;0;"1.175,26";"1.175,26";COOPERATIVA SOCIALE VENETA ONLUS;Z431F034F6;SALDO Fatt.n. 000041-2018-PA  del 28/02/2018 FATTURA;26-03-2018;782;0;454;1;Spese correnti;3;Acquisto di beni e servizi;2;Acquisto di servizi;9;Manutenzione ordinaria e riparazioni;8;Manutenzione ordinaria e riparazioni di beni immobili;26-03-2018;
742;1;0;"40,27";"144,55";SVAI SPA;ZCD224CEA8;ACCONTO Fatt.n. 300031  del 28/02/2018 IDEM;26-03-2018;350;0;123;1;Spese correnti;3;Acquisto di beni e servizi;1;Acquisto di beni;2;Altri beni di consumo;999;Altri beni e materiali di consumo n.a.c.;26-03-2018;
742;2;0;"104,28";"144,55";SVAI SPA;ZCD224CEA8;SALDO Fatt.n. 300031  del 28/02/2018 IDEM;26-03-2018;350;0;123;1;Spese correnti;3;Acquisto di beni e servizi;1;Acquisto di beni;2;Altri beni di consumo;999;Altri beni e materiali di consumo n.a.c.;26-03-2018;
743;1;0;"70,58";"70,58";SVAI SPA;ZCD224CEA8;SALDO Fatt.n. 300030  del 28/02/2018 IDEM;26-03-2018;350;0;123;1;Spese correnti;3;Acquisto di beni e servizi;1;Acquisto di beni;2;Altri beni di consumo;999;Altri beni e materiali di consumo n.a.c.;26-03-2018;
744;1;0;"1.300,00";"1.300,00";TACCONI A. MOTOFARM DI TACCONI ANGELO;ZAD1DC6718;SALDO Fatt.n. F201800138  del 15/03/2018 RIPARAZIONE;26-03-2018;292;0;159;1;Spese correnti;3;Acquisto di beni e servizi;2;Acquisto di servizi;9;Manutenzione ordinaria e riparazioni;1;"Manutenzione ordinaria e riparazioni di mezzi di trasporto ad uso civile, di sicurezza e ordine pubblico";26-03-2018;
745;1;0;"478,24";"478,24";CIDIELLE COOPERATIVA SOCIALE;Z1E1EC391B;SALDO Fatt.n. 48/02  del 28/02/2018 FATTURA;26-03-2018;840;0;326;1;Spese correnti;3;Acquisto di beni e servizi;2;Acquisto di servizi;15;Contratti di servizio pubblico;4;Contratti di servizio per la raccolta rifiuti;26-03-2018;
746;1;0;"84,57";"84,57";ACQUE VERONESI SCARL; ;SALDO Fatt.n. 0350120180800027300  del 13/02/2018 B/Bollettazione;26-03-2018;879;0;140;1;Spese correnti;3;Acquisto di beni e servizi;2;Acquisto di servizi;5;Utenze e canoni;5;Acqua;26-03-2018;
747;1;0;"75,28";"75,28";ACQUE VERONESI SCARL; ;SALDO Fatt.n. 0350120180800173500  del 06/03/2018 B/Bollettazione;26-03-2018;359;0;328;1;Spese correnti;3;Acquisto di beni e servizi;2;Acquisto di servizi;5;Utenze e canoni;5;Acqua;26-03-2018;
748;1;0;"75,28";"75,28";ACQUE VERONESI SCARL; ;SALDO Fatt.n. 0350120180800173600  del 06/03/2018 B/Bollettazione;26-03-2018;359;0;328;1;Spese correnti;3;Acquisto di beni e servizi;2;Acquisto di servizi;5;Utenze e canoni;5;Acqua;26-03-2018;
749;1;0;"593,54";"593,54";DIOMAIUTA LUCA;ZDB20D32E6;ACCONTO Fatt.n. FATTPA 1_17  del 28/12/2017 FATTURA;26-03-2018;147;0;688;1;Spese correnti;3;Acquisto di beni e servizi;2;Acquisto di servizi;2;"Organizzazione eventi, pubblicita` e servizi per trasferta";999;"Altre spese per relazioni pubbliche, convegni e mostre, pubblicita` n.a.c";26-03-2018;
751;1;0;"3.934,00";"3.934,00";ASSITECA SPA - FILIALE DI VERONA;Z6222C1DF7;"ASSICURAZIONI - COPERTURE ASSICURATIVE RC AUTO, INFORTUNIO CONDUCENTE, FURTO, RC PATRIMONIALE IN SCADENZA AL 15/03/2018 - DETERMINAZIONI.";26-03-2018;120;0;189;1;Spese correnti;10;Altre spese correnti;4;Premi di assicurazione;1;Premi di assicurazione contro i danni;3;Premi di assicurazione per responsabilità civile verso terzi;26-03-2018;
752;1;0;"5.503,00";"5.503,00";ASSITECA SPA - FILIALE DI VERONA;Z6222C1DF7;"ASSICURAZIONI - COPERTURE ASSICURATIVE RC AUTO, INFORTUNIO CONDUCENTE, FURTO, RC PATRIMONIALE IN SCADENZA AL 15/03/2018 - DETERMINAZIONI.";26-03-2018;120;0;190;1;Spese correnti;10;Altre spese correnti;4;Premi di assicurazione;1;Premi di assicurazione contro i danni;999;Altri premi di assicurazione contro i danni;26-03-2018;
754;1;0;"3.100,00";"3.100,00";ASSITECA SPA - FILIALE DI VERONA;Z5B22D6584;ASSICURAZIONI - POLIZZA TUTELA LEGALE CON COMPAGNIA DAS ASSICURAZIONI E POLIZZA A.R.D. CON COMPAGNIA NOBIS ASSICURAZIONI IN SCADENZA AL 30/03/2018 - DETERMINAZIONI.;26-03-2018;120;0;194;1;Spese correnti;10;Altre spese correnti;4;Premi di assicurazione;1;Premi di assicurazione contro i danni;999;Altri premi di assicurazione contro i danni;26-03-2018;
755;1;0;"1.000,00";"1.000,00";ASSITECA SPA - FILIALE DI VERONA;Z5B22D6584;ASSICURAZIONI - POLIZZA TUTELA LEGALE CON COMPAGNIA DAS ASSICURAZIONI E POLIZZA A.R.D. CON COMPAGNIA NOBIS ASSICURAZIONI IN SCADENZA AL 30/03/2018 - DETERMINAZIONI.;26-03-2018;120;0;195;1;Spese correnti;10;Altre spese correnti;4;Premi di assicurazione;1;Premi di assicurazione contro i danni;2;Premi di assicurazione su beni immobili;26-03-2018;
756;1;0;"407,62";"407,62";ANCI VENETO;Z3A22DD051;ORGANISMI ASSOCIATIVI - INTEGRAZIONE DELLA QUOTA ASSOCIATIVA VERSATA AD ANCIVENETO CON PROPRIA DETERMINA N. 11/2018 PER PROPOSTA FORMAZIONE. DETERMINAZIONI.;26-03-2018;190;0;197;1;Spese correnti;4;Trasferimenti correnti;1;Trasferimenti correnti a Amministrazioni Pubbliche;1;Trasferimenti correnti a Amministrazioni Centrali;11;Trasferimenti correnti a enti centrali a struttura associativa;26-03-2018;
760;1;0;"1.098,00";"1.098,00";DAPO S.R.L.;Z0D21E6882;SALDO Fatt.n. 1PA  del 06/02/2018 FATTURA;03-04-2018;350;0;86;1;Spese correnti;3;Acquisto di beni e servizi;1;Acquisto di beni;2;Altri beni di consumo;7;Altri materiali tecnico-specialistici non sanitari;03-04-2018;
761;1;0;"976,00";"976,00";TUTTO LEGNO - FALEGNAMERIA ARREDAMENTI DI SANTI MARCO;Z5F1D7371B;SALDO Fatt.n. 000001-2018-PA  del 27/02/2018 FATTURA;03-04-2018;350;0;115;1;Spese correnti;3;Acquisto di beni e servizi;1;Acquisto di beni;2;Altri beni di consumo;999;Altri beni e materiali di consumo n.a.c.;03-04-2018;
762;1;0;"408,00";"408,00";VECCHIONI FRANCESCA; ;Corresponsione del saldo dell'indennita di esproprio dei terreni necessari per la realizzazione dei lavori di sistemazione dell'area e il marciapiede antistante l'ingresso del cimitero di Caldiero.;03-04-2018;1180;1;557;2;Spese in conto capitale;2;Investimenti fissi lordi e acquisto di terreni;1;Beni materiali;9;Beni immobili;12;Infrastrutture stradali;03-04-2018;
764;1;0;"550,00";"550,00";COMPAGNIA ARTI & MESTIERI;ZBC21E5FCA;SALDO Fatt.n. FATTPA 4_18  del 27/02/2018 FATTURA;03-04-2018;686;0;80;1;Spese correnti;3;Acquisto di beni e servizi;2;Acquisto di servizi;2;"Organizzazione eventi, pubblicita` e servizi per trasferta";5;Organizzazione e partecipazione a manifestazioni e convegni;03-04-2018;
765;1;0;"430,00";"430,00";MONTEVERDE SOC.COOP. DI SOLIDARIETA'. ONLUS;ZAE207B19A;SALDO Fatt.n. 000007/PA  del 31/01/2018 Scissione pagamenti art. 17ter DPR 633/72;03-04-2018;663;0;72;1;Spese correnti;3;Acquisto di beni e servizi;2;Acquisto di servizi;15;Contratti di servizio pubblico;999;Altre spese per contratti di servizio pubblico;03-04-2018;
766;1;0;"1.080,00";"1.080,00";CHORUS GRUPPO RITMICO CORALE;Z622250EF6;SALDO Fatt.n. 1/PA  del 07/03/2018 ESIBIZIONE CORALE DEL 03.03.18 DETERMINAZIONE N.19 DEL 15/02/18;03-04-2018;686;0;126;1;Spese correnti;3;Acquisto di beni e servizi;2;Acquisto di servizi;2;"Organizzazione eventi, pubblicita` e servizi per trasferta";5;Organizzazione e partecipazione a manifestazioni e convegni;03-04-2018;
767;1;0;"244,00";"244,00";ARCHIMEDE SERVIZI SRL;Z8B220B56A;SALDO Fatt.n. 25  del 28/02/2018 FATTURA;03-04-2018;115;0;90;1;Spese correnti;3;Acquisto di beni e servizi;2;Acquisto di servizi;11;Prestazioni professionali e specialistiche;999;Altre prestazioni professionali e specialistiche n.a.c.;03-04-2018;
768;1;0;"610,00";"610,00";ARCHIMEDE SERVIZI SRL;Z0B226D8EC;SALDO Fatt.n. 26  del 28/02/2018 FATTURA;03-04-2018;115;0;139;1;Spese correnti;3;Acquisto di beni e servizi;2;Acquisto di servizi;11;Prestazioni professionali e specialistiche;999;Altre prestazioni professionali e specialistiche n.a.c.;03-04-2018;
769;1;0;"18.750,00";"18.750,00";FONDAZIONE DON GAETANO PROVOLI - SCUOLA PARITARIA PER L; ;"CONVENZIONE PER SERVIZIO SCOLASTICO CON LE SCUOLE D'INFANZIA PARITARIE DI CALDIERO, ANNI 2016 2017 2018. PROVVEDIMENTI IN MERITO ALL'ART. 10  CONTRIBUTI DEL COMUNE. IMPEGNO DI SPESA PER L'ANNO 2018 E LIQUIDAZIONE SOMME IN ACCONTO.";03-04-2018;480;0;191;1;Spese correnti;4;Trasferimenti correnti;4;Trasferimenti correnti a Istituzioni Sociali Private;1;Trasferimenti correnti a Istituzioni Sociali Private;1;Trasferimenti correnti a Istituzioni Sociali Private;03-04-2018;
770;1;0;"9.500,00";"9.500,00";SCUOLA MATERNA "MARIA IMMACOLATA" STRA'; ;"CONVENZIONE PER SERVIZIO SCOLASTICO CON LE SCUOLE D'INFANZIA PARITARIE DI CALDIERO, ANNI 2016 2017 2018. PROVVEDIMENTI IN MERITO ALL'ART. 10  CONTRIBUTI DEL COMUNE. IMPEGNO DI SPESA PER L'ANNO 2018 E LIQUIDAZIONE SOMME IN ACCONTO.";03-04-2018;480;0;192;1;Spese correnti;4;Trasferimenti correnti;4;Trasferimenti correnti a Istituzioni Sociali Private;1;Trasferimenti correnti a Istituzioni Sociali Private;1;Trasferimenti correnti a Istituzioni Sociali Private;03-04-2018;
771;1;0;"10.500,00";"10.500,00";SCUOLA MATERNA MARIA BAMBINA; ;"CONVENZIONE PER SERVIZIO SCOLASTICO CON LE SCUOLE D'INFANZIA PARITARIE DI CALDIERO, ANNI 2016 2017 2018. PROVVEDIMENTI IN MERITO ALL'ART. 10  CONTRIBUTI DEL COMUNE. IMPEGNO DI SPESA PER L'ANNO 2018 E LIQUIDAZIONE SOMME IN ACCONTO.";03-04-2018;480;0;193;1;Spese correnti;4;Trasferimenti correnti;4;Trasferimenti correnti a Istituzioni Sociali Private;1;Trasferimenti correnti a Istituzioni Sociali Private;1;Trasferimenti correnti a Istituzioni Sociali Private;03-04-2018;
772;1;0;"305,00";"305,00";TIPOGRAFIA CENTRALE SAS;Z6C2250FB2;SALDO Fatt.n. FATTPA 6_18  del 21/02/2018 FATTURA;04-04-2018;686;0;125;1;Spese correnti;3;Acquisto di beni e servizi;2;Acquisto di servizi;2;"Organizzazione eventi, pubblicita` e servizi per trasferta";5;Organizzazione e partecipazione a manifestazioni e convegni;04-04-2018;
773;1;0;"24.500,00";"24.500,00";ASSITECA SPA - FILIALE DI VERONA;ZA119A6080;ASSICURAZIONI - POLIZZA RESPONSABILITA' CIVILE TERZI/OPERAI (R.C.T.O.) RISCHI DIVERSI - RINNOVO TRIENNALE E LIQUIDAZIONE PREMIO PERIODO 30/04/2016 - 30/04/2017. DETERMINAZIONI.;05-04-2018;120;0;261;1;Spese correnti;10;Altre spese correnti;4;Premi di assicurazione;1;Premi di assicurazione contro i danni;3;Premi di assicurazione per responsabilità civile verso terzi;05-04-2018;
774;1;0;"762,12";"762,12";GP GLOBAL POWER SPA;5952652BD1;SALDO Fatt.n. V6/6571  del 02/03/2018 FORNITURA GAS;10-04-2018;582;0;849;1;Spese correnti;3;Acquisto di beni e servizi;2;Acquisto di servizi;5;Utenze e canoni;6;Gas;10-04-2018;
775;1;0;"1.401,10";"3.754,26";GP GLOBAL POWER SPA;5952652BD1;SALDO Fatt.n. V6/6575  del 02/03/2018 FORNITURA GAS;10-04-2018;542;0;848;1;Spese correnti;3;Acquisto di beni e servizi;2;Acquisto di servizi;5;Utenze e canoni;6;Gas;10-04-2018;
775;2;0;"2.353,16";"3.754,26";GP GLOBAL POWER SPA;5952652BD1;SALDO Fatt.n. V6/6574  del 02/03/2018 FORNITURA GAS;10-04-2018;542;0;848;1;Spese correnti;3;Acquisto di beni e servizi;2;Acquisto di servizi;5;Utenze e canoni;6;Gas;10-04-2018;
776;1;0;"264,64";"264,64";GP GLOBAL POWER SPA;5952652BD1;SALDO Fatt.n. V6/6576  del 02/03/2018 FORNITURA GAS;10-04-2018;112;0;845;1;Spese correnti;3;Acquisto di beni e servizi;2;Acquisto di servizi;5;Utenze e canoni;6;Gas;10-04-2018;
777;1;0;"699,03";"699,03";GP GLOBAL POWER SPA;5952652BD1;SALDO Fatt.n. V6/6577  del 02/03/2018 FORNITURA GAS;10-04-2018;212;0;846;1;Spese correnti;3;Acquisto di beni e servizi;2;Acquisto di servizi;5;Utenze e canoni;6;Gas;10-04-2018;
778;1;0;"1.321,02";"1.321,02";GP GLOBAL POWER SPA;5952652BD1;SALDO Fatt.n. V6/6578  del 02/03/2018 FORNITURA GAS;10-04-2018;884;0;850;1;Spese correnti;3;Acquisto di beni e servizi;2;Acquisto di servizi;5;Utenze e canoni;6;Gas;10-04-2018;
779;1;0;"2.793,55";"2.793,55";GP GLOBAL POWER SPA;5952652BD1;SALDO Fatt.n. V6/6579  del 02/03/2018 FORNITURA GAS;10-04-2018;888;0;851;1;Spese correnti;3;Acquisto di beni e servizi;2;Acquisto di servizi;5;Utenze e canoni;6;Gas;10-04-2018;
780;1;0;"2,89";"2,89";GP GLOBAL POWER SPA;5952652BD1;SALDO Fatt.n. V6/6580  del 02/03/2018 FORNITURA GAS;10-04-2018;353;0;847;1;Spese correnti;3;Acquisto di beni e servizi;2;Acquisto di servizi;5;Utenze e canoni;6;Gas;10-04-2018;
781;1;0;"18,20";"18,20";GP GLOBAL POWER SPA;5952652BD1;SALDO Fatt.n. V6/6581  del 02/03/2018 FORNITURA GAS;10-04-2018;353;0;847;1;Spese correnti;3;Acquisto di beni e servizi;2;Acquisto di servizi;5;Utenze e canoni;6;Gas;10-04-2018;
782;1;0;"476,20";"476,20";GP GLOBAL POWER SPA;5952652BD1;SALDO Fatt.n. V6/6572  del 02/03/2018 FORNITURA GAS;10-04-2018;353;0;847;1;Spese correnti;3;Acquisto di beni e servizi;2;Acquisto di servizi;5;Utenze e canoni;6;Gas;10-04-2018;
783;1;0;"1.477,21";"1.477,21";GP GLOBAL POWER SPA;5952652BD1;SALDO Fatt.n. V6/6573  del 02/03/2018 FORNITURA GAS;10-04-2018;353;0;847;1;Spese correnti;3;Acquisto di beni e servizi;2;Acquisto di servizi;5;Utenze e canoni;6;Gas;10-04-2018;
784;1;0;"1.524,02";"1.524,02";GP GLOBAL POWER SPA;5952652BD1;SALDO Fatt.n. V6/10496  del 26/03/2018 FORNITURA GAS;10-04-2018;582;0;849;1;Spese correnti;3;Acquisto di beni e servizi;2;Acquisto di servizi;5;Utenze e canoni;6;Gas;10-04-2018;
785;1;0;"1.507,73";"3.819,08";GP GLOBAL POWER SPA;5952652BD1;SALDO Fatt.n. V6/10500  del 26/03/2018 FORNITURA GAS;10-04-2018;542;0;848;1;Spese correnti;3;Acquisto di beni e servizi;2;Acquisto di servizi;5;Utenze e canoni;6;Gas;10-04-2018;
785;2;0;"2.311,35";"3.819,08";GP GLOBAL POWER SPA;5952652BD1;SALDO Fatt.n. V6/10499  del 26/03/2018 FORNITURA GAS;10-04-2018;542;0;848;1;Spese correnti;3;Acquisto di beni e servizi;2;Acquisto di servizi;5;Utenze e canoni;6;Gas;10-04-2018;
786;1;0;"266,36";"266,36";GP GLOBAL POWER SPA;5952652BD1;SALDO Fatt.n. V6/10501  del 26/03/2018 FORNITURA GAS;10-04-2018;112;0;845;1;Spese correnti;3;Acquisto di beni e servizi;2;Acquisto di servizi;5;Utenze e canoni;6;Gas;10-04-2018;
787;1;0;"835,32";"835,32";GP GLOBAL POWER SPA;5952652BD1;SALDO Fatt.n. V6/10502  del 26/03/2018 FORNITURA GAS;10-04-2018;212;0;846;1;Spese correnti;3;Acquisto di beni e servizi;2;Acquisto di servizi;5;Utenze e canoni;6;Gas;10-04-2018;
788;1;0;"1.295,29";"1.295,29";GP GLOBAL POWER SPA;5952652BD1;SALDO Fatt.n. V6/10503  del 26/03/2018 FORNITURA GAS;10-04-2018;884;0;850;1;Spese correnti;3;Acquisto di beni e servizi;2;Acquisto di servizi;5;Utenze e canoni;6;Gas;10-04-2018;
789;1;0;"2.555,53";"2.555,53";GP GLOBAL POWER SPA;5952652BD1;SALDO Fatt.n. V6/10504  del 26/03/2018 FORNITURA GAS;10-04-2018;888;0;851;1;Spese correnti;3;Acquisto di beni e servizi;2;Acquisto di servizi;5;Utenze e canoni;6;Gas;10-04-2018;
790;1;0;"2,64";"2,64";GP GLOBAL POWER SPA;5952652BD1;SALDO Fatt.n. V6/10505  del 26/03/2018 FORNITURA GAS;10-04-2018;353;0;847;1;Spese correnti;3;Acquisto di beni e servizi;2;Acquisto di servizi;5;Utenze e canoni;6;Gas;10-04-2018;
791;1;0;"16,92";"16,92";GP GLOBAL POWER SPA;5952652BD1;SALDO Fatt.n. V6/10506  del 26/03/2018 FORNITURA GAS;10-04-2018;353;0;847;1;Spese correnti;3;Acquisto di beni e servizi;2;Acquisto di servizi;5;Utenze e canoni;6;Gas;10-04-2018;
792;1;0;"350,40";"350,40";GP GLOBAL POWER SPA;5952652BD1;SALDO Fatt.n. V6/10497  del 26/03/2018 FORNITURA GAS;10-04-2018;353;0;847;1;Spese correnti;3;Acquisto di beni e servizi;2;Acquisto di servizi;5;Utenze e canoni;6;Gas;10-04-2018;
793;1;0;"1.469,77";"1.469,77";GP GLOBAL POWER SPA;5952652BD1;SALDO Fatt.n. V6/10498  del 26/03/2018 FORNITURA GAS;10-04-2018;353;0;847;1;Spese correnti;3;Acquisto di beni e servizi;2;Acquisto di servizi;5;Utenze e canoni;6;Gas;10-04-2018;
794;1;0;"0,01";"361,78";TELECOM ITALIA;Z215900F5;SALDO Fatt.n. 7X00516591  del 14/02/2018 2BIM 2018;10-04-2018;113;0;155;1;Spese correnti;3;Acquisto di beni e servizi;2;Acquisto di servizi;5;Utenze e canoni;2;Telefonia mobile;10-04-2018;
794;2;0;"361,77";"361,78";TELECOM ITALIA;Z215900F5;ACCONTO Fatt.n. 7X00516591  del 14/02/2018 2BIM 2018;10-04-2018;113;0;155;1;Spese correnti;3;Acquisto di beni e servizi;2;Acquisto di servizi;5;Utenze e canoni;2;Telefonia mobile;10-04-2018;
795;1;0;"1.928,58";"1.928,58";PELLINI DENIS;Z901FA0807;SALDO Fatt.n. 1/PA  del 07/02/2018 Rif. Avviso di parcella 10 del 26/01/2018:;18-04-2018;1106;2;685;2;Spese in conto capitale;2;Investimenti fissi lordi e acquisto di terreni;1;Beni materiali;9;Beni immobili;3;Fabbricati ad uso scolastico;18-04-2018;
796;1;0;"430,00";"430,00";MONTEVERDE SOC.COOP. DI SOLIDARIETA'. ONLUS;ZAE207B19A;SALDO Fatt.n. 000016/PA  del 28/02/2018 Scissione pagamenti art. 17ter DPR 633/72;18-04-2018;663;0;72;1;Spese correnti;3;Acquisto di beni e servizi;2;Acquisto di servizi;15;Contratti di servizio pubblico;999;Altre spese per contratti di servizio pubblico;18-04-2018;
797;1;0;"7.260,93";"7.260,93";EURORISTORAZIONE SRL;6993767F17;SALDO Fatt.n. 18CPA00775  del 28/02/2018 FATTURA;18-04-2018;662;0;139;1;Spese correnti;3;Acquisto di beni e servizi;2;Acquisto di servizi;15;Contratti di servizio pubblico;6;Contratti di servizio per le mense scolastiche;18-04-2018;
798;1;0;"556,08";"556,08";STUDIO 83 ARTI GRAFICHE;Z5720D3399;ACCONTO Fatt.n. 716  del 30/11/2017 Fattura P.A.;18-04-2018;147;0;690;1;Spese correnti;3;Acquisto di beni e servizi;2;Acquisto di servizi;2;"Organizzazione eventi, pubblicita` e servizi per trasferta";999;"Altre spese per relazioni pubbliche, convegni e mostre, pubblicita` n.a.c";18-04-2018;
800;1;0;"263,52";"263,52";GRAFICHE E. GASPARI SRL;ZB121DAC57;SALDO Fatt.n. 04025  del 28/02/2018 FATTURA;18-04-2018;15;2;76;1;Spese correnti;3;Acquisto di beni e servizi;1;Acquisto di beni;2;Altri beni di consumo;10;Beni per consultazioni elettorali;18-04-2018;
801;1;0;"247,00";"247,00";SEPEL EDITRICE - LO STATO CIVILE ITALIANO;ZB521DA0AC;SALDO Fatt.n. 2/378  del 14/02/2018 VENDITE ABB.RIV.;18-04-2018;150;0;137;1;Spese correnti;3;Acquisto di beni e servizi;2;Acquisto di servizi;5;Utenze e canoni;3;Accesso a banche dati e a pubblicazioni on line;18-04-2018;
802;1;0;"1.171,20";"1.171,20";CIDIELLE COOPERATIVA SOCIALE;ZEA21BA16D;SALDO Fatt.n. 51/02  del 28/02/2018 FATTURA;18-04-2018;117;0;71;1;Spese correnti;3;Acquisto di beni e servizi;2;Acquisto di servizi;13;Servizi ausiliari per il funzionamento dell'ente;2;Servizi di pulizia e lavanderia;18-04-2018;
803;1;0;"2.357,55";"2.357,55";CIDIELLE COOPERATIVA SOCIALE;6993707D94;SALDO Fatt.n. 53/02  del 28/02/2018 FATTURA;18-04-2018;117;0;150;1;Spese correnti;3;Acquisto di beni e servizi;2;Acquisto di servizi;13;Servizi ausiliari per il funzionamento dell'ente;2;Servizi di pulizia e lavanderia;18-04-2018;
804;1;0;"2.357,55";"2.357,55";CIDIELLE COOPERATIVA SOCIALE;6993707D94;SALDO Fatt.n. 52/02  del 28/02/2018 FATTURA;18-04-2018;117;0;150;1;Spese correnti;3;Acquisto di beni e servizi;2;Acquisto di servizi;13;Servizi ausiliari per il funzionamento dell'ente;2;Servizi di pulizia e lavanderia;18-04-2018;
805;1;0;"1.969,16";"1.969,16";SOCIETA' COOPERATIVA CULTURE;5539394489;SALDO Fatt.n. 409/FE  del 26/03/2018 FATTURA;18-04-2018;680;0;121;1;Spese correnti;3;Acquisto di beni e servizi;2;Acquisto di servizi;15;Contratti di servizio pubblico;999;Altre spese per contratti di servizio pubblico;18-04-2018;
806;1;0;"253,61";"253,61";RANCAN SNC DI RANCAN LAURA E ALESSANDRO & C.;ZE81F985D0;SALDO Fatt.n. 8/PA  del 28/02/2018 VENDITA;18-04-2018;110;0;482;1;Spese correnti;3;Acquisto di beni e servizi;1;Acquisto di beni;2;Altri beni di consumo;1;"Carta, cancelleria e stampati";18-04-2018;
812;1;0;"37,64";"37,64";ASSOCIAZIONE NOI CALDIERO - EX CIRCOLO A.N.S.P.I. CALDI; ;"INIZIATIVA M'ILLUMINO DI MENO DEL 23/2/2018, APPROVATA CON DELIBERA DI GIUNTA COMUNALE N.15/2018. RIMBORSO SPESE A FAVORE DELL'ASSOCIAZIONE NOI CALDIERINO.";18-04-2018;895;0;213;1;Spese correnti;4;Trasferimenti correnti;4;Trasferimenti correnti a Istituzioni Sociali Private;1;Trasferimenti correnti a Istituzioni Sociali Private;1;Trasferimenti correnti a Istituzioni Sociali Private;18-04-2018;
813;1;0;"65,01";"65,01";ZANINI CHRISTIAN; ;SALDO Fatt.n. 05/2018  del 17/04/2018 GETTONI PRESENZA COMMISSIONE EDILIZIA ANNO 2017;18-04-2018;10;0;839;1;Spese correnti;3;Acquisto di beni e servizi;2;Acquisto di servizi;1;Organi e incarichi istituzionali dell'amministrazione;1;Organi istituzionali dell'amministrazione - Indennità;18-04-2018;
814;1;0;"2.000,00";"2.000,00";COOPERATIVA SOCIALE MONSCLEDA LAVORO SRL;ZBB1F09313;ACCONTO Fatt.n. 45/2018  del 01/03/2018 fattura;18-04-2018;352;0;428;1;Spese correnti;3;Acquisto di beni e servizi;2;Acquisto di servizi;9;Manutenzione ordinaria e riparazioni;8;Manutenzione ordinaria e riparazioni di beni immobili;18-04-2018;
815;1;0;"2.655,52";"2.655,52";COOPERATIVA SOCIALE MONSCLEDA LAVORO SRL;ZBB1F09313;SALDO Fatt.n. 45/2018  del 01/03/2018 fattura;18-04-2018;952;0;429;1;Spese correnti;3;Acquisto di beni e servizi;2;Acquisto di servizi;9;Manutenzione ordinaria e riparazioni;8;Manutenzione ordinaria e riparazioni di beni immobili;18-04-2018;
816;1;0;"39,00";"814,51";KUWAIT PETROLEUM ITALIA SPA;ZA91845EEC;ACCONTO Fatt.n. PJ00121222  del 31/03/2018 FATTURA;18-04-2018;290;0;238;1;Spese correnti;3;Acquisto di beni e servizi;1;Acquisto di beni;2;Altri beni di consumo;2;"Carburanti, combustibili e lubrificanti";18-04-2018;
816;2;0;"71,21";"814,51";KUWAIT PETROLEUM ITALIA SPA;ZA91845EEC;ACCONTO Fatt.n. PJ00117164  del 28/02/2018 FATTURA;18-04-2018;290;0;238;1;Spese correnti;3;Acquisto di beni e servizi;1;Acquisto di beni;2;Altri beni di consumo;2;"Carburanti, combustibili e lubrificanti";18-04-2018;
816;3;0;"285,56";"814,51";KUWAIT PETROLEUM ITALIA SPA;ZA91845EEC;SALDO Fatt.n. PJ00121222  del 31/03/2018 FATTURA;18-04-2018;290;0;238;1;Spese correnti;3;Acquisto di beni e servizi;1;Acquisto di beni;2;Altri beni di consumo;2;"Carburanti, combustibili e lubrificanti";18-04-2018;
816;4;0;"418,74";"814,51";KUWAIT PETROLEUM ITALIA SPA;ZA91845EEC;SALDO Fatt.n. PJ00117164  del 28/02/2018 FATTURA;18-04-2018;290;0;238;1;Spese correnti;3;Acquisto di beni e servizi;1;Acquisto di beni;2;Altri beni di consumo;2;"Carburanti, combustibili e lubrificanti";18-04-2018;
817;1;0;"1.413,16";"1.413,16";COOPERATIVA SOCIALE VENETA ONLUS;Z431F034F6;SALDO Fatt.n. 000062-2018-PA  del 28/03/2018 FATTURA;18-04-2018;782;0;454;1;Spese correnti;3;Acquisto di beni e servizi;2;Acquisto di servizi;9;Manutenzione ordinaria e riparazioni;8;Manutenzione ordinaria e riparazioni di beni immobili;18-04-2018;
818;1;0;"23,50";"23,50";ACQUE VERONESI SCARL; ;SALDO Fatt.n. 0350120170800376100  del 28/08/2017 B/Bollettazione;18-04-2018;359;0;328;1;Spese correnti;3;Acquisto di beni e servizi;2;Acquisto di servizi;5;Utenze e canoni;5;Acqua;18-04-2018;
819;1;0;"85,04";"85,04";ACQUE VERONESI SCARL; ;SALDO Fatt.n. 0350120170800160500  del 23/02/2017 B/Bollettazione;18-04-2018;359;0;328;1;Spese correnti;3;Acquisto di beni e servizi;2;Acquisto di servizi;5;Utenze e canoni;5;Acqua;18-04-2018;
820;1;0;"34,00";"34,00";FERRAMENTA BELLOMI DI FOLLETTO G. E L. SAS;ZF7224BB95;SALDO Fatt.n. 2018     9/P  del 31/03/2018 FATTURA;18-04-2018;350;0;116;1;Spese correnti;3;Acquisto di beni e servizi;1;Acquisto di beni;2;Altri beni di consumo;999;Altri beni e materiali di consumo n.a.c.;18-04-2018;
821;1;0;"17,37";"129,16";SVAI SPA;ZCD224CEA8;SALDO Fatt.n. 300073  del 30/03/2018 FATTURA;18-04-2018;350;0;123;1;Spese correnti;3;Acquisto di beni e servizi;1;Acquisto di beni;2;Altri beni di consumo;999;Altri beni e materiali di consumo n.a.c.;18-04-2018;
821;2;0;"111,79";"129,16";SVAI SPA;ZCD224CEA8;ACCONTO Fatt.n. 300073  del 30/03/2018 FATTURA;18-04-2018;350;0;123;1;Spese correnti;3;Acquisto di beni e servizi;1;Acquisto di beni;2;Altri beni di consumo;999;Altri beni e materiali di consumo n.a.c.;18-04-2018;
822;1;0;"1.238,31";"1.238,31";ACQUE VERONESI SCARL;Z1322979B8;SALDO Fatt.n. 0360120180900003300  del 04/04/2018 F/Fattura preventivo;18-04-2018;1174;0;278;2;Spese in conto capitale;2;Investimenti fissi lordi e acquisto di terreni;1;Beni materiali;9;Beni immobili;16;Impianti sportivi;18-04-2018;
823;1;0;"1.316,94";"1.316,94";ACQUE VERONESI SCARL;Z1322979B8;SALDO Fatt.n. 0360120180900003200  del 04/04/2018 F/Fattura preventivo;18-04-2018;1174;0;278;2;Spese in conto capitale;2;Investimenti fissi lordi e acquisto di terreni;1;Beni materiali;9;Beni immobili;16;Impianti sportivi;18-04-2018;
824;1;0;"4.000,00";"4.000,00";MORANDO FRANCESCO;Z18201AA1D;ACCONTO Fatt.n. 22/PA - 2018  del 15/03/2018 FATTURA;18-04-2018;952;0;681;1;Spese correnti;3;Acquisto di beni e servizi;2;Acquisto di servizi;9;Manutenzione ordinaria e riparazioni;8;Manutenzione ordinaria e riparazioni di beni immobili;18-04-2018;
825;1;0;"59,55";"59,55";MORANDO FRANCESCO;Z18201AA1D;ACCONTO Fatt.n. 22/PA - 2018  del 15/03/2018 FATTURA;18-04-2018;952;0;681;1;Spese correnti;3;Acquisto di beni e servizi;2;Acquisto di servizi;9;Manutenzione ordinaria e riparazioni;8;Manutenzione ordinaria e riparazioni di beni immobili;18-04-2018;
826;1;0;"583,77";"583,77";MORANDO FRANCESCO;Z18201AA1D;SALDO Fatt.n. 22/PA - 2018  del 15/03/2018 FATTURA;18-04-2018;952;0;649;1;Spese correnti;3;Acquisto di beni e servizi;2;Acquisto di servizi;9;Manutenzione ordinaria e riparazioni;8;Manutenzione ordinaria e riparazioni di beni immobili;18-04-2018;
827;1;0;"129,17";"129,17";LA RONDA - SERVIZI DI VIGILANZA;ZE618FE5E8;SALDO Fatt.n. 0003674  del 30/03/2018 FATTURA;18-04-2018;357;0;171;1;Spese correnti;3;Acquisto di beni e servizi;2;Acquisto di servizi;13;Servizi ausiliari per il funzionamento dell'ente;1;"Servizi di sorveglianza, custodia e accoglienza";18-04-2018;
828;1;0;"1.356,66";"1.356,66";MATTARANETTA SOCIETA' COOPERATIVA SOCIALE;Z9F225C229;SALDO Fatt.n. 10/FE  del 31/03/2018 FATTURA IMMEDIATA;18-04-2018;840;0;141;1;Spese correnti;3;Acquisto di beni e servizi;2;Acquisto di servizi;15;Contratti di servizio pubblico;4;Contratti di servizio per la raccolta rifiuti;18-04-2018;
829;1;0;"179,96";"179,96";EDILTOSI S.R.L.;Z52224BB3B;SALDO Fatt.n. 001594  del 31/03/2018 FATTURA;18-04-2018;350;0;117;1;Spese correnti;3;Acquisto di beni e servizi;1;Acquisto di beni;2;Altri beni di consumo;999;Altri beni e materiali di consumo n.a.c.;18-04-2018;
830;1;0;"90,68";"90,68";EDILTOSI S.R.L.;Z52224BB3B;SALDO Fatt.n. 000969  del 28/02/2018 FATTURA;18-04-2018;350;0;117;1;Spese correnti;3;Acquisto di beni e servizi;1;Acquisto di beni;2;Altri beni di consumo;999;Altri beni e materiali di consumo n.a.c.;18-04-2018;
831;1;0;"264,76";"264,76";EDILTOSI S.R.L.;Z52224BB3B;SALDO Fatt.n. 000968  del 28/02/2018 FATTURA;18-04-2018;350;0;117;1;Spese correnti;3;Acquisto di beni e servizi;1;Acquisto di beni;2;Altri beni di consumo;999;Altri beni e materiali di consumo n.a.c.;18-04-2018;
832;1;0;"170,80";"170,80";RATTICIDA VENETA SAS DI FERLENGA M. E G.;ZF31F0A617;SALDO Fatt.n. 26/PA  del 30/03/2018 FATTURA;18-04-2018;465;0;453;1;Spese correnti;3;Acquisto di beni e servizi;2;Acquisto di servizi;99;Altri servizi;999;Altri servizi diversi n.a.c.;18-04-2018;
833;1;0;"353,51";"353,51";TEBALDI SRL;Z841233152;SALDO Fatt.n. 01PA  del 19/03/2018 RONCHI AUTOVEICOLO VOLKSWAGEN TELAIO WV2ZZZ70ZNH127686;18-04-2018;840;0;623;1;Spese correnti;3;Acquisto di beni e servizi;2;Acquisto di servizi;15;Contratti di servizio pubblico;999;Altre spese per contratti di servizio pubblico;18-04-2018;
834;1;0;"143,38";"1.034,42";SVAI SPA;ZD222D12E0;ACCONTO Fatt.n. 300074  del 30/03/2018 SCUOLA MEDIA  A. PISANO;18-04-2018;1108;4;177;2;Spese in conto capitale;2;Investimenti fissi lordi e acquisto di terreni;1;Beni materiali;9;Beni immobili;3;Fabbricati ad uso scolastico;18-04-2018;
834;2;0;"891,04";"1.034,42";SVAI SPA;ZD222D12E0;ACCONTO Fatt.n. 300074  del 30/03/2018 SCUOLA MEDIA  A. PISANO;18-04-2018;1108;4;177;2;Spese in conto capitale;2;Investimenti fissi lordi e acquisto di terreni;1;Beni materiali;9;Beni immobili;3;Fabbricati ad uso scolastico;18-04-2018;
835;1;0;"121,57";"121,57";SVAI SPA;ZD222D12E0;SALDO Fatt.n. 300074  del 30/03/2018 SCUOLA MEDIA  A. PISANO;18-04-2018;1582;0;176;2;Spese in conto capitale;2;Investimenti fissi lordi e acquisto di terreni;1;Beni materiali;9;Beni immobili;3;Fabbricati ad uso scolastico;18-04-2018;
836;1;0;"31.464,35";"31.464,35";CONSORZIO DI BACINO VERONA DUE DEL QUADRILATERO; ;SALDO Fatt.n. 001105/02  del 20/03/2018 FATTURA;18-04-2018;840;0;174;1;Spese correnti;3;Acquisto di beni e servizi;2;Acquisto di servizi;15;Contratti di servizio pubblico;4;Contratti di servizio per la raccolta rifiuti;18-04-2018;
837;1;0;"31.464,35";"31.464,35";CONSORZIO DI BACINO VERONA DUE DEL QUADRILATERO; ;SALDO Fatt.n. 001104/02  del 20/03/2018 FATTURA;18-04-2018;840;0;174;1;Spese correnti;3;Acquisto di beni e servizi;2;Acquisto di servizi;15;Contratti di servizio pubblico;4;Contratti di servizio per la raccolta rifiuti;18-04-2018;
838;1;0;"1.238,16";"1.238,16";CONSORZIO DI BACINO VERONA DUE DEL QUADRILATERO; ;SALDO Fatt.n. 001041/02  del 20/03/2018 FATTURA;18-04-2018;840;0;174;1;Spese correnti;3;Acquisto di beni e servizi;2;Acquisto di servizi;15;Contratti di servizio pubblico;4;Contratti di servizio per la raccolta rifiuti;18-04-2018;
839;1;0;"40,29";"40,29";CONSORZIO DI BACINO VERONA DUE DEL QUADRILATERO; ;SALDO Fatt.n. 001384/02  del 27/03/2018 FATTURA;18-04-2018;840;0;174;1;Spese correnti;3;Acquisto di beni e servizi;2;Acquisto di servizi;15;Contratti di servizio pubblico;4;Contratti di servizio per la raccolta rifiuti;18-04-2018;
840;1;0;"674,52";"674,52";CONSORZIO DI BACINO VERONA DUE DEL QUADRILATERO; ;SALDO Fatt.n. 001267/02  del 27/03/2018 FATTURA;18-04-2018;840;0;174;1;Spese correnti;3;Acquisto di beni e servizi;2;Acquisto di servizi;15;Contratti di servizio pubblico;4;Contratti di servizio per la raccolta rifiuti;18-04-2018;
841;1;0;"5.188,10";"5.188,10";CONSORZIO DI BACINO VERONA DUE DEL QUADRILATERO; ;SALDO Fatt.n. 001309/02  del 27/03/2018 FATTURA;18-04-2018;840;0;174;1;Spese correnti;3;Acquisto di beni e servizi;2;Acquisto di servizi;15;Contratti di servizio pubblico;4;Contratti di servizio per la raccolta rifiuti;18-04-2018;
842;1;0;"7.260,86";"7.260,86";CONSORZIO DI BACINO VERONA DUE DEL QUADRILATERO; ;SALDO Fatt.n. 001224/02  del 27/03/2018 FATTURA;18-04-2018;840;0;174;1;Spese correnti;3;Acquisto di beni e servizi;2;Acquisto di servizi;15;Contratti di servizio pubblico;4;Contratti di servizio per la raccolta rifiuti;18-04-2018;
843;1;0;"121,42";"121,42";CONSORZIO DI BACINO VERONA DUE DEL QUADRILATERO; ;SALDO Fatt.n. 001351/02  del 27/03/2018 FATTURA;18-04-2018;840;0;174;1;Spese correnti;3;Acquisto di beni e servizi;2;Acquisto di servizi;15;Contratti di servizio pubblico;4;Contratti di servizio per la raccolta rifiuti;18-04-2018;
844;1;0;"31.464,35";"31.464,35";CONSORZIO DI BACINO VERONA DUE DEL QUADRILATERO; ;SALDO Fatt.n. 001429/02  del 30/03/2018 FATTURA;18-04-2018;840;0;174;1;Spese correnti;3;Acquisto di beni e servizi;2;Acquisto di servizi;15;Contratti di servizio pubblico;4;Contratti di servizio per la raccolta rifiuti;18-04-2018;
845;1;0;"3.825,00";"3.825,00";AMMINISTRATORI COMUNALI; ;LIQUIDAZIONE INDENNITA' DI CARICA MESE DI APRILE 2018;19-04-2018;10;0;4;1;Spese correnti;3;Acquisto di beni e servizi;2;Acquisto di servizi;1;Organi e incarichi istituzionali dell'amministrazione;1;Organi istituzionali dell'amministrazione - Indennità;19-04-2018;
880;1;0;"1.007,72";"1.007,72";CONSIGLIERI COMUNALI; ;LIQUIDAZIONE DEI GETTONI DI PRESENZA AI CONSIGLIERI COMUNALI ED AI MEMBRI DELLA COMMISSIONE EDILIZIA PER LE SEDUTE DAL 01/01/2017 AL 31/12/2017;19-04-2018;10;0;833;1;Spese correnti;3;Acquisto di beni e servizi;2;Acquisto di servizi;1;Organi e incarichi istituzionali dell'amministrazione;1;Organi istituzionali dell'amministrazione - Indennità;19-04-2018;
926;1;0;"584,14";"584,14";LERCO ANTINCENDI SRL;ZBB1FA6FC8;SALDO Fatt.n. 10/PA  del 29/03/2018 FATTURA;26-04-2018;352;0;489;1;Spese correnti;3;Acquisto di beni e servizi;2;Acquisto di servizi;9;Manutenzione ordinaria e riparazioni;8;Manutenzione ordinaria e riparazioni di beni immobili;26-04-2018;
927;1;0;"3.021,70";"3.021,70";GP GLOBAL POWER SPA; ;BENEFICIARI DIVERSI-PAGAMENTI DIVERSI COD DISP 751803220OM5TW NOME GLOBAL POWER SPA MANDATO (P.      63 -R.     639);30-04-2018;111;0;146;1;Spese correnti;3;Acquisto di beni e servizi;2;Acquisto di servizi;5;Utenze e canoni;4;Energia elettrica;30-04-2018;
928;1;0;"161,50";"161,50";GP GLOBAL POWER SPA;7226954F17;BENEFICIARI DIVERSI-PAGAMENTI DIVERSI COD DISP 751803220OM661 NOME GLOBAL POWER SPA MANDATO (P.      64 -R.     640);30-04-2018;211;0;573;1;Spese correnti;3;Acquisto di beni e servizi;2;Acquisto di servizi;5;Utenze e canoni;4;Energia elettrica;30-04-2018;
929;1;0;"397,00";"397,00";GP GLOBAL POWER SPA;7226954F17;BENEFICIARI DIVERSI-PAGAMENTI DIVERSI COD DISP 751803220OM5TS NOME GLOBAL POWER SPA MANDATO (P.      69 -R.     645);30-04-2018;354;0;574;1;Spese correnti;3;Acquisto di beni e servizi;2;Acquisto di servizi;5;Utenze e canoni;4;Energia elettrica;30-04-2018;
930;1;0;"1.211,14";"1.211,14";GP GLOBAL POWER SPA;7226954F17;BENEFICIARI DIVERSI-PAGAMENTI DIVERSI COD DISP 751803220OM5TN NOME GLOBAL POWER SPA MANDATO (P.      61 -R.     637);30-04-2018;541;0;575;1;Spese correnti;3;Acquisto di beni e servizi;2;Acquisto di servizi;5;Utenze e canoni;4;Energia elettrica;30-04-2018;
931;1;0;"451,06";"451,06";GP GLOBAL POWER SPA;7226954F17;BENEFICIARI DIVERSI-PAGAMENTI DIVERSI COD DISP 751803220OM664 NOME GLOBAL POWER SPA MANDATO (P.      65 -R.     641);30-04-2018;581;0;576;1;Spese correnti;3;Acquisto di beni e servizi;2;Acquisto di servizi;5;Utenze e canoni;4;Energia elettrica;30-04-2018;
932;1;0;"839,69";"839,69";GP GLOBAL POWER SPA;7226954F17;BENEFICIARI DIVERSI-PAGAMENTI DIVERSI COD DISP 751803220OM5TF NOME GLOBAL POWER SPA MANDATO (P.      66 -R.     642);30-04-2018;881;0;577;1;Spese correnti;3;Acquisto di beni e servizi;2;Acquisto di servizi;5;Utenze e canoni;4;Energia elettrica;30-04-2018;
933;1;0;"398,38";"398,38";GP GLOBAL POWER SPA;7226954F17;BENEFICIARI DIVERSI-PAGAMENTI DIVERSI COD DISP 751803220OM5T9 NOME GLOBAL POWER SPA MANDATO (P.      62 -R.     638);30-04-2018;885;0;578;1;Spese correnti;3;Acquisto di beni e servizi;2;Acquisto di servizi;5;Utenze e canoni;4;Energia elettrica;30-04-2018;
934;1;0;"77,31";"77,31";GP GLOBAL POWER SPA;7226954F17;BENEFICIARI DIVERSI-PAGAMENTI DIVERSI COD DISP 751803220OM65X NOME GLOBAL POWER SPA MANDATO (P.      67 -R.     643);30-04-2018;951;0;579;1;Spese correnti;3;Acquisto di beni e servizi;2;Acquisto di servizi;5;Utenze e canoni;4;Energia elettrica;30-04-2018;
935;1;0;"9.830,26";"9.830,26";GP GLOBAL POWER SPA;7226954F17;BENEFICIARI DIVERSI-PAGAMENTI DIVERSI COD DISP 751803220OM5TI NOME GLOBAL POWER SPA MANDATO (P.      68 -R.     644);30-04-2018;960;0;580;1;Spese correnti;3;Acquisto di beni e servizi;2;Acquisto di servizi;5;Utenze e canoni;4;Energia elettrica;30-04-2018;
936;1;0;"664,77";"664,77";GP GLOBAL POWER SPA;7226954F17;SALDO Fatt.n. V0/36126  del 13/03/2018 Fattura Energia Elettrica;30-04-2018;111;0;146;1;Spese correnti;3;Acquisto di beni e servizi;2;Acquisto di servizi;5;Utenze e canoni;4;Energia elettrica;30-04-2018;
937;1;0;"35,53";"35,53";GP GLOBAL POWER SPA;7226954F17;SALDO Fatt.n. V0/36127  del 13/03/2018 Fattura Energia Elettrica;30-04-2018;211;0;573;1;Spese correnti;3;Acquisto di beni e servizi;2;Acquisto di servizi;5;Utenze e canoni;4;Energia elettrica;30-04-2018;
938;1;0;"87,34";"87,34";GP GLOBAL POWER SPA;7226954F17;SALDO Fatt.n. V0/36128  del 13/03/2018 Fattura Energia Elettrica;30-04-2018;354;0;574;1;Spese correnti;3;Acquisto di beni e servizi;2;Acquisto di servizi;5;Utenze e canoni;4;Energia elettrica;30-04-2018;
939;1;0;"121,11";"121,11";GP GLOBAL POWER SPA;7226954F17;SALDO Fatt.n. V0/36129  del 13/03/2018 Fattura Energia Elettrica;30-04-2018;541;0;575;1;Spese correnti;3;Acquisto di beni e servizi;2;Acquisto di servizi;5;Utenze e canoni;4;Energia elettrica;30-04-2018;
940;1;0;"45,11";"45,11";GP GLOBAL POWER SPA;7226954F17;SALDO Fatt.n. V0/36130  del 13/03/2018 Fattura Energia Elettrica;30-04-2018;581;0;576;1;Spese correnti;3;Acquisto di beni e servizi;2;Acquisto di servizi;5;Utenze e canoni;4;Energia elettrica;30-04-2018;
941;1;0;"87,64";"87,64";GP GLOBAL POWER SPA;7226954F17;SALDO Fatt.n. V0/36131  del 13/03/2018 Fattura Energia Elettrica;30-04-2018;885;0;578;1;Spese correnti;3;Acquisto di beni e servizi;2;Acquisto di servizi;5;Utenze e canoni;6;Gas;30-04-2018;
942;1;0;"17,01";"17,01";GP GLOBAL POWER SPA;7226954F17;SALDO Fatt.n. V0/36132  del 13/03/2018 Fattura Energia Elettrica;30-04-2018;951;0;579;1;Spese correnti;3;Acquisto di beni e servizi;2;Acquisto di servizi;5;Utenze e canoni;4;Energia elettrica;30-04-2018;
943;1;0;"2.162,66";"2.162,66";GP GLOBAL POWER SPA;7226954F17;SALDO Fatt.n. V0/36125  del 13/03/2018 Fattura Energia Elettrica;30-04-2018;960;0;580;1;Spese correnti;3;Acquisto di beni e servizi;2;Acquisto di servizi;5;Utenze e canoni;4;Energia elettrica;30-04-2018;
944;1;0;"184,73";"184,73";GP GLOBAL POWER SPA;7226954F17;SALDO Fatt.n. V0/36124  del 13/03/2018 Fattura Energia Elettrica;30-04-2018;881;0;577;1;Spese correnti;3;Acquisto di beni e servizi;2;Acquisto di servizi;5;Utenze e canoni;4;Energia elettrica;30-04-2018;
945;1;0;"30,70";"30,70";TELECOM ITALIA;Z8A08BEC62;EROGATORE SERVIZI TELEFONICI-PAGAMENTO TELEFONO COD DISP 751804180BCHLH NOME TELECOM ITALIA S P A MANDAT (P.      75 -R.     780);30-04-2018;113;0;148;1;Spese correnti;3;Acquisto di beni e servizi;2;Acquisto di servizi;5;Utenze e canoni;1;Telefonia fissa;30-04-2018;
